{"text_format":"1","workbook":"xlsx","n_sheets":7,"sheets":["Introduction","Pre-App Stage","Outline Application Stage","Detailed Application Stage","Post-Construction Stage","Version Control","Drop- down list"],"not_rendered":{"charts":0,"images":1,"macros":1,"external_links":0,"defined_names":53,"comments":0,"pivot_tables":0},"unopened":[],"bounds":{"document_bytes":16777216,"sheet_cells":100000,"rows_first":2000,"rows_last":500,"rows_between":2000,"halvings":0,"cell_chars":16384,"cell_head_chars":4096},"cells_cut":0,"cells_raw":0,"read":"whole","date_system":"1900"}

{"sheet":"Introduction","index":0,"n_rows":36,"n_cols":7,"rows_kept":36,"cut":false,"hidden":false,"merged":[[32,6,32,9],[28,6,28,9],[31,6,31,9],[26,6,26,9],[27,6,27,9],[29,6,29,9],[30,6,30,9],[21,6,21,9],[22,6,22,9],[23,6,23,9],[24,6,24,9],[25,6,25,9]]}
["Greater London Authority - Circular Economy Statement template "]
[]
["How to use this spreadsheet"]
["This template should be used by planning applicants to fulfil the requirements of the Mayor's Circular Economy (CE) Statement policy set out in London Plan Policy SI 7 'Reducing waste and supporting the Circular Economy’. Before completing and submitting this spreadsheet to the GLA, applicants should read the CE statement guidance: https://www.london.gov.uk/what-we-do/planning/implementing-london-plan/london-plan-guidance-and-spgs/circular-economy-statement-guidance-consultation-draft "]
[]
["Applicant are required to submit CE statement information to the GLA at the following three stages: pre-applicaton, outline/detailed planning submission and post-construction. Separate tabs are provided in this spreadsheet for each stage. An outline of the information required at each stage and how to submit it is provided below. Please enter information to the light yellow-coloured cells only, do not enter information in the grey cells as these will be automatically calculated. The light green-coloured cells should be completed to achieve 'pioneering' status."]
[]
["1. Pre-application stage"]
["At pre-application stage, applicants are required to complete the pre-application information tab of this template which requires applicants to confirm details about the site and to provide details of the circular economy design approaches that are informing the existing and new development (including by building layer for the latter). All tables should be completed. This should be submitted to the GLA along with all other pre-application material."]
[]
["2. Outline/detailed planning submission stage"]
["At this stage, applicants are required to complete the outline or detailed planning stage tab of this template (whichever is relevant) and submit it to the GLA along with their planning application. Applicants are required to complete all tables, including the Bill of Materials and Recycling and Waste Reporting tables. Please enter information to the light yellow-coloured cells only, do not enter information in the grey cells as these will be automatically calculated. The light green-coloured cells should be completed to achieve 'pioneering' status."]
[]
["3. Post-construction stage"]
["At the final stage of the CE statement process, applicants should complete the post-construction tab of this template and submit it to the GLA within three months of practical completion. This will require an update of the information provided at planning submission stage and for the actual figures to be reported using actual material quantities during construction. Information should be submitted to: circulareconomystatements@london.gov.uk   "]
[]
["Queries"]
["Any queries or feedback on this template should be submitted to:"]
["circulareconomystatements@london.gov.uk"]
[]
[]
["Requirement by application stage (see relevant section of guidance for more information)","Pre-application stage (suggested)","Outline application[1]","Full application / reserved matters[2]","Post-construction","Checklist","Information Reference (Please indicate whether this has been included in the report to accompany this template or as a separate submission)"]
["CE targets (see section 4.2)","Encouraged","Yes ","Yes  ","Yes (Performance reported)",null,"Evidence in CES template spreadsheet"]
["CE design approaches (see sections 2.3 - 2.5 and 4.3)","Yes ","Yes ","Yes ","N/A",null,"Evidence in CES template spreadsheet"]
["CE design principles (see sections 2.1, 4.4 - 4.5)","Yes","No","No","No",null,"Evidence in CES template spreadsheet"]
["CE design principles by building layer (see sections 4.5)","No","Yes","Yes","No",null,"Evidence in CES template spreadsheet"]
["Pre-redevelopment audit (see section 4.6)","Encouraged ","Yes","Yes","N/A"]
["Pre-demolition audit (see section 4.6)","Encouraged","Yes","Yes","N/A"]
["Bill of materials (including calculations – see section 4.7)","No","Yes (Estimated)","Yes (Estimated) ","Yes (Actual)",null,"Evidence in CES template spreadsheet"]
["End of life strategy (see section 4.7)","No","No","Yes ","Encouraged"]
["Operational waste management plan (see section 4.8)","No","No","Yes ","Encouraged"]
["Recycling and waste reporting (see Section 4.9)","No","Yes (Estimated)","Yes (Estimated) ","Yes (Actual)",null,"Evidence in CES template spreadsheet"]
["Lessons learnt and key achievements (see section 4.10)","N/A","N/A","N/A","Yes ",null,"Evidence in CES template spreadsheet"]
[]
["[1] Also applicable to the outline and detailed part of hybrid applications."]
["[2] Also applicable to the outline and detailed part of hybrid applications."]

{"sheet":"Pre-App Stage","index":1,"n_rows":88,"n_cols":7,"rows_kept":88,"cut":false,"hidden":false,"merged":[[78,4,78,5],[75,1,75,2],[77,4,77,5],[72,6,72,8],[73,6,73,8],[74,6,74,8],[75,6,75,8],[77,1,77,2],[78,1,78,2],[76,6,76,8],[77,6,77,8],[78,6,78,8],[75,4,75,5],[76,4,76,5],[88,6,88,8],[89,1,89,2],[89,4,89,5],[89,6,89,8],[90,1,90,2],[90,4,90,5],[90,6,90,8],[0,0,1,6],[3,0,3,5],[4,0,4,2],[4,4,4,5],[76,1,76,2],[69,1,69,2],[70,4,70,5],[70,6,70,8],[71,4,71,5],[71,6,71,8],[71,1,74,2],[70,1,70,2],[72,4,72,5],[73,4,73,5],[74,4,74,5]]}
[]
[]
[]
["Pre-Application Stage - Circular Economy Statement"]
[]
[null,null,null,"Project Details"]
[null,null,"Project name"]
[null,null,"Planning application reference number (if applicable)"]
[null,null,"Applicant"]
[null,null,"London Borough"]
[null,null,"Brief description of the project"]
[null,null,"Author/s"]
[null,null,"Date of assessment"]
[null,null,"Number of Use Types"]
[null,null,"Use Class / Type","Floor Area by use type (m2)"]
[null,null,"Use Class / Type 1","Use Class / Type 1 GIA"]
[null,null,"Use Class / Type 2","Use Class / Type 2 GIA"]
[null,null,"Use Class / Type 3","Use Class / Type 3 GIA"]
[null,null,"Use Class / Type 4","Use Class / Type 4 GIA"]
[null,null,"Use Class / Type 5","Use Class / Type 5 GIA"]
[null,null,"Use Class / Type 6","Use Class / Type 6 GIA"]
[null,null,"Use Class / Type 7","Use Class / Type 7 GIA"]
[null,null,"Use Class / Type 8","Use Class / Type 8 GIA"]
[null,null,"Use Class / Type 9","Use Class / Type 9 GIA"]
[null,null,"Use Class / Type 10","Use Class / Type 10 GIA"]
[null,null,"Use Class / Type 11","Use Class / Type 11 GIA"]
[null,null,"Use Class / Type 12","Use Class / Type 12 GIA"]
[null,null,"Use Class / Type 13","Use Class / Type 13 GIA"]
[null,null,"Use Class / Type 14","Use Class / Type 14 GIA"]
[null,null,"Use Class / Type 15","Use Class / Type 15 GIA"]
[null,null,"Overall GIA (m2)",{"$f":"SUM(D16:D30)","v":0}]
[]
[]
[null,"Circular Economy Design Approaches"]
[null,"Circular Economy Design Approaches for Existing Structures / Buildings",null,"Applicant Response"]
[null,"Is there an existing building on the site?"]
[null,"Is it technically feasible to retain the building(s) in whole or in part?"]
[null,"Are there any building materials or elements available on site that can be used?"]
[null,"Is the existing building, or parts of the building, suited to the requirements for the site?"]
[null,"Is it technically feasible to recover the 'residual value' of the buildings elements or materials?"]
[null,"The preferred strategy is:",null,"NEW BUILDING"]
[null,"The preferred strategy is:",null,"RETAIN and RETROFIT"]
[null,"The preferred strategy is:",null,"PARTIAL RETENTION and REFURBISHMENT"]
[null,"The preferred strategy is:",null,"DISASSEMBLE/DECONSTRUCT AND REUSE"]
[null,"The preferred strategy is:",null,"DEMOLISH/DECONSTRUCT AND RECYCLE"]
[null,"Circular Economy Design Approach","Phase / Building / Area / Layer","Strategic Response"]
[null,"Retain and Retrofit"]
[null,"Partial Retention and Refurbishment"]
[null,"Disassemble and Reuse"]
[null,"Demolish and Recycle"]
[null,"Circular Economy Design Approaches for New Buildings, Infrastructure and Layers Over the Lifetime of the Development",null,"Applicant Response"]
[null,"Is the whole building designed to have a short life on its current site? (e.g. less than 10 yrs)"]
[null,"Is there likely to be a need for building of a similar size (etc.) in different locations in the future?"]
[null,"Is it foreseeable that the building will need to change use/function within its design life?"]
[null,"The preferred strategy is:",null,"Design for BUILDING RELOCATION"]
[null,"The preferred strategy is:",null,"Design for COMPONENT / MATERIAL REUSE"]
[null,"The preferred strategy is:",null,"Design for ADAPTABILITY"]
[null,"All developments should apply the 6 Circular Economy principles, including:",null,"Designing for DISASSEMBLY and ADAPTABILITY, MATERIAL REUSE ON-SITE and/or RECYCLING should be maximised"]
[null,"Circular Economy Design Approach","Phase / Building / Area / Layer","Strategic Response"]
[null,"Building relocation"]
[null,"Component or material reuse"]
[null,"Adaptability"]
[null,"Flexibility"]
[null,"Replaceability"]
[null,"Disassembly"]
[null,"Longevity"]
[]
[]
[]
[null,"Circular Economy Design Principles"]
[null,"Design Principle",null,null,"Phase / Building / Area / Layer",null,"Design Response"]
[null,"Designing out waste",null,"Module A - Product Sourcing and Construction Stage"]
[null,null,null,"Module B - In-Use Stage"]
[null,null,null,"Module C - End-of-Life Stage"]
[null,null,null,"Module D - Benefits and Loads Beyond the System Boundary"]
[null,"Designing for longevity"]
[null,"Designing for adaptability or flexibility"]
[null,"Designing for disassembly"]
[null,"Using systems, elements or materials that can be re-used and recycled"]
[]
[]
[null,"Circular Economy Targets"]
[null,"Circular economy targets for existing and new development",null,"Policy Requirement","Target Aiming For (%)","Policy Met?"]
[null,"Demolition waste materials (non-hazardous)",null,"Minimum of 95% diverted from landfill for reuse, recycling or recovery.",null,{"$f":"IF(ISNUMBER(E84),IF(E84=95%,\"Yes\",IF(E84>95%,\"Exceeds Policy\",\"No\")),\"\")","v":""}]
[null,"Excavation waste materials",null,"Minimum of 95% diverted from landfill for beneficial reuse.",null,{"$f":"IF(ISNUMBER(E85),IF(E85=95%,\"Yes\",IF(E85>95%,\"Exceeds Policy\",\"No\")),\"\")","v":""}]
[null,"Construction waste materials",null,"Minimum of 95% diverted from landfill for reuse, recycling or recovery.",null,{"$f":"IF(ISNUMBER(E86),IF(E86=95%,\"Yes\",IF(E86>95%,\"Exceeds Policy\",\"No\")),\"\")","v":""}]
[null,"Municipal waste",null,"Minimum 65% recycling rate by 2030.",null,{"$f":"IF(ISNUMBER(E87),IF(E87=65%,\"Yes\",IF(E87>65%,\"Exceeds Policy\",\"No\")),\"\")","v":""}]
[null,"Recycled content",null,"Minimum 20% of the building material elements to be comprised of recycled or reused content.",null,{"$f":"IF(ISNUMBER(E88),IF(E88=20%,\"Yes\",IF(E88>20%,\"Exceeds Policy\",\"No\")),\"\")","v":""}]

{"sheet":"Outline Application Stage","index":2,"n_rows":488,"n_cols":26,"rows_kept":488,"cut":false,"hidden":false,"merged":[[81,1,81,2],[80,1,80,2],[461,13,461,16],[197,2,216,3],[197,1,216,1],[107,1,121,1],[123,2,137,3],[139,2,153,3],[139,1,153,1],[123,1,137,1],[83,1,83,2],[82,1,82,2],[370,2,370,3],[391,2,391,3],[175,2,175,3],[275,2,275,3],[487,4,487,5],[487,6,487,8],[484,6,484,8],[485,6,485,8],[486,6,486,8],[88,17,88,21],[88,22,88,25],[481,6,481,8],[482,6,482,8],[483,6,483,8],[480,6,480,8],[76,1,79,2],[88,2,88,3],[462,13,462,16],[462,7,462,8],[461,4,461,6],[461,7,461,12],[462,9,462,10],[462,11,462,12],[88,4,88,11],[88,12,88,16],[89,2,89,3],[90,2,90,3],[106,2,106,3],[122,2,122,3],[91,1,105,1],[91,2,105,3],[0,0,1,6],[3,0,3,5],[4,0,4,2],[4,4,4,5],[72,1,72,3],[73,1,73,3],[74,1,74,3],[75,1,75,3],[75,4,75,11],[70,4,70,11],[328,2,328,3],[349,2,349,3],[218,2,237,3],[276,2,290,3],[329,2,348,3],[196,2,196,3],[217,2,217,3],[238,2,238,3],[254,2,254,3],[155,2,174,3],[138,2,138,3],[107,2,121,3],[155,1,174,1],[176,2,195,3],[176,1,195,1],[154,2,154,3],[276,1,290,1],[292,2,311,3],[292,1,311,1],[313,2,327,3],[313,1,327,1],[291,2,291,3],[312,2,312,3],[218,1,237,1],[239,2,253,3],[239,1,253,1],[255,1,274,1],[255,2,274,3],[434,1,453,1],[434,2,453,3],[433,2,433,3],[392,2,411,3],[392,1,411,1],[413,2,432,3],[413,1,432,1],[412,2,412,3],[329,1,348,1],[350,2,369,3],[350,1,369,1],[371,2,390,3],[371,1,390,1]]}
[]
[]
[]
["Outline Application Stage - Circular Economy Statement"]
[]
[null,null,null,"Project Details"]
[null,null,"Project name"]
[null,null,"Planning application reference number (if applicable)"]
[null,null,"Applicant"]
[null,null,"London Borough"]
[null,null,"Brief description of the project"]
[null,null,"Author/s"]
[null,null,"Date of assessment"]
[null,null,"Number of Use Types"]
[null,null,"Use Class / Type","Floor Area by use type (m2)"]
[null,null,"Use Class / Type 1","Use Class / Type 1 GIA"]
[null,null,"Use Class / Type 2","Use Class / Type 2 GIA"]
[null,null,"Use Class / Type 3","Use Class / Type 3 GIA"]
[null,null,"Use Class / Type 4","Use Class / Type 4 GIA"]
[null,null,"Use Class / Type 5","Use Class / Type 5 GIA"]
[null,null,"Use Class / Type 6","Use Class / Type 6 GIA"]
[null,null,"Use Class / Type 7","Use Class / Type 7 GIA"]
[null,null,"Use Class / Type 8","Use Class / Type 8 GIA"]
[null,null,"Use Class / Type 9","Use Class / Type 9 GIA"]
[null,null,"Use Class / Type 10","Use Class / Type 10 GIA"]
[null,null,"Use Class / Type 11","Use Class / Type 11 GIA"]
[null,null,"Use Class / Type 12","Use Class / Type 12 GIA"]
[null,null,"Use Class / Type 13","Use Class / Type 13 GIA"]
[null,null,"Use Class / Type 14","Use Class / Type 14 GIA"]
[null,null,"Use Class / Type 15","Use Class / Type 15 GIA"]
[null,null,"Overall GIA (m2)",{"$f":"SUM(D16:D30)","v":0}]
[]
[]
[null,"Circular Economy Design Approaches"]
[null,"Circular Economy Design Approaches for Existing Structures / Buildings",null,"Applicant Response"]
[null,"Is there an existing building on the site?"]
[null,"Is it technically feasible to retain the building(s) in whole or in part?"]
[null,"Are there any building materials or elements available on site that can be used?"]
[null,"Is the existing building, or parts of the building, suited to the requirements for the site?"]
[null,"Is it technically feasible to recover the 'residual value' of the buildings elements or materials?"]
[null,"The preferred strategy is:",null,"NEW BUILDING"]
[null,"The preferred strategy is:",null,"RETAIN and RETROFIT"]
[null,"The preferred strategy is:",null,"PARTIAL RETENTION and REFURBISHMENT"]
[null,"The preferred strategy is:",null,"DISASSEMBLE/DECONSTRUCT AND REUSE"]
[null,"The preferred strategy is:",null,"DEMOLISH/DECONSTRUCT AND RECYCLE"]
[null,"Circular Economy Design Approach","Phase/Building/Area/Layer","Strategic Response"]
[null,"Retain and Retrofit"]
[null,"Partial Retention and Refurbishment"]
[null,"Disassemble and Reuse"]
[null,"Demolish and Recycle"]
[null,"Circular Economy Design Approaches for New Buildings, Infrastructure and Layers Over the Lifetime of the Development",null,"Applicant Response"]
[null,"Is the whole building designed to have a short life on its current site? (e.g. less than 10 yrs)"]
[null,"Is there likely to be a need for building of a similar size (etc.) in different locations in the future?"]
[null,"Is it foreseeable that the building will need to change use/function within its design life?"]
[null,"The preferred strategy is:",null,"Design for BUILDING RELOCATION"]
[null,"The preferred strategy is:",null,"Design for COMPONENT / MATERIAL REUSE"]
[null,"The preferred strategy is:",null,"Design for ADAPTABILITY"]
[null,"All developments should apply the 6 Circular Economy principles, including:",null,"Designing for DISASSEMBLY and ADAPTABILITY, MATERIAL REUSE ON-SITE and/or RECYCLING should be maximised"]
[null,"Circular Economy Design Approach","Phase/Building/Area/Layer","Strategic Response"]
[null,"Building relocation"]
[null,"Component or material reuse"]
[null,"Adaptability"]
[null,"Flexibility"]
[null,"Replaceability"]
[null,"Disassembly"]
[null,"Longevity"]
[]
[]
[null,"Circular Economy Design Principles by Building Layer"]
[null,"The Circular Economy Design Principles by Building Layer table should consider where the Applicant seeks to go beyond standard practice. If there are multiple phases / buildings / areas with different measures / strategies, please specify these separately within the table below."]
[null,null,null,null,"Building Layer",null,null,null,null,null,null,null,"Summary","Challenges","Actions & Counter-Actions, Who and When","Plan to Prove and Quantify"]
[null,null,null,null,"Site","Substructure","Superstructure","Shell/Skin","Services","Space ","Stuff","Construction Stuff"]
[null,"1. Is it likely the layer (or components within it) will need to be moved or otherwise modified within 5-15 years, e.g. due to changing use patterns or user requirements?",null,null,"N/A",null,null,null,null,null,null,"N/A"]
[null,"2. Is it likely the layer (or components within it) will need to be changed, upgraded or replaced within 5-15 years, e.g. for improved performance, aesthetics",null,null,"N/A",null,null,null,null,null,null,"N/A"]
[null,"The preferred strategy is:",null,null,"-",{"$f":"IF(F73=\"Yes\",\"Design for FLEXIBILITY\",IF(F74=\"Yes\",\"Design for REPLACEABILITY\",IF(AND(F73=\"No\",F74=\"No\"),\"Design for ADAPTABILITY\",\"\")))","v":""},{"$f":"IF(G73=\"Yes\",\"Design for FLEXIBILITY\",IF(G74=\"Yes\",\"Design for REPLACEABILITY\",IF(AND(G73=\"No\",G74=\"No\"),\"Design for ADAPTABILITY\",\"\")))","v":""},"","","","","-"]
[null,"Design Principles",null,null,"All developments should apply the 6 circular economy principles, including designing for DISASSEMBLY and ADAPTABILITY, MATERIAL REUSE ON-SITE and/or RECYCLING should be maximised."]
[null,"Designing out waste",null,"Module A - Product Sourcing and Construction Stage"]
[null,null,null,"Module B - In-Use Stage"]
[null,null,null,"Module C - End-of-Life Stage"]
[null,null,null,"Module D - Benefits and Loads Beyond the System Boundary"]
[null,"Designing for longevity"]
[null,"Designing for adaptability or flexibility"]
[null,"Designing for disassembly"]
[null,"Using systems, elements or materials that can be re-used and recycled"]
[]
[]
[null,"Bill of Materials"]
[null,"Please click the + symbol to the left hand side of the Bill of Materials table to view or hide the input rows for each Building Element Category. The rows for substructure and frame have been unhidden to highlight this. A fixed number of rows has been provided for each Building Element Category based on a sub-set of typical WLCA submissions. Should the number of rows provided not be sufficient to allow input of all materials for a given Building Element Category, Applicants should prioritise the inclusion of the materials with the highest quantity. "]
[null,null,"BUILDING ELEMENT CATEGORY -  LEVEL 1 (based on the RICS New Rules of\nMeasurement (NRM) classification system level 2 sub-elements https://www.rics.org/globalassets/rics-website/media/products/data-products/bcis-construction/bcis-elemental-standard-form-cost-analysis-4th-nrm-edition-2012.pdf)",null,"PRODUCT AND CONSTRUCTION STAGE (MODULE A)",null,null,null,null,null,null,null,"USE STAGE (MODULE B)",null,null,null,null,"END OF LIFE STAGE (MODULE C)",null,null,null,null,"BENEFITS BEYOND THE SYSTEM BOUNDARY (MODULE D)"]
[null,null,"Building Element Category",null,"Material Type","Material quantity\n(Module A)\n(kg)","Material intensity \n(Module A) \n(kg/m2 GIA)","Performance Indicator (LPG Appendix 1)","Construction Waste Factor \n(Module A)","Construction Waste \n(Module A)\n(kg)","Recycled Content \nby mass (kg)","Recycled Content \nby value (%)","Expected Lifespan\n(years)","Number of Replacements (over assumed 60-year period)","Repair and Replacement quantities of materials\n(Module B)\n (kg)","Construction Waste Factor \n(Module B)","Construction Waste \n(Module B)\n(kg)","Design for Disassembly","Assumed End of Life Scenario\n(Description)","% Reusing ","% Recycling","% Landfill","Estimated reusable materials (kg)","Estimated reusable materials intensity\n(kg/m2 GIA)","Estimated recyclable materials (kg)","Estimated recyclable materials intensity\n(kg/m2 GIA)"]
[null,0.1,"Demolition: Toxic/Hazardous/Contaminated Material Treatment",null,"-",{"$f":"SUM(F92:F106)","v":0},{"$f":"IF(AND(F91<>0,$D$31<>0),F91/$D$31,0)","v":0},"-","-",{"$f":"SUM(J92:J106)","v":0},"-","-","-","-",{"$f":"SUM(O92:O106)","v":0},"-",{"$f":"SUM(Q92:Q106)","v":0},"-","-",{"$f":"IF(W91<>0,W91/($F$91+$O$91),0)","v":0},{"$f":"IF(Y91<>0,Y91/($F$91+$O$91),0)","v":0},{"$f":"1-T91-U91","v":1},{"$f":"SUM(W92:W106)","v":0},{"$f":"IF(AND(W91<>0,$D$31<>0),W91/$D$31,0)","v":0},{"$f":"SUM(Y92:Y106)","v":0},{"$f":"IF(AND(Y91<>0,$D$31<>0),Y91/$D$31,0)","v":0}]
[null,0.1,"Demolition: Toxic/Hazardous/Contaminated Material Treatment",null,null,null,{"$f":"IF(AND(F92<>0,$D$31<>0),F92/$D$31,0)","v":0},"-",0,{"$f":"F92*I92","v":0},null,null,null,{"$f":"IF(M92<>0,INT(59/M92),0)","v":0},{"$f":"F92*N92","v":0},0,{"$f":"O92*P92","v":0},null,null,0,0,{"$f":"1-T92-U92","v":1},{"$f":"T92*(F92+O92)","v":0},{"$f":"IF(AND(W92<>0,$D$31<>0),W92/$D$31,0)","v":0},{"$f":"U92*(F92+O92)","v":0},{"$f":"IF(AND(Y92<>0,$D$31<>0),Y92/$D$31,0)","v":0}]
[null,null,null,null,null,null,{"$f":"IF(AND(F93<>0,$D$31<>0),F93/$D$31,0)","v":0},"-",0,{"$f":"F93*I93","v":0},null,null,null,{"$f":"IF(M93<>0,INT(59/M93),0)","v":0},{"$f":"F93*N93","v":0},0,{"$f":"O93*P93","v":0},null,null,0,0,{"$f":"1-T93-U93","v":1},{"$f":"T93*(F93+O93)","v":0},{"$f":"IF(AND(W93<>0,$D$31<>0),W93/$D$31,0)","v":0},{"$f":"U93*(F93+O93)","v":0},0]
[null,null,null,null,null,null,0,"-",0,0,null,null,null,0,0,0,0,null,null,0,0,1,0,0,0,0]
[null,null,null,null,null,null,0,"-",0,0,null,null,null,0,0,0,0,null,null,0,0,1,0,0,0,0]
[null,null,null,null,null,null,0,"-",0,0,null,null,null,0,0,0,0,null,null,0,0,1,0,0,0,0]
[null,null,null,null,null,null,0,"-",0,0,null,null,null,0,0,0,0,null,null,0,0,1,0,0,0,0]
[null,null,null,null,null,null,0,"-",0,0,null,null,null,0,0,0,0,null,null,0,0,1,0,0,0,0]
[null,null,null,null,null,null,0,"-",0,0,null,null,null,0,0,0,0,null,null,0,0,1,0,0,0,0]
[null,null,null,null,null,null,0,"-",0,0,null,null,null,0,0,0,0,null,null,0,0,1,0,0,0,0]
[null,null,null,null,null,null,0,"-",0,0,null,null,null,0,0,0,0,null,null,0,0,1,0,0,0,0]
[null,null,null,null,null,null,0,"-",0,0,null,null,null,0,0,0,0,null,null,0,0,1,0,0,0,0]
[null,null,null,null,null,null,0,"-",0,0,null,null,null,0,0,0,0,null,null,0,0,1,0,0,0,0]
[null,null,null,null,null,null,0,"-",0,0,null,null,null,0,0,0,0,null,null,0,0,1,0,0,0,0]
[null,null,null,null,null,null,0,"-",0,0,null,null,null,0,0,0,0,null,null,0,0,1,0,0,0,0]
[null,null,null,null,null,null,0,"-",0,0,null,null,null,0,0,0,0,null,null,0,0,1,0,0,0,0]
[null,0.2,"Major Demolition Works",null,"-",{"$f":"SUM(F108:F122)","v":0},{"$f":"IF(AND(F107<>0,$D$31<>0),F107/$D$31,0)","v":0},"-","-",{"$f":"SUM(J108:J122)","v":0},"-","-","-","-",{"$f":"SUM(O108:O122)","v":0},"-",{"$f":"SUM(Q108:Q122)","v":0},"-","-",{"$f":"IF(W107<>0,W107/($F$107+$O$107),0)","v":0},{"$f":"IF(Y107<>0,Y107/($F$107+$O$107),0)","v":0},{"$f":"1-T107-U107","v":1},{"$f":"SUM(W108:W122)","v":0},0,{"$f":"SUM(Y108:Y122)","v":0},0]
[null,0.2,"Major Demolition Works",null,null,null,{"$f":"IF(AND(F108<>0,$D$31<>0),F108/$D$31,0)","v":0},"-",0,{"$f":"I108*F108","v":0},null,null,null,{"$f":"IF(M108<>0,INT(59/M108),0)","v":0},{"$f":"F108*N108","v":0},0,{"$f":"O108*P108","v":0},null,null,0,0,1,0,0,0,0]
[null,null,null,null,null,null,{"$f":"IF(AND(F109<>0,$D$31<>0),F109/$D$31,0)","v":0},"-",0,0,null,null,null,{"$f":"IF(M109<>0,INT(59/M109),0)","v":0},{"$f":"F109*N109","v":0},0,{"$f":"O109*P109","v":0},null,null,0,0,1,0,0,0,0]
[null,null,null,null,null,null,{"$f":"IF(AND(F110<>0,$D$31<>0),F110/$D$31,0)","v":0},"-",0,0,null,null,null,0,0,0,0,null,null,0,0,1,0,0,0,0]
[null,null,null,null,null,null,0,"-",0,0,null,null,null,0,0,0,0,null,null,0,0,1,0,0,0,0]
[null,null,null,null,null,null,0,"-",0,0,null,null,null,0,0,0,0,null,null,0,0,1,0,0,0,0]
[null,null,null,null,null,null,0,"-",0,0,null,null,null,0,0,0,0,null,null,0,0,1,0,0,0,0]
[null,null,null,null,null,null,0,"-",0,0,null,null,null,0,0,0,0,null,null,0,0,1,0,0,0,0]
[null,null,null,null,null,null,0,"-",0,0,null,null,null,0,0,0,0,null,null,0,0,1,0,0,0,0]
[null,null,null,null,null,null,0,"-",0,0,null,null,null,0,0,0,0,null,null,0,0,1,0,0,0,0]
[null,null,null,null,null,null,0,"-",0,0,null,null,null,0,0,0,0,null,null,0,0,1,0,0,0,0]
[null,null,null,null,null,null,0,"-",0,0,null,null,null,0,0,0,0,null,null,0,0,1,0,0,0,0]
[null,null,null,null,null,null,0,"-",0,0,null,null,null,0,0,0,0,null,null,0,0,1,0,0,0,0]
[null,null,null,null,null,null,0,"-",0,0,null,null,null,0,0,0,0,null,null,0,0,1,0,0,0,0]
[null,null,null,null,null,null,0,"-",0,0,null,null,null,0,0,0,0,null,null,0,0,1,0,0,0,0]
[null,null,null,null,null,null,0,"-",0,0,null,null,null,0,0,0,0,null,null,0,0,1,0,0,0,0]
[null,0.3,"Temporary Support to Adjacent Structures",null,"-",{"$f":"SUM(F124:F138)","v":0},{"$f":"IF(AND(F123<>0,$D$31<>0),F123/$D$31,0)","v":0},"-","-",{"$f":"SUM(J124:J138)","v":0},"-","-","-","-",{"$f":"SUM(O124:O138)","v":0},"-",{"$f":"SUM(Q124:Q138)","v":0},"-","-",{"$f":"IF(W123<>0,W123/($F$123+$O$123),0)","v":0},{"$f":"IF(Y123<>0,Y123/($F$123+$O$123),0)","v":0},1,{"$f":"SUM(W124:W138)","v":0},0,{"$f":"SUM(Y124:Y138)","v":0},0]
[null,0.3,"Temporary Support to Adjacent Structures",null,null,null,{"$f":"IF(AND(F124<>0,$D$31<>0),F124/$D$31,0)","v":0},"-",0,{"$f":"I124*F124","v":0},null,null,null,{"$f":"IF(M124<>0,INT(59/M124),0)","v":0},{"$f":"F124*N124","v":0},0,{"$f":"O124*P124","v":0},null,null,0,0,1,0,0,0,0]
[null,null,null,null,null,null,{"$f":"IF(AND(F125<>0,$D$31<>0),F125/$D$31,0)","v":0},"-",0,0,null,null,null,{"$f":"IF(M125<>0,INT(59/M125),0)","v":0},{"$f":"F125*N125","v":0},0,{"$f":"O125*P125","v":0},null,null,0,0,1,0,0,0,0]
[null,null,null,null,null,null,{"$f":"IF(AND(F126<>0,$D$31<>0),F126/$D$31,0)","v":0},"-",0,0,null,null,null,0,0,0,0,null,null,0,0,1,0,0,0,0]
[null,null,null,null,null,null,0,"-",0,0,null,null,null,0,0,0,0,null,null,0,0,1,0,0,0,0]
[null,null,null,null,null,null,0,"-",0,0,null,null,null,0,0,0,0,null,null,0,0,1,0,0,0,0]
[null,null,null,null,null,null,0,"-",0,0,null,null,null,0,0,0,0,null,null,0,0,1,0,0,0,0]
[null,null,null,null,null,null,0,"-",0,0,null,null,null,0,0,0,0,null,null,0,0,1,0,0,0,0]
[null,null,null,null,null,null,0,"-",0,0,null,null,null,0,0,0,0,null,null,0,0,1,0,0,0,0]
[null,null,null,null,null,null,0,"-",0,0,null,null,null,0,0,0,0,null,null,0,0,1,0,0,0,0]
[null,null,null,null,null,null,0,"-",0,0,null,null,null,0,0,0,0,null,null,0,0,1,0,0,0,0]
[null,null,null,null,null,null,0,"-",0,0,null,null,null,0,0,0,0,null,null,0,0,1,0,0,0,0]
[null,null,null,null,null,null,0,"-",0,0,null,null,null,0,0,0,0,null,null,0,0,1,0,0,0,0]
[null,null,null,null,null,null,0,"-",0,0,null,null,null,0,0,0,0,null,null,0,0,1,0,0,0,0]
[null,null,null,null,null,null,0,"-",0,0,null,null,null,0,0,0,0,null,null,0,0,1,0,0,0,0]
[null,null,null,null,null,null,0,"-",0,0,null,null,null,0,0,0,0,null,null,0,0,1,0,0,0,0]
[null,0.4,"Specialist Ground Works",null,"-",{"$f":"SUM(F140:F154)","v":0},{"$f":"IF(AND(F139<>0,$D$31<>0),F139/$D$31,0)","v":0},"-","-",{"$f":"SUM(J140:J154)","v":0},"-","-","-","-",{"$f":"SUM(O140:O154)","v":0},"-",{"$f":"SUM(Q140:Q154)","v":0},"-","-",{"$f":"IF(W139<>0,W139/($F$139+$O$139),0)","v":0},{"$f":"IF(Y139<>0,Y139/($F$139+$O$139),0)","v":0},1,{"$f":"SUM(W140:W154)","v":0},0,{"$f":"SUM(Y140:Y154)","v":0},0]
[null,0.4,"Specialist Ground Works",null,null,null,{"$f":"IF(AND(F140<>0,$D$31<>0),F140/$D$31,0)","v":0},"-",0,{"$f":"I140*F140","v":0},null,null,null,{"$f":"IF(M140<>0,INT(59/M140),0)","v":0},{"$f":"F140*N140","v":0},0,{"$f":"O140*P140","v":0},null,null,0,0,1,0,0,0,0]
[null,null,null,null,null,null,{"$f":"IF(AND(F141<>0,$D$31<>0),F141/$D$31,0)","v":0},"-",0,0,null,null,null,{"$f":"IF(M141<>0,INT(59/M141),0)","v":0},{"$f":"F141*N141","v":0},0,{"$f":"O141*P141","v":0},null,null,0,0,1,0,0,0,0]
[null,null,null,null,null,null,{"$f":"IF(AND(F142<>0,$D$31<>0),F142/$D$31,0)","v":0},"-",0,0,null,null,null,0,0,0,0,null,null,0,0,1,0,0,0,0]
[null,null,null,null,null,null,0,"-",0,0,null,null,null,0,0,0,0,null,null,0,0,1,0,0,0,0]
[null,null,null,null,null,null,0,"-",0,0,null,null,null,0,0,0,0,null,null,0,0,1,0,0,0,0]
[null,null,null,null,null,null,0,"-",0,0,null,null,null,0,0,0,0,null,null,0,0,1,0,0,0,0]
[null,null,null,null,null,null,0,"-",0,0,null,null,null,0,0,0,0,null,null,0,0,1,0,0,0,0]
[null,null,null,null,null,null,0,"-",0,0,null,null,null,0,0,0,0,null,null,0,0,1,0,0,0,0]
[null,null,null,null,null,null,0,"-",0,0,null,null,null,0,0,0,0,null,null,0,0,1,0,0,0,0]
[null,null,null,null,null,null,0,"-",0,0,null,null,null,0,0,0,0,null,null,0,0,1,0,0,0,0]
[null,null,null,null,null,null,0,"-",0,0,null,null,null,0,0,0,0,null,null,0,0,1,0,0,0,0]
[null,null,null,null,null,null,0,"-",0,0,null,null,null,0,0,0,0,null,null,0,0,1,0,0,0,0]
[null,null,null,null,null,null,0,"-",0,0,null,null,null,0,0,0,0,null,null,0,0,1,0,0,0,0]
[null,null,null,null,null,null,0,"-",0,0,null,null,null,0,0,0,0,null,null,0,0,1,0,0,0,0]
[null,null,null,null,null,null,0,"-",0,0,null,null,null,0,0,0,0,null,null,0,0,1,0,0,0,0]
[null,1,"Substructure",null,"-",{"$f":"SUM(F156:F175)","v":0},{"$f":"IF(AND(F155<>0,$D$31<>0),F155/$D$31,0)","v":0},{"$f":"SUMPRODUCT((C91:D454=\"Substructure\")*G91:G454)","v":0},"-",{"$f":"SUM(J156:J175)","v":0},"-","-","-","-",{"$f":"SUM(O156:O175)","v":0},"-",{"$f":"SUM(Q156:Q175)","v":0},"-","-",{"$f":"IF(W155<>0,W155/($F$155+$O$155),0)","v":0},{"$f":"IF(Y155<>0,Y155/($F$155+$O$155),0)","v":0},1,{"$f":"SUM(W156:W175)","v":0},0,{"$f":"SUM(Y156:Y175)","v":0},0]
[null,1,"Substructure",null,null,null,{"$f":"IF(AND(F156<>0,$D$31<>0),F156/$D$31,0)","v":0},"-",0,{"$f":"I156*F156","v":0},null,null,null,{"$f":"IF(M156<>0,INT(59/M156),0)","v":0},{"$f":"F156*N156","v":0},0,{"$f":"O156*P156","v":0},null,null,0,0,1,{"$f":"T156*(F156+O156)","v":0},0,{"$f":"U156*(F156+O156)","v":0},0]
[null,null,null,null,null,null,{"$f":"IF(AND(F157<>0,$D$31<>0),F157/$D$31,0)","v":0},"-",0,0,null,null,null,{"$f":"IF(M157<>0,INT(59/M157),0)","v":0},{"$f":"F157*N157","v":0},0,{"$f":"O157*P157","v":0},null,null,0,0,{"$f":"1-T157-U157","v":1},0,{"$f":"IF(AND(W157<>0,$D$31<>0),W157/$D$31,0)","v":0},0,0]
[null,null,null,null,null,null,{"$f":"IF(AND(F158<>0,$D$31<>0),F158/$D$31,0)","v":0},"-",0,0,null,null,null,0,0,0,0,null,null,0,0,1,0,0,0,0]
[null,null,null,null,null,null,0,"-",0,0,null,null,null,0,0,0,0,null,null,0,0,1,0,0,0,0]
[null,null,null,null,null,null,0,"-",0,0,null,null,null,0,0,0,0,null,null,0,0,1,0,0,0,0]
[null,null,null,null,null,null,0,"-",0,0,null,null,null,0,0,0,0,null,null,0,0,1,0,0,0,0]
[null,null,null,null,null,null,0,"-",0,0,null,null,null,0,0,0,0,null,null,0,0,1,0,0,0,0]
[null,null,null,null,null,null,0,"-",0,0,null,null,null,0,0,0,0,null,null,0,0,1,0,0,0,0]
[null,null,null,null,null,null,0,"-",0,0,null,null,null,0,0,0,0,null,null,0,0,1,0,0,0,0]
[null,null,null,null,null,null,0,"-",0,0,null,null,null,0,0,0,0,null,null,0,0,1,0,0,0,0]
[null,null,null,null,null,null,0,"-",0,0,null,null,null,0,0,0,0,null,null,0,0,1,0,0,0,0]
[null,null,null,null,null,null,0,"-",0,0,null,null,null,0,0,0,0,null,null,0,0,1,0,0,0,0]
[null,null,null,null,null,null,0,"-",0,0,null,null,null,0,0,0,0,null,null,0,0,1,0,0,0,0]
[null,null,null,null,null,null,0,"-",0,0,null,null,null,0,0,0,0,null,null,0,0,1,0,0,0,0]
[null,null,null,null,null,null,{"$f":"IF(AND(F170<>0,$D$31<>0),F170/$D$31,0)","v":0},"-",0,0,null,null,null,0,0,0,0,null,null,0,0,1,0,0,0,0]
[null,null,null,null,null,null,{"$f":"IF(AND(F171<>0,$D$31<>0),F171/$D$31,0)","v":0},"-",0,0,null,null,null,0,0,0,0,null,null,0,0,1,0,0,0,0]
[null,null,null,null,null,null,{"$f":"IF(AND(F172<>0,$D$31<>0),F172/$D$31,0)","v":0},"-",0,0,null,null,null,0,0,0,0,null,null,0,0,1,0,0,0,0]
[null,null,null,null,null,null,0,"-",0,0,null,null,null,0,0,0,0,null,null,0,0,1,0,0,0,0]
[null,null,null,null,null,null,0,"-",0,0,null,null,null,0,0,0,0,null,null,0,0,1,0,0,0,0]
[null,null,null,null,null,null,{"$f":"IF(AND(F175<>0,$D$31<>0),F175/$D$31,0)","v":0},"-",0,0,null,null,null,{"$f":"IF(M175<>0,INT(59/M175),0)","v":0},0,0,0,null,null,0,0,1,0,0,0,0]
[null,2.1,"Superstructure: Frame",null,"-",{"$f":"SUM(F177:F196)","v":0},{"$f":"IF(AND(F176<>0,$D$31<>0),F176/$D$31,0)","v":0},{"$f":"SUMPRODUCT((C91:D454=\"Superstructure: Frame\")*G91:G454)","v":0},"-",{"$f":"SUM(J177:J196)","v":0},"-","-","-","-",{"$f":"SUM(O177:O196)","v":0},"-",{"$f":"SUM(Q177:Q196)","v":0},"-","-",{"$f":"IF(W176<>0,W176/($F$176+$O$176),0)","v":0},{"$f":"IF(Y176<>0,Y176/($F$176+$O$176),0)","v":0},1,{"$f":"SUM(W177:W196)","v":0},0,{"$f":"SUM(Y177:Y196)","v":0},0]
[null,2.1,"Superstructure: Frame",null,null,null,{"$f":"IF(AND(F177<>0,$D$31<>0),F177/$D$31,0)","v":0},"-",0,{"$f":"I177*F177","v":0},null,null,null,{"$f":"IF(M177<>0,INT(59/M177),0)","v":0},{"$f":"F177*N177","v":0},0,{"$f":"O177*P177","v":0},null,null,0,0,1,{"$f":"T177*(F177+O177)","v":0},0,{"$f":"U177*(F177+O177)","v":0},0]
[null,null,null,null,null,null,{"$f":"IF(AND(F178<>0,$D$31<>0),F178/$D$31,0)","v":0},"-",0,0,null,null,null,{"$f":"IF(M178<>0,INT(59/M178),0)","v":0},{"$f":"F178*N178","v":0},0,{"$f":"O178*P178","v":0},null,null,0,0,1,0,0,0,0]
[null,null,null,null,null,null,{"$f":"IF(AND(F179<>0,$D$31<>0),F179/$D$31,0)","v":0},"-",0,0,null,null,null,0,0,0,0,null,null,0,0,1,0,0,0,0]
[null,null,null,null,null,null,0,"-",0,0,null,null,null,0,0,0,0,null,null,0,0,1,0,0,0,0]
[null,null,null,null,null,null,0,"-",0,0,null,null,null,0,0,0,0,null,null,0,0,1,0,0,0,0]
[null,null,null,null,null,null,0,"-",0,0,null,null,null,0,0,0,0,null,null,0,0,1,0,0,0,0]
[null,null,null,null,null,null,0,"-",0,0,null,null,null,0,0,0,0,null,null,0,0,1,0,0,0,0]
[null,null,null,null,null,null,0,"-",0,0,null,null,null,0,0,0,0,null,null,0,0,1,0,0,0,0]
[null,null,null,null,null,null,0,"-",0,0,null,null,null,0,0,0,0,null,null,0,0,1,0,0,0,0]
[null,null,null,null,null,null,0,"-",0,0,null,null,null,0,0,0,0,null,null,0,0,1,0,0,0,0]
[null,null,null,null,null,null,0,"-",0,0,null,null,null,0,0,0,0,null,null,0,0,1,0,0,0,0]
[null,null,null,null,null,null,0,"-",0,0,null,null,null,0,0,0,0,null,null,0,0,1,0,0,0,0]
[null,null,null,null,null,null,0,"-",0,0,null,null,null,0,0,0,0,null,null,0,0,1,0,0,0,0]
[null,null,null,null,null,null,0,"-",0,0,null,null,null,0,0,0,0,null,null,0,0,1,0,0,0,0]
[null,null,null,null,null,null,{"$f":"IF(AND(F191<>0,$D$31<>0),F191/$D$31,0)","v":0},"-",0,0,null,null,null,0,0,0,0,null,null,0,0,1,0,0,0,0]
[null,null,null,null,null,null,{"$f":"IF(AND(F192<>0,$D$31<>0),F192/$D$31,0)","v":0},"-",0,0,null,null,null,0,0,0,0,null,null,0,0,1,0,0,0,0]
[null,null,null,null,null,null,{"$f":"IF(AND(F193<>0,$D$31<>0),F193/$D$31,0)","v":0},"-",0,0,null,null,null,0,0,0,0,null,null,0,0,1,0,0,0,0]
[null,null,null,null,null,null,{"$f":"IF(AND(F194<>0,$D$31<>0),F194/$D$31,0)","v":0},"-",0,0,null,null,null,0,0,0,0,null,null,0,0,1,0,0,0,0]
[null,null,null,null,null,null,0,"-",0,0,null,null,null,0,0,0,0,null,null,0,0,1,0,0,0,0]
[null,null,null,null,null,null,0,"-",0,0,null,null,null,0,0,0,0,null,null,0,0,1,0,0,0,0]
[null,2.2000000000000002,"Superstructure: Upper Floors",null,"-",{"$f":"SUM(F198:F217)","v":0},{"$f":"IF(AND(F197<>0,$D$31<>0),F197/$D$31,0)","v":0},{"$f":"SUMPRODUCT((C176:D459=\"Superstructure: Upper Floors\")*G176:G459)","v":0},"-",{"$f":"SUM(J198:J217)","v":0},"-","-","-","-",{"$f":"SUM(O198:O217)","v":0},"-",{"$f":"SUM(Q198:Q217)","v":0},"-","-",{"$f":"IF(W197<>0,W197/($F$197+$O$197),0)","v":0},{"$f":"IF(Y197<>0,Y197/($F$197+$O$197),0)","v":0},1,{"$f":"SUM(W198:W217)","v":0},0,{"$f":"SUM(Y198:Y217)","v":0},0]
[null,2.2000000000000002,"Superstructure: Upper Floors",null,null,null,{"$f":"IF(AND(F198<>0,$D$31<>0),F198/$D$31,0)","v":0},"-",0,{"$f":"I198*F198","v":0},null,null,null,{"$f":"IF(M198<>0,INT(59/M198),0)","v":0},{"$f":"F198*N198","v":0},0,{"$f":"O198*P198","v":0},null,null,0,0,1,{"$f":"T198*(F198+O198)","v":0},0,{"$f":"U198*(F198+O198)","v":0},0]
[null,null,null,null,null,null,{"$f":"IF(AND(F199<>0,$D$31<>0),F199/$D$31,0)","v":0},"-",0,0,null,null,null,{"$f":"IF(M199<>0,INT(59/M199),0)","v":0},{"$f":"F199*N199","v":0},0,{"$f":"O199*P199","v":0},null,null,0,0,1,0,0,0,0]
[null,null,null,null,null,null,{"$f":"IF(AND(F200<>0,$D$31<>0),F200/$D$31,0)","v":0},"-",0,0,null,null,null,0,0,0,0,null,null,0,0,1,0,0,0,0]
[null,null,null,null,null,null,0,"-",0,0,null,null,null,0,0,0,0,null,null,0,0,1,0,0,0,0]
[null,null,null,null,null,null,0,"-",0,0,null,null,null,0,0,0,0,null,null,0,0,1,0,0,0,0]
[null,null,null,null,null,null,0,"-",0,0,null,null,null,0,0,0,0,null,null,0,0,1,0,0,0,0]
[null,null,null,null,null,null,0,"-",0,0,null,null,null,0,0,0,0,null,null,0,0,1,0,0,0,0]
[null,null,null,null,null,null,0,"-",0,0,null,null,null,0,0,0,0,null,null,0,0,1,0,0,0,0]
[null,null,null,null,null,null,0,"-",0,0,null,null,null,0,0,0,0,null,null,0,0,1,0,0,0,0]
[null,null,null,null,null,null,0,"-",0,0,null,null,null,0,0,0,0,null,null,0,0,1,0,0,0,0]
[null,null,null,null,null,null,0,"-",0,0,null,null,null,0,0,0,0,null,null,0,0,1,0,0,0,0]
[null,null,null,null,null,null,0,"-",0,0,null,null,null,0,0,0,0,null,null,0,0,1,0,0,0,0]
[null,null,null,null,null,null,0,"-",0,0,null,null,null,0,0,0,0,null,null,0,0,1,0,0,0,0]
[null,null,null,null,null,null,0,"-",0,0,null,null,null,0,0,0,0,null,null,0,0,1,0,0,0,0]
[null,null,null,null,null,null,{"$f":"IF(AND(F212<>0,$D$31<>0),F212/$D$31,0)","v":0},"-",0,0,null,null,null,0,0,0,0,null,null,0,0,1,0,0,0,0]
[null,null,null,null,null,null,{"$f":"IF(AND(F213<>0,$D$31<>0),F213/$D$31,0)","v":0},"-",0,0,null,null,null,0,0,0,0,null,null,0,0,1,0,0,0,0]
[null,null,null,null,null,null,{"$f":"IF(AND(F214<>0,$D$31<>0),F214/$D$31,0)","v":0},"-",0,0,null,null,null,0,0,0,0,null,null,0,0,1,0,0,0,0]
[null,null,null,null,null,null,{"$f":"IF(AND(F215<>0,$D$31<>0),F215/$D$31,0)","v":0},"-",0,0,null,null,null,0,0,0,0,null,null,0,0,1,0,0,0,0]
[null,null,null,null,null,null,0,"-",0,0,null,null,null,0,0,0,0,null,null,0,0,1,0,0,0,0]
[null,null,null,null,null,null,0,"-",0,{"$f":"I217*F217","v":0},null,null,null,0,0,0,0,null,null,0,0,1,0,0,0,0]
[null,2.2999999999999998,"Superstructure: Roof",null,"-",{"$f":"SUM(F219:F238)","v":0},{"$f":"IF(AND(F218<>0,$D$31<>0),F218/$D$31,0)","v":0},{"$f":"SUMPRODUCT((C91:D454=\"Superstructure: Roof\")*G91:G454)","v":0},"-",{"$f":"SUM(J219:J238)","v":0},"-","-","-","-",{"$f":"SUM(O219:O238)","v":0},"-",{"$f":"SUM(Q219:Q238)","v":0},"-","-",{"$f":"IF(W218<>0,W218/($F$218+$O$218),0)","v":0},{"$f":"IF(Y218<>0,Y218/($F$218+$O$218),0)","v":0},1,{"$f":"SUM(W219:W238)","v":0},0,{"$f":"SUM(Y219:Y238)","v":0},0]
[null,2.2999999999999998,"Superstructure: Roof",null,null,null,{"$f":"IF(AND(F219<>0,$D$31<>0),F219/$D$31,0)","v":0},"-",0,{"$f":"I219*F219","v":0},null,null,null,{"$f":"IF(M219<>0,INT(59/M219),0)","v":0},{"$f":"F219*N219","v":0},0,{"$f":"O219*P219","v":0},null,null,0,0,1,{"$f":"T219*(F219+O219)","v":0},0,{"$f":"U219*(F219+O219)","v":0},0]
[null,null,null,null,null,null,{"$f":"IF(AND(F220<>0,$D$31<>0),F220/$D$31,0)","v":0},"-",0,0,null,null,null,{"$f":"IF(M220<>0,INT(59/M220),0)","v":0},{"$f":"F220*N220","v":0},0,{"$f":"O220*P220","v":0},null,null,0,0,1,0,0,0,0]
[null,null,null,null,null,null,{"$f":"IF(AND(F221<>0,$D$31<>0),F221/$D$31,0)","v":0},"-",0,0,null,null,null,0,0,0,0,null,null,0,0,{"$f":"1-T221-U221","v":1},0,{"$f":"IF(AND(W221<>0,$D$31<>0),W221/$D$31,0)","v":0},0,0]
[null,null,null,null,null,null,0,"-",0,0,null,null,null,0,0,0,0,null,null,0,0,1,0,0,0,0]
[null,null,null,null,null,null,0,"-",0,0,null,null,null,0,0,0,0,null,null,0,0,1,0,0,0,0]
[null,null,null,null,null,null,0,"-",0,0,null,null,null,0,0,0,0,null,null,0,0,1,0,0,0,0]
[null,null,null,null,null,null,0,"-",0,0,null,null,null,0,0,0,0,null,null,0,0,1,0,0,0,0]
[null,null,null,null,null,null,0,"-",0,0,null,null,null,0,0,0,0,null,null,0,0,1,0,0,0,0]
[null,null,null,null,null,null,0,"-",0,0,null,null,null,0,0,0,0,null,null,0,0,1,0,0,0,0]
[null,null,null,null,null,null,0,"-",0,0,null,null,null,0,0,0,0,null,null,0,0,1,0,0,0,0]
[null,null,null,null,null,null,0,"-",0,0,null,null,null,0,0,0,0,null,null,0,0,1,0,0,0,0]
[null,null,null,null,null,null,0,"-",0,0,null,null,null,0,0,0,0,null,null,0,0,1,0,0,0,0]
[null,null,null,null,null,null,0,"-",0,0,null,null,null,0,0,0,0,null,null,0,0,1,0,0,0,0]
[null,null,null,null,null,null,0,"-",0,0,null,null,null,0,0,0,0,null,null,0,0,1,0,0,0,0]
[null,null,null,null,null,null,{"$f":"IF(AND(F233<>0,$D$31<>0),F233/$D$31,0)","v":0},"-",0,0,null,null,null,0,0,0,0,null,null,0,0,1,0,0,0,0]
[null,null,null,null,null,null,{"$f":"IF(AND(F234<>0,$D$31<>0),F234/$D$31,0)","v":0},"-",0,0,null,null,null,0,0,0,0,null,null,0,0,1,0,0,0,0]
[null,null,null,null,null,null,{"$f":"IF(AND(F235<>0,$D$31<>0),F235/$D$31,0)","v":0},"-",0,0,null,null,null,0,0,0,0,null,null,0,0,1,0,0,0,0]
[null,null,null,null,null,null,{"$f":"IF(AND(F236<>0,$D$31<>0),F236/$D$31,0)","v":0},"-",0,0,null,null,null,0,0,0,0,null,null,0,0,1,0,0,0,0]
[null,null,null,null,null,null,0,"-",0,0,null,null,null,0,0,0,0,null,null,0,0,1,0,0,0,0]
[null,null,null,null,null,null,0,"-",0,0,null,null,null,0,0,0,0,null,null,0,0,1,0,0,0,0]
[null,2.4,"Superstructure: Stairs and Ramps",null,"-",{"$f":"SUM(F240:F254)","v":0},{"$f":"IF(AND(F239<>0,$D$31<>0),F239/$D$31,0)","v":0},"-","-",{"$f":"SUM(J240:J254)","v":0},"-","-","-","-",{"$f":"SUM(O240:O254)","v":0},"-",{"$f":"SUM(Q240:Q254)","v":0},"-","-",{"$f":"IF(W239<>0,W239/($F$239+$O$239),0)","v":0},{"$f":"IF(Y239<>0,Y239/($F$239+$O$239),0)","v":0},1,{"$f":"SUM(W240:W254)","v":0},0,{"$f":"SUM(Y240:Y254)","v":0},0]
[null,2.4,"Superstructure: Stairs and Ramps",null,null,null,{"$f":"IF(AND(F240<>0,$D$31<>0),F240/$D$31,0)","v":0},"-",0,{"$f":"I240*F240","v":0},null,null,null,{"$f":"IF(M240<>0,INT(59/M240),0)","v":0},{"$f":"F240*N240","v":0},0,{"$f":"O240*P240","v":0},null,null,0,0,1,0,0,0,0]
[null,null,null,null,null,null,{"$f":"IF(AND(F241<>0,$D$31<>0),F241/$D$31,0)","v":0},"-",0,0,null,null,null,{"$f":"IF(M241<>0,INT(59/M241),0)","v":0},{"$f":"F241*N241","v":0},0,{"$f":"O241*P241","v":0},null,null,0,0,1,0,0,0,0]
[null,null,null,null,null,null,{"$f":"IF(AND(F242<>0,$D$31<>0),F242/$D$31,0)","v":0},"-",0,0,null,null,null,0,0,0,0,null,null,0,0,1,0,0,0,0]
[null,null,null,null,null,null,0,"-",0,0,null,null,null,0,0,0,0,null,null,0,0,1,0,0,0,0]
[null,null,null,null,null,null,0,"-",0,0,null,null,null,0,0,0,0,null,null,0,0,1,0,0,0,0]
[null,null,null,null,null,null,0,"-",0,0,null,null,null,0,0,0,0,null,null,0,0,1,0,0,0,0]
[null,null,null,null,null,null,0,"-",0,0,null,null,null,0,0,0,0,null,null,0,0,1,0,0,0,0]
[null,null,null,null,null,null,0,"-",0,0,null,null,null,0,0,0,0,null,null,0,0,1,0,0,0,0]
[null,null,null,null,null,null,0,"-",0,0,null,null,null,0,0,0,0,null,null,0,0,1,0,0,0,0]
[null,null,null,null,null,null,0,"-",0,0,null,null,null,0,0,0,0,null,null,0,0,1,0,0,0,0]
[null,null,null,null,null,null,0,"-",0,0,null,null,null,0,0,0,0,null,null,0,0,1,0,0,0,0]
[null,null,null,null,null,null,0,"-",0,0,null,null,null,0,0,0,0,null,null,0,0,1,0,0,0,0]
[null,null,null,null,null,null,0,"-",0,0,null,null,null,0,0,0,0,null,null,0,0,1,0,0,0,0]
[null,null,null,null,null,null,0,"-",0,0,null,null,null,0,0,0,0,null,null,0,0,1,0,0,0,0]
[null,null,null,null,null,null,{"$f":"IF(AND(F254<>0,$D$31<>0),F254/$D$31,0)","v":0},"-",0,0,null,null,null,0,0,0,0,null,null,0,0,1,0,0,0,0]
[null,2.5,"Superstructure: External Walls",null,"-",{"$f":"SUM(F256:F275)","v":0},{"$f":"IF(AND(F255<>0,$D$31<>0),F255/$D$31,0)","v":0},{"$f":"SUMPRODUCT((C91:D454=\"Superstructure: External Walls\")*G91:G454)+SUMPRODUCT((C91:D454=\"Superstructure: Windows and External Doors\")*G91:G454)","v":0},"-",{"$f":"SUM(J256:J275)","v":0},"-","-","-","-",{"$f":"SUM(O256:O275)","v":0},"-",{"$f":"SUM(Q256:Q275)","v":0},"-","-",{"$f":"IF(W255<>0,W255/($F$255+$O$255),0)","v":0},{"$f":"IF(Y255<>0,Y255/($F$255+$O$255),0)","v":0},1,{"$f":"SUM(W256:W275)","v":0},0,{"$f":"SUM(Y256:Y275)","v":0},0]
[null,2.5,"Superstructure: External Walls",null,null,null,{"$f":"IF(AND(F256<>0,$D$31<>0),F256/$D$31,0)","v":0},"-",0,{"$f":"I256*F256","v":0},null,null,null,{"$f":"IF(M256<>0,INT(59/M256),0)","v":0},{"$f":"F256*N256","v":0},0,{"$f":"O256*P256","v":0},null,null,0,0,1,{"$f":"T256*(F256+O256)","v":0},0,{"$f":"U256*(F256+O256)","v":0},0]
[null,null,null,null,null,null,{"$f":"IF(AND(F257<>0,$D$31<>0),F257/$D$31,0)","v":0},"-",0,0,null,null,null,{"$f":"IF(M257<>0,INT(59/M257),0)","v":0},{"$f":"F257*N257","v":0},0,{"$f":"O257*P257","v":0},null,null,0,0,1,0,0,0,0]
[null,null,null,null,null,null,{"$f":"IF(AND(F258<>0,$D$31<>0),F258/$D$31,0)","v":0},"-",0,0,null,null,null,0,0,0,0,null,null,0,0,1,0,0,0,0]
[null,null,null,null,null,null,0,"-",0,0,null,null,null,0,0,0,0,null,null,0,0,1,0,0,0,0]
[null,null,null,null,null,null,0,"-",0,0,null,null,null,0,0,0,0,null,null,0,0,1,0,0,0,0]
[null,null,null,null,null,null,0,"-",0,0,null,null,null,0,0,0,0,null,null,0,0,1,0,0,0,0]
[null,null,null,null,null,null,0,"-",0,0,null,null,null,0,0,0,0,null,null,0,0,1,0,0,0,0]
[null,null,null,null,null,null,0,"-",0,0,null,null,null,0,0,0,0,null,null,0,0,1,0,0,0,0]
[null,null,null,null,null,null,0,"-",0,0,null,null,null,0,0,0,0,null,null,0,0,1,0,0,0,0]
[null,null,null,null,null,null,0,"-",0,0,null,null,null,0,0,0,0,null,null,0,0,1,0,0,0,0]
[null,null,null,null,null,null,0,"-",0,0,null,null,null,0,0,0,0,null,null,0,0,1,0,0,0,0]
[null,null,null,null,null,null,0,"-",0,0,null,null,null,0,0,0,0,null,null,0,0,1,0,0,0,0]
[null,null,null,null,null,null,0,"-",0,0,null,null,null,0,0,0,0,null,null,0,0,1,0,0,0,0]
[null,null,null,null,null,null,0,"-",0,0,null,null,null,0,0,0,0,null,null,0,0,1,0,0,0,0]
[null,null,null,null,null,null,{"$f":"IF(AND(F270<>0,$D$31<>0),F270/$D$31,0)","v":0},"-",0,0,null,null,null,0,0,0,0,null,null,0,0,1,0,0,0,0]
[null,null,null,null,null,null,{"$f":"IF(AND(F271<>0,$D$31<>0),F271/$D$31,0)","v":0},"-",0,0,null,null,null,0,0,0,0,null,null,0,0,1,0,0,0,0]
[null,null,null,null,null,null,{"$f":"IF(AND(F272<>0,$D$31<>0),F272/$D$31,0)","v":0},"-",0,0,null,null,null,0,0,0,0,null,null,0,0,1,0,0,0,0]
[null,null,null,null,null,null,{"$f":"IF(AND(F273<>0,$D$31<>0),F273/$D$31,0)","v":0},"-",0,0,null,null,null,0,0,0,0,null,null,0,0,1,0,0,0,0]
[null,null,null,null,null,null,0,"-",0,0,null,null,null,0,0,0,0,null,null,0,0,1,0,0,0,0]
[null,null,null,null,null,null,0,"-",0,0,null,null,null,0,0,0,0,null,null,0,0,1,0,0,0,0]
[null,2.6,"Superstructure: Windows and External Doors",null,"-",{"$f":"SUM(F277:F291)","v":0},{"$f":"IF(AND(F276<>0,$D$31<>0),F276/$D$31,0)","v":0},{"$f":"SUMPRODUCT((C91:D454=\"Superstructure: External Walls\")*G91:G454)+SUMPRODUCT((C91:D454=\"Superstructure: Windows and External Doors\")*G91:G454)","v":0},"-",{"$f":"SUM(J277:J291)","v":0},"-","-","-","-",{"$f":"SUM(O277:O291)","v":0},"-",{"$f":"SUM(Q277:Q291)","v":0},"-","-",{"$f":"IF(W276<>0,W276/($F$276+$O$276),0)","v":0},{"$f":"IF(Y276<>0,Y276/($F$276+$O$276),0)","v":0},1,{"$f":"SUM(W277:W291)","v":0},0,{"$f":"SUM(Y277:Y291)","v":0},0]
[null,2.6,"Superstructure: Windows and External Doors",null,null,null,{"$f":"IF(AND(F277<>0,$D$31<>0),F277/$D$31,0)","v":0},"-",0,{"$f":"I277*F277","v":0},null,null,null,{"$f":"IF(M277<>0,INT(59/M277),0)","v":0},{"$f":"F277*N277","v":0},0,{"$f":"O277*P277","v":0},null,null,0,0,1,{"$f":"T277*(F277+O277)","v":0},0,{"$f":"U277*(F277+O277)","v":0},0]
[null,null,null,null,null,null,{"$f":"IF(AND(F278<>0,$D$31<>0),F278/$D$31,0)","v":0},"-",0,0,null,null,null,{"$f":"IF(M278<>0,INT(59/M278),0)","v":0},{"$f":"F278*N278","v":0},0,{"$f":"O278*P278","v":0},null,null,0,0,1,0,0,0,0]
[null,null,null,null,null,null,{"$f":"IF(AND(F279<>0,$D$31<>0),F279/$D$31,0)","v":0},"-",0,0,null,null,null,0,0,0,0,null,null,0,0,1,0,0,0,0]
[null,null,null,null,null,null,0,"-",0,0,null,null,null,0,0,0,0,null,null,0,0,1,0,0,0,0]
[null,null,null,null,null,null,0,"-",0,0,null,null,null,0,0,0,0,null,null,0,0,1,0,0,0,0]
[null,null,null,null,null,null,0,"-",0,0,null,null,null,0,0,0,0,null,null,0,0,1,0,0,0,0]
[null,null,null,null,null,null,0,"-",0,0,null,null,null,0,0,0,0,null,null,0,0,1,0,0,0,0]
[null,null,null,null,null,null,0,"-",0,0,null,null,null,0,0,0,0,null,null,0,0,1,0,0,0,0]
[null,null,null,null,null,null,0,"-",0,0,null,null,null,0,0,0,0,null,null,0,0,{"$f":"1-T285-U285","v":1},0,{"$f":"IF(AND(W285<>0,$D$31<>0),W285/$D$31,0)","v":0},0,0]
[null,null,null,null,null,null,0,"-",0,0,null,null,null,0,0,0,0,null,null,0,0,1,0,0,0,0]
[null,null,null,null,null,null,0,"-",0,0,null,null,null,0,0,0,0,null,null,0,0,1,0,0,0,0]
[null,null,null,null,null,null,0,"-",0,0,null,null,null,0,0,0,0,null,null,0,0,1,0,0,0,0]
[null,null,null,null,null,null,0,"-",0,0,null,null,null,0,0,0,0,null,null,0,0,1,0,0,0,0]
[null,null,null,null,null,null,0,"-",0,0,null,null,null,0,0,0,0,null,null,0,0,1,0,0,0,0]
[null,null,null,null,null,null,{"$f":"IF(AND(F291<>0,$D$31<>0),F291/$D$31,0)","v":0},"-",0,0,null,null,null,0,0,0,0,null,null,0,0,1,0,0,0,0]
[null,2.7,"Superstructure: Internal Walls and Partitions",null,"-",{"$f":"SUM(F293:F312)","v":0},{"$f":"IF(AND(F292<>0,$D$31<>0),F292/$D$31,0)","v":0},{"$f":"SUMPRODUCT((C91:D454=\"Superstructure: Internal Doors\")*G91:G454)+SUMPRODUCT((C91:D454=\"Superstructure: Internal Walls and Partitions\")*G91:G454)","v":0},"-",{"$f":"SUM(J293:J312)","v":0},"-","-","-","-",{"$f":"SUM(O293:O312)","v":0},"-",{"$f":"SUM(Q293:Q312)","v":0},"-","-",{"$f":"IF(W292<>0,W292/($F$292+$O$292),0)","v":0},{"$f":"IF(Y292<>0,Y292/($F$292+$O$292),0)","v":0},1,{"$f":"SUM(W293:W312)","v":0},0,{"$f":"SUM(Y293:Y312)","v":0},0]
[null,2.7,"Superstructure: Internal Walls and Partitions",null,null,null,{"$f":"IF(AND(F293<>0,$D$31<>0),F293/$D$31,0)","v":0},"-",0,{"$f":"I293*F293","v":0},null,null,null,{"$f":"IF(M293<>0,INT(59/M293),0)","v":0},{"$f":"F293*N293","v":0},0,{"$f":"O293*P293","v":0},null,null,0,0,1,{"$f":"T293*(F293+O293)","v":0},0,{"$f":"U293*(F293+O293)","v":0},0]
[null,null,null,null,null,null,{"$f":"IF(AND(F294<>0,$D$31<>0),F294/$D$31,0)","v":0},"-",0,0,null,null,null,{"$f":"IF(M294<>0,INT(59/M294),0)","v":0},{"$f":"F294*N294","v":0},0,{"$f":"O294*P294","v":0},null,null,0,0,1,0,0,0,0]
[null,null,null,null,null,null,{"$f":"IF(AND(F295<>0,$D$31<>0),F295/$D$31,0)","v":0},"-",0,0,null,null,null,0,0,0,0,null,null,0,0,1,0,0,0,0]
[null,null,null,null,null,null,0,"-",0,0,null,null,null,0,0,0,0,null,null,0,0,1,0,0,0,0]
[null,null,null,null,null,null,0,"-",0,0,null,null,null,0,0,0,0,null,null,0,0,1,0,0,0,0]
[null,null,null,null,null,null,0,"-",0,0,null,null,null,0,0,0,0,null,null,0,0,1,0,0,0,0]
[null,null,null,null,null,null,0,"-",0,0,null,null,null,0,0,0,0,null,null,0,0,1,0,0,0,0]
[null,null,null,null,null,null,0,"-",0,0,null,null,null,0,0,0,0,null,null,0,0,1,0,0,0,0]
[null,null,null,null,null,null,0,"-",0,0,null,null,null,0,0,0,0,null,null,0,0,1,0,0,0,0]
[null,null,null,null,null,null,0,"-",0,0,null,null,null,0,0,0,0,null,null,0,0,1,0,0,0,0]
[null,null,null,null,null,null,0,"-",0,0,null,null,null,0,0,0,0,null,null,0,0,1,0,0,0,0]
[null,null,null,null,null,null,0,"-",0,0,null,null,null,0,0,0,0,null,null,0,0,1,0,0,0,0]
[null,null,null,null,null,null,0,"-",0,0,null,null,null,0,0,0,0,null,null,0,0,1,0,0,0,0]
[null,null,null,null,null,null,0,"-",0,0,null,null,null,0,0,0,0,null,null,0,0,1,0,0,0,0]
[null,null,null,null,null,null,{"$f":"IF(AND(F307<>0,$D$31<>0),F307/$D$31,0)","v":0},"-",0,0,null,null,null,0,0,0,0,null,null,0,0,1,0,0,0,0]
[null,null,null,null,null,null,{"$f":"IF(AND(F308<>0,$D$31<>0),F308/$D$31,0)","v":0},"-",0,0,null,null,null,0,0,0,0,null,null,0,0,1,0,0,0,0]
[null,null,null,null,null,null,{"$f":"IF(AND(F309<>0,$D$31<>0),F309/$D$31,0)","v":0},"-",0,0,null,null,null,0,0,0,0,null,null,0,0,1,0,0,0,0]
[null,null,null,null,null,null,{"$f":"IF(AND(F310<>0,$D$31<>0),F310/$D$31,0)","v":0},"-",0,0,null,null,null,0,0,0,0,null,null,0,0,1,0,0,0,0]
[null,null,null,null,null,null,0,"-",0,0,null,null,null,0,0,0,0,null,null,0,0,1,0,0,0,0]
[null,null,null,null,null,null,0,"-",0,0,null,null,null,0,0,0,0,null,null,0,0,1,0,0,0,0]
[null,2.8,"Superstructure: Internal Doors",null,"-",{"$f":"SUM(F314:F328)","v":0},{"$f":"IF(AND(F313<>0,$D$31<>0),F313/$D$31,0)","v":0},{"$f":"SUMPRODUCT((C91:D454=\"Superstructure: Internal Doors\")*G91:G454)+SUMPRODUCT((C91:D454=\"Superstructure: Internal Walls and Partitions\")*G91:G454)","v":0},"-",{"$f":"SUM(J314:J328)","v":0},"-","-","-","-",{"$f":"SUM(O314:O328)","v":0},"-",{"$f":"SUM(Q314:Q328)","v":0},"-","-",{"$f":"IF(W313<>0,W313/($F$313+$O$313),0)","v":0},{"$f":"IF(Y313<>0,Y313/($F$313+$O$313),0)","v":0},1,{"$f":"SUM(W314:W328)","v":0},0,{"$f":"SUM(Y314:Y328)","v":0},0]
[null,2.8,"Superstructure: Internal Doors",null,null,null,{"$f":"IF(AND(F314<>0,$D$31<>0),F314/$D$31,0)","v":0},"-",0,{"$f":"I314*F314","v":0},null,null,null,{"$f":"IF(M314<>0,INT(59/M314),0)","v":0},{"$f":"F314*N314","v":0},0,{"$f":"O314*P314","v":0},null,null,0,0,1,{"$f":"T314*(F314+O314)","v":0},0,{"$f":"U314*(F314+O314)","v":0},0]
[null,null,null,null,null,null,{"$f":"IF(AND(F315<>0,$D$31<>0),F315/$D$31,0)","v":0},"-",0,0,null,null,null,{"$f":"IF(M315<>0,INT(59/M315),0)","v":0},{"$f":"F315*N315","v":0},0,{"$f":"O315*P315","v":0},null,null,0,0,1,0,0,0,0]
[null,null,null,null,null,null,{"$f":"IF(AND(F316<>0,$D$31<>0),F316/$D$31,0)","v":0},"-",0,0,null,null,null,0,0,0,0,null,null,0,0,1,0,0,0,0]
[null,null,null,null,null,null,0,"-",0,0,null,null,null,0,0,0,0,null,null,0,0,1,0,0,0,0]
[null,null,null,null,null,null,0,"-",0,0,null,null,null,0,0,0,0,null,null,0,0,1,0,0,0,0]
[null,null,null,null,null,null,0,"-",0,0,null,null,null,0,0,0,0,null,null,0,0,1,0,0,0,0]
[null,null,null,null,null,null,0,"-",0,0,null,null,null,0,0,0,0,null,null,0,0,1,0,0,0,0]
[null,null,null,null,null,null,0,"-",0,0,null,null,null,0,0,0,0,null,null,0,0,1,0,0,0,0]
[null,null,null,null,null,null,0,"-",0,0,null,null,null,0,0,0,0,null,null,0,0,1,0,0,0,0]
[null,null,null,null,null,null,0,"-",0,0,null,null,null,0,0,0,0,null,null,0,0,1,0,0,0,0]
[null,null,null,null,null,null,0,"-",0,0,null,null,null,0,0,0,0,null,null,0,0,1,0,0,0,0]
[null,null,null,null,null,null,0,"-",0,0,null,null,null,0,0,0,0,null,null,0,0,1,0,0,0,0]
[null,null,null,null,null,null,0,"-",0,0,null,null,null,0,0,0,0,null,null,0,0,1,0,0,0,0]
[null,null,null,null,null,null,0,"-",0,0,null,null,null,0,0,0,0,null,null,0,0,1,0,0,0,0]
[null,null,null,null,null,null,{"$f":"IF(AND(F328<>0,$D$31<>0),F328/$D$31,0)","v":0},"-",0,0,null,null,null,0,0,0,0,null,null,0,0,1,0,0,0,0]
[null,3,"Finishes",null,"-",{"$f":"SUM(F330:F349)","v":0},{"$f":"IF(AND(F329<>0,$D$31<>0),F329/$D$31,0)","v":0},"-","-",{"$f":"SUM(J330:J349)","v":0},"-","-","-","-",{"$f":"SUM(O330:O349)","v":0},"-",{"$f":"SUM(Q330:Q349)","v":0},"-","-",{"$f":"IF(W329<>0,W329/($F$329+$O$329),0)","v":0},{"$f":"IF(Y329<>0,Y329/($F$329+$O$329),0)","v":0},1,{"$f":"SUM(W330:W349)","v":0},0,{"$f":"SUM(Y330:Y349)","v":0},0]
[null,3,"Finishes",null,null,null,{"$f":"IF(AND(F330<>0,$D$31<>0),F330/$D$31,0)","v":0},"-",0,0,null,null,null,{"$f":"IF(M330<>0,INT(59/M330),0)","v":0},{"$f":"F330*N330","v":0},0,{"$f":"O330*P330","v":0},null,null,0,0,1,0,0,0,0]
[null,null,null,null,null,null,{"$f":"IF(AND(F331<>0,$D$31<>0),F331/$D$31,0)","v":0},"-",0,0,null,null,null,{"$f":"IF(M331<>0,INT(59/M331),0)","v":0},{"$f":"F331*N331","v":0},0,{"$f":"O331*P331","v":0},null,null,0,0,1,0,0,0,0]
[null,null,null,null,null,null,{"$f":"IF(AND(F332<>0,$D$31<>0),F332/$D$31,0)","v":0},"-",0,0,null,null,null,0,0,0,0,null,null,0,0,1,0,0,0,0]
[null,null,null,null,null,null,0,"-",0,0,null,null,null,0,0,0,0,null,null,0,0,1,0,0,0,0]
[null,null,null,null,null,null,0,"-",0,0,null,null,null,0,0,0,0,null,null,0,0,1,0,0,0,0]
[null,null,null,null,null,null,0,"-",0,0,null,null,null,0,0,0,0,null,null,0,0,1,0,0,0,0]
[null,null,null,null,null,null,0,"-",0,0,null,null,null,0,0,0,0,null,null,0,0,1,0,0,0,0]
[null,null,null,null,null,null,0,"-",0,0,null,null,null,0,0,0,0,null,null,0,0,1,0,0,0,0]
[null,null,null,null,null,null,0,"-",0,0,null,null,null,0,0,0,0,null,null,0,0,1,0,0,0,0]
[null,null,null,null,null,null,0,"-",0,0,null,null,null,0,0,0,0,null,null,0,0,1,0,0,0,0]
[null,null,null,null,null,null,0,"-",0,0,null,null,null,0,0,0,0,null,null,0,0,1,0,0,0,0]
[null,null,null,null,null,null,0,"-",0,0,null,null,null,0,0,0,0,null,null,0,0,1,0,0,0,0]
[null,null,null,null,null,null,0,"-",0,0,null,null,null,0,0,0,0,null,null,0,0,1,0,0,0,0]
[null,null,null,null,null,null,0,"-",0,0,null,null,null,0,0,0,0,null,null,0,0,1,0,0,0,0]
[null,null,null,null,null,null,{"$f":"IF(AND(F344<>0,$D$31<>0),F344/$D$31,0)","v":0},"-",0,0,null,null,null,0,0,0,0,null,null,0,0,1,0,0,0,0]
[null,null,null,null,null,null,{"$f":"IF(AND(F345<>0,$D$31<>0),F345/$D$31,0)","v":0},"-",0,0,null,null,null,0,0,0,0,null,null,0,0,1,0,0,0,0]
[null,null,null,null,null,null,{"$f":"IF(AND(F346<>0,$D$31<>0),F346/$D$31,0)","v":0},"-",0,0,null,null,null,0,0,0,0,null,null,0,0,1,0,0,0,0]
[null,null,null,null,null,null,{"$f":"IF(AND(F347<>0,$D$31<>0),F347/$D$31,0)","v":0},"-",0,0,null,null,null,0,0,0,0,null,null,0,0,1,0,0,0,0]
[null,null,null,null,null,null,0,"-",0,0,null,null,null,0,0,0,0,null,null,0,0,1,0,0,0,0]
[null,null,null,null,null,null,0,"-",0,0,null,null,null,0,0,0,0,null,null,0,0,{"$f":"1-T349-U349","v":1},0,{"$f":"IF(AND(W349<>0,$D$31<>0),W349/$D$31,0)","v":0},0,0]
[null,4,"Fittings, furnishings & equipment (FFE)",null,"-",{"$f":"SUM(F351:F370)","v":0},{"$f":"IF(AND(F350<>0,$D$31<>0),F350/$D$31,0)","v":0},"-","-",{"$f":"SUM(J351:J370)","v":0},"-","-","-","-",{"$f":"SUM(O351:O370)","v":0},"-",{"$f":"SUM(Q351:Q370)","v":0},"-","-",{"$f":"IF(W350<>0,W350/($F$350+$O$350),0)","v":0},{"$f":"IF(Y350<>0,Y350/($F$350+$O$350),0)","v":0},1,{"$f":"SUM(W351:W370)","v":0},0,{"$f":"SUM(Y351:Y370)","v":0},0]
[null,4,"Fittings, furnishings & equipment (FFE)",null,null,null,{"$f":"IF(AND(F351<>0,$D$31<>0),F351/$D$31,0)","v":0},"-",0,0,null,null,null,{"$f":"IF(M351<>0,INT(59/M351),0)","v":0},{"$f":"F351*N351","v":0},0,{"$f":"O351*P351","v":0},null,null,0,0,1,0,0,0,0]
[null,null,null,null,null,null,{"$f":"IF(AND(F352<>0,$D$31<>0),F352/$D$31,0)","v":0},"-",0,0,null,null,null,{"$f":"IF(M352<>0,INT(59/M352),0)","v":0},{"$f":"F352*N352","v":0},0,{"$f":"O352*P352","v":0},null,null,0,0,1,0,0,0,0]
[null,null,null,null,null,null,{"$f":"IF(AND(F353<>0,$D$31<>0),F353/$D$31,0)","v":0},"-",0,0,null,null,null,0,0,0,0,null,null,0,0,1,0,0,0,0]
[null,null,null,null,null,null,0,"-",0,0,null,null,null,0,0,0,0,null,null,0,0,1,0,0,0,0]
[null,null,null,null,null,null,0,"-",0,0,null,null,null,0,0,0,0,null,null,0,0,1,0,0,0,0]
[null,null,null,null,null,null,0,"-",0,0,null,null,null,0,0,0,0,null,null,0,0,1,0,0,0,0]
[null,null,null,null,null,null,0,"-",0,0,null,null,null,0,0,0,0,null,null,0,0,1,0,0,0,0]
[null,null,null,null,null,null,0,"-",0,0,null,null,null,0,0,0,0,null,null,0,0,1,0,0,0,0]
[null,null,null,null,null,null,0,"-",0,0,null,null,null,0,0,0,0,null,null,0,0,1,0,0,0,0]
[null,null,null,null,null,null,0,"-",0,0,null,null,null,0,0,0,0,null,null,0,0,1,0,0,0,0]
[null,null,null,null,null,null,0,"-",0,0,null,null,null,0,0,0,0,null,null,0,0,1,0,0,0,0]
[null,null,null,null,null,null,0,"-",0,0,null,null,null,0,0,0,0,null,null,0,0,1,0,0,0,0]
[null,null,null,null,null,null,0,"-",0,0,null,null,null,0,0,0,0,null,null,0,0,1,0,0,0,0]
[null,null,null,null,null,null,0,"-",0,0,null,null,null,0,0,0,0,null,null,0,0,1,0,0,0,0]
[null,null,null,null,null,null,{"$f":"IF(AND(F365<>0,$D$31<>0),F365/$D$31,0)","v":0},"-",0,0,null,null,null,0,0,0,0,null,null,0,0,1,0,0,0,0]
[null,null,null,null,null,null,{"$f":"IF(AND(F366<>0,$D$31<>0),F366/$D$31,0)","v":0},"-",0,0,null,null,null,0,0,0,0,null,null,0,0,1,0,0,0,0]
[null,null,null,null,null,null,{"$f":"IF(AND(F367<>0,$D$31<>0),F367/$D$31,0)","v":0},"-",0,0,null,null,null,0,0,0,0,null,null,0,0,1,0,0,0,0]
[null,null,null,null,null,null,{"$f":"IF(AND(F368<>0,$D$31<>0),F368/$D$31,0)","v":0},"-",0,0,null,null,null,0,0,0,0,null,null,0,0,1,0,0,0,0]
[null,null,null,null,null,null,0,"-",0,0,null,null,null,0,0,0,0,null,null,0,0,1,0,0,0,0]
[null,null,null,null,null,null,0,"-",0,0,null,null,null,0,0,0,0,null,null,0,0,1,0,0,0,0]
[null,5,"Services (MEP)",null,"-",{"$f":"SUM(F372:F391)","v":0},{"$f":"IF(AND(F371<>0,$D$31<>0),F371/$D$31,0)","v":0},"-","-",{"$f":"SUM(J372:J391)","v":0},"-","-","-","-",{"$f":"SUM(O372:O391)","v":0},"-",{"$f":"SUM(Q372:Q391)","v":0},"-","-",{"$f":"IF(W371<>0,W371/($F$371+$O$371),0)","v":0},{"$f":"IF(Y371<>0,Y371/($F$371+$O$371),0)","v":0},1,{"$f":"SUM(W372:W391)","v":0},0,{"$f":"SUM(Y372:Y391)","v":0},0]
[null,5,"Services (MEP)",null,null,null,{"$f":"IF(AND(F372<>0,$D$31<>0),F372/$D$31,0)","v":0},"-",0,0,null,null,null,{"$f":"IF(M372<>0,INT(59/M372),0)","v":0},{"$f":"F372*N372","v":0},0,{"$f":"O372*P372","v":0},null,null,0,0,1,0,0,0,0]
[null,null,null,null,null,null,{"$f":"IF(AND(F373<>0,$D$31<>0),F373/$D$31,0)","v":0},"-",0,0,null,null,null,{"$f":"IF(M373<>0,INT(59/M373),0)","v":0},{"$f":"F373*N373","v":0},0,{"$f":"O373*P373","v":0},null,null,0,0,1,0,0,0,0]
[null,null,null,null,null,null,{"$f":"IF(AND(F374<>0,$D$31<>0),F374/$D$31,0)","v":0},"-",0,0,null,null,null,0,0,0,0,null,null,0,0,1,0,0,0,0]
[null,null,null,null,null,null,0,"-",0,0,null,null,null,0,0,0,0,null,null,0,0,1,0,0,0,0]
[null,null,null,null,null,null,0,"-",0,0,null,null,null,0,0,0,0,null,null,0,0,1,0,0,0,0]
[null,null,null,null,null,null,0,"-",0,0,null,null,null,0,0,0,0,null,null,0,0,1,0,0,0,0]
[null,null,null,null,null,null,0,"-",0,{"$f":"I378*F378","v":0},null,null,null,0,0,0,0,null,null,0,0,1,{"$f":"T378*(F378+O378)","v":0},0,{"$f":"U378*(F378+O378)","v":0},0]
[null,null,null,null,null,null,0,"-",0,0,null,null,null,0,0,0,0,null,null,0,0,1,0,0,0,0]
[null,null,null,null,null,null,0,"-",0,0,null,null,null,0,0,0,0,null,null,0,0,1,0,0,0,0]
[null,null,null,null,null,null,0,"-",0,0,null,null,null,0,0,0,0,null,null,0,0,1,0,0,0,0]
[null,null,null,null,null,null,0,"-",0,0,null,null,null,0,0,0,0,null,null,0,0,1,0,0,0,0]
[null,null,null,null,null,null,0,"-",0,0,null,null,null,0,0,0,0,null,null,0,0,1,0,0,0,0]
[null,null,null,null,null,null,0,"-",0,0,null,null,null,0,0,0,0,null,null,0,0,1,0,0,0,0]
[null,null,null,null,null,null,0,"-",0,0,null,null,null,0,0,0,0,null,null,0,0,1,0,0,0,0]
[null,null,null,null,null,null,{"$f":"IF(AND(F386<>0,$D$31<>0),F386/$D$31,0)","v":0},"-",0,0,null,null,null,0,0,0,0,null,null,0,0,1,0,0,0,0]
[null,null,null,null,null,null,{"$f":"IF(AND(F387<>0,$D$31<>0),F387/$D$31,0)","v":0},"-",0,0,null,null,null,0,0,0,0,null,null,0,0,1,0,0,0,0]
[null,null,null,null,null,null,{"$f":"IF(AND(F388<>0,$D$31<>0),F388/$D$31,0)","v":0},"-",0,0,null,null,null,0,0,0,0,null,null,0,0,1,0,0,0,0]
[null,null,null,null,null,null,{"$f":"IF(AND(F389<>0,$D$31<>0),F389/$D$31,0)","v":0},"-",0,0,null,null,null,0,0,0,0,null,null,0,0,1,0,0,0,0]
[null,null,null,null,null,null,0,"-",0,0,null,null,null,0,0,0,0,null,null,0,0,1,0,0,0,0]
[null,null,null,null,null,null,0,"-",0,0,null,null,null,0,0,0,0,null,null,0,0,1,0,0,0,0]
[null,6,"Prefabricated Buildings and Building Units",null,"-",{"$f":"SUM(F393:F412)","v":0},{"$f":"IF(AND(F392<>0,$D$31<>0),F392/$D$31,0)","v":0},"-","-",{"$f":"SUM(J393:J412)","v":0},"-","-","-","-",{"$f":"SUM(O393:O412)","v":0},"-",{"$f":"SUM(Q393:Q412)","v":0},"-","-",{"$f":"IF(W392<>0,W392/($F$392+$O$392),0)","v":0},{"$f":"IF(Y392<>0,Y392/($F$392+$O$392),0)","v":0},1,{"$f":"SUM(W393:W412)","v":0},0,{"$f":"SUM(Y393:Y412)","v":0},0]
[null,6,"Prefabricated Buildings and Building Units",null,null,null,{"$f":"IF(AND(F393<>0,$D$31<>0),F393/$D$31,0)","v":0},"-",0,0,null,null,null,{"$f":"IF(M393<>0,INT(59/M393),0)","v":0},{"$f":"F393*N393","v":0},0,{"$f":"O393*P393","v":0},null,null,0,0,1,0,0,0,0]
[null,null,null,null,null,null,{"$f":"IF(AND(F394<>0,$D$31<>0),F394/$D$31,0)","v":0},"-",0,0,null,null,null,{"$f":"IF(M394<>0,INT(59/M394),0)","v":0},{"$f":"F394*N394","v":0},0,{"$f":"O394*P394","v":0},null,null,0,0,1,0,0,0,0]
[null,null,null,null,null,null,{"$f":"IF(AND(F395<>0,$D$31<>0),F395/$D$31,0)","v":0},"-",0,0,null,null,null,0,0,0,0,null,null,0,0,1,0,0,0,0]
[null,null,null,null,null,null,0,"-",0,0,null,null,null,0,0,0,0,null,null,0,0,1,0,0,0,0]
[null,null,null,null,null,null,0,"-",0,0,null,null,null,0,0,0,0,null,null,0,0,1,0,0,0,0]
[null,null,null,null,null,null,0,"-",0,0,null,null,null,0,0,0,0,null,null,0,0,1,0,0,0,0]
[null,null,null,null,null,null,0,"-",0,0,null,null,null,0,0,0,0,null,null,0,0,1,0,0,0,0]
[null,null,null,null,null,null,0,"-",0,0,null,null,null,0,0,0,0,null,null,0,0,1,0,0,0,0]
[null,null,null,null,null,null,0,"-",0,0,null,null,null,0,0,0,0,null,null,0,0,1,0,0,0,0]
[null,null,null,null,null,null,0,"-",0,0,null,null,null,0,0,0,0,null,null,0,0,1,0,0,0,0]
[null,null,null,null,null,null,0,"-",0,0,null,null,null,0,0,0,0,null,null,0,0,1,0,0,0,0]
[null,null,null,null,null,null,0,"-",0,0,null,null,null,0,0,0,0,null,null,0,0,1,0,0,0,0]
[null,null,null,null,null,null,0,"-",0,0,null,null,null,0,0,0,0,null,null,0,0,1,0,0,0,0]
[null,null,null,null,null,null,0,"-",0,0,null,null,null,0,0,0,0,null,null,0,0,1,0,0,0,0]
[null,null,null,null,null,null,{"$f":"IF(AND(F407<>0,$D$31<>0),F407/$D$31,0)","v":0},"-",0,0,null,null,null,0,0,0,0,null,null,0,0,1,0,0,0,0]
[null,null,null,null,null,null,{"$f":"IF(AND(F408<>0,$D$31<>0),F408/$D$31,0)","v":0},"-",0,0,null,null,null,0,0,0,0,null,null,0,0,1,0,0,0,0]
[null,null,null,null,null,null,{"$f":"IF(AND(F409<>0,$D$31<>0),F409/$D$31,0)","v":0},"-",0,0,null,null,null,0,0,0,0,null,null,0,0,1,0,0,0,0]
[null,null,null,null,null,null,{"$f":"IF(AND(F410<>0,$D$31<>0),F410/$D$31,0)","v":0},"-",0,0,null,null,null,0,0,0,0,null,null,0,0,1,0,0,0,0]
[null,null,null,null,null,null,0,"-",0,0,null,null,null,0,0,0,0,null,null,0,0,1,0,0,0,0]
[null,null,null,null,null,null,0,"-",0,0,null,null,null,0,0,0,0,null,null,0,0,1,0,0,0,0]
[null,7,"Work to Existing Building",null,"-",{"$f":"SUM(F414:F433)","v":0},{"$f":"IF(AND(F413<>0,$D$31<>0),F413/$D$31,0)","v":0},"-","-",{"$f":"SUM(J414:J433)","v":0},"-","-","-","-",{"$f":"SUM(O414:O433)","v":0},"-",{"$f":"SUM(Q414:Q433)","v":0},"-","-",{"$f":"IF(W413<>0,W413/($F$413+$O$413),0)","v":0},{"$f":"IF(Y413<>0,Y413/($F$413+$O$413),0)","v":0},{"$f":"1-T413-U413","v":1},{"$f":"SUM(W414:W433)","v":0},{"$f":"IF(AND(W413<>0,$D$31<>0),W413/$D$31,0)","v":0},{"$f":"SUM(Y414:Y433)","v":0},0]
[null,7,"Work to Existing Building",null,null,null,{"$f":"IF(AND(F414<>0,$D$31<>0),F414/$D$31,0)","v":0},"-",0,0,null,null,null,{"$f":"IF(M414<>0,INT(59/M414),0)","v":0},{"$f":"F414*N414","v":0},0,{"$f":"O414*P414","v":0},null,null,0,0,1,{"$f":"T414*(F414+O414)","v":0},0,{"$f":"U414*(F414+O414)","v":0},0]
[null,null,null,null,null,null,{"$f":"IF(AND(F415<>0,$D$31<>0),F415/$D$31,0)","v":0},"-",0,0,null,null,null,{"$f":"IF(M415<>0,INT(59/M415),0)","v":0},{"$f":"F415*N415","v":0},0,{"$f":"O415*P415","v":0},null,null,0,0,1,0,0,0,0]
[null,null,null,null,null,null,{"$f":"IF(AND(F416<>0,$D$31<>0),F416/$D$31,0)","v":0},"-",0,0,null,null,null,0,0,0,0,null,null,0,0,1,0,0,0,0]
[null,null,null,null,null,null,0,"-",0,0,null,null,null,0,0,0,0,null,null,0,0,1,0,0,0,0]
[null,null,null,null,null,null,0,"-",0,0,null,null,null,0,0,0,0,null,null,0,0,1,0,0,0,0]
[null,null,null,null,null,null,0,"-",0,0,null,null,null,0,0,0,0,null,null,0,0,1,0,0,0,0]
[null,null,null,null,null,null,0,"-",0,0,null,null,null,0,0,0,0,null,null,0,0,1,0,0,0,0]
[null,null,null,null,null,null,0,"-",0,0,null,null,null,0,0,0,0,null,null,0,0,1,0,0,0,0]
[null,null,null,null,null,null,0,"-",0,0,null,null,null,0,0,0,0,null,null,0,0,1,0,0,0,0]
[null,null,null,null,null,null,0,"-",0,0,null,null,null,0,0,0,0,null,null,0,0,1,0,0,0,0]
[null,null,null,null,null,null,0,"-",0,0,null,null,null,0,0,0,0,null,null,0,0,1,0,0,0,0]
[null,null,null,null,null,null,0,"-",0,0,null,null,null,0,0,0,0,null,null,0,0,1,0,0,0,0]
[null,null,null,null,null,null,0,"-",0,0,null,null,null,0,0,0,0,null,null,0,0,1,0,0,0,0]
[null,null,null,null,null,null,0,"-",0,0,null,null,null,0,0,0,0,null,null,0,0,1,0,0,0,0]
[null,null,null,null,null,null,{"$f":"IF(AND(F428<>0,$D$31<>0),F428/$D$31,0)","v":0},"-",0,0,null,null,null,0,0,0,0,null,null,0,0,1,0,0,0,0]
[null,null,null,null,null,null,{"$f":"IF(AND(F429<>0,$D$31<>0),F429/$D$31,0)","v":0},"-",0,0,null,null,null,0,0,0,0,null,null,0,0,1,0,0,0,0]
[null,null,null,null,null,null,{"$f":"IF(AND(F430<>0,$D$31<>0),F430/$D$31,0)","v":0},"-",0,0,null,null,null,0,0,0,0,null,null,0,0,1,0,0,0,0]
[null,null,null,null,null,null,{"$f":"IF(AND(F431<>0,$D$31<>0),F431/$D$31,0)","v":0},"-",0,0,null,null,null,0,0,0,0,null,null,0,0,1,0,0,0,0]
[null,null,null,null,null,null,0,"-",0,0,null,null,null,0,0,0,0,null,null,0,0,1,0,0,0,0]
[null,null,null,null,null,null,0,"-",0,0,null,null,null,0,0,0,0,null,null,0,0,1,0,0,0,0]
[null,8,"External works",null,"-",{"$f":"SUM(F435:F454)","v":0},{"$f":"IF(AND(F434<>0,$D$31<>0),F434/$D$31,0)","v":0},"-","-",{"$f":"SUM(J435:J454)","v":0},"-","-","-","-",{"$f":"SUM(O435:O454)","v":0},"-",{"$f":"SUM(Q435:Q454)","v":0},"-","-",{"$f":"IF(W434<>0,W434/($F$434+$O$434),0)","v":0},{"$f":"IF(Y434<>0,Y434/($F$434+$O$434),0)","v":0},1,{"$f":"SUM(W435:W454)","v":0},0,{"$f":"SUM(Y435:Y454)","v":0},0]
[null,8,"External works",null,null,null,{"$f":"IF(AND(F435<>0,$D$31<>0),F435/$D$31,0)","v":0},"-",0,0,null,null,null,{"$f":"IF(M435<>0,INT(59/M435),0)","v":0},{"$f":"F435*N435","v":0},0,{"$f":"O435*P435","v":0},null,null,0,0,1,0,0,0,0]
[null,null,null,null,null,null,{"$f":"IF(AND(F436<>0,$D$31<>0),F436/$D$31,0)","v":0},"-",0,0,null,null,null,{"$f":"IF(M436<>0,INT(59/M436),0)","v":0},{"$f":"F436*N436","v":0},0,{"$f":"O436*P436","v":0},null,null,0,0,1,0,0,0,0]
[null,null,null,null,null,null,{"$f":"IF(AND(F437<>0,$D$31<>0),F437/$D$31,0)","v":0},"-",0,0,null,null,null,0,0,0,0,null,null,0,0,1,0,0,0,0]
[null,null,null,null,null,null,{"$f":"IF(AND(F438<>0,$D$31<>0),F438/$D$31,0)","v":0},"-",0,0,null,null,null,0,0,0,0,null,null,0,0,1,0,0,0,0]
[null,null,null,null,null,null,0,"-",0,0,null,null,null,0,0,0,0,null,null,0,0,1,0,0,0,0]
[null,null,null,null,null,null,0,"-",0,0,null,null,null,0,0,0,0,null,null,0,0,1,0,0,0,0]
[null,null,null,null,null,null,0,"-",0,0,null,null,null,0,0,0,0,null,null,0,0,1,0,0,0,0]
[null,null,null,null,null,null,0,"-",0,{"$f":"I442*F442","v":0},null,null,null,0,0,0,0,null,null,0,0,1,0,0,0,0]
[null,null,null,null,null,null,0,"-",0,0,null,null,null,0,0,0,0,null,null,0,0,1,0,0,0,0]
[null,null,null,null,null,null,0,"-",0,0,null,null,null,0,0,0,0,null,null,0,0,1,0,0,0,0]
[null,null,null,null,null,null,0,"-",0,0,null,null,null,0,0,0,0,null,null,0,0,1,0,0,0,0]
[null,null,null,null,null,null,0,"-",0,0,null,null,null,0,0,0,0,null,null,0,0,1,0,0,0,0]
[null,null,null,null,null,null,0,"-",0,0,null,null,null,0,0,0,0,null,null,0,0,1,0,0,0,0]
[null,null,null,null,null,null,0,"-",0,0,null,null,null,0,0,0,0,null,null,0,0,1,0,0,0,0]
[null,null,null,null,null,null,0,"-",0,0,null,null,null,0,0,0,0,null,null,0,0,1,0,0,0,0]
[null,null,null,null,null,null,0,"-",0,0,null,null,null,0,0,0,0,null,null,0,0,1,0,0,0,0]
[null,null,null,null,null,null,0,"-",0,0,null,null,null,0,0,0,0,null,null,0,0,1,0,0,0,0]
[null,null,null,null,null,null,0,"-",0,0,null,null,null,0,0,0,0,null,null,0,0,1,0,0,0,0]
[null,null,null,null,null,null,0,"-",0,{"$f":"I453*F453","v":0},null,null,null,0,0,0,0,null,null,0,0,1,0,0,0,0]
[null,null,null,null,null,null,0,"-",0,{"$f":"I454*F454","v":0},null,null,null,0,{"$f":"F454*N454","v":0},0,{"$f":"O454*P454","v":0},null,null,0,0,1,{"$f":"T454*(F454+O454)","v":0},0,0,{"$f":"IF(AND(Y454<>0,$D$31<>0),Y454/$D$31,0)","v":0}]
[null,null,"Overall",null,null,{"$f":"SUM(F91,F107,F123,F139,F155,F176,F197,F218,F239,F255,F276,F292,F313,F329,F350,F371,F392,F413,F434)","v":0},0,null,null,{"$f":"SUM(J91,J107,J123,J139,J155,J176,J197,J218,J239,J255,J276,J292,J313,J329,J350,J371,J392,J413,J434)","v":0},null,null,null,null,{"$f":"SUM(O91,O107,O123,O139,O155,O176,O197,O218,O239,O255,O276,O292,O313,O329,O350,O371,O392,O413,O434)","v":0},null,{"$f":"SUM(Q91,Q107,Q123,Q139,Q155,Q176,Q197,Q218,Q239,Q255,Q276,Q292,Q313,Q329,Q350,Q371,Q392,Q413,Q434)","v":0},null,null,{"$f":"IF(AND($F$455<>0,$O$455<>0),SUM(W91,W107,W123,W139,W155,W176,W197,W218,W239,W255,W276,W292,W313,W329,W350,W371,W392,W413,W434)/($F$455+$O$455),0)","v":0},{"$f":"IF(AND($F$455<>0,$O$455<>0),SUM(Y91,Y107,Y123,Y139,Y155,Y176,Y197,Y218,Y239,Y255,Y276,Y292,Y313,Y329,Y350,Y371,Y392,Y413,Y434)/($F$455+$O$455),0)","v":0},{"$f":"1-T455-U455","v":1},{"$f":"SUM(W91,W107,W123,W139,W155,W176,W197,W218,W239,W255,W276,W292,W313,W329,W350,W371,W392,W413,W434)","v":0},{"$f":"SUM(X91,X107,X123,X139,X155,X176,X197,X218,X239,X255,X276,X292,X313,X329,X350,X371,X392,X413,X434)","v":0},{"$f":"SUM(Y91,Y107,Y123,Y139,Y155,Y176,Y197,Y218,Y239,Y255,Y276,Y292,Y313,Y329,Y350,Y371,Y392,Y413,Y434)","v":0},{"$f":"SUM(Z91,Z107,Z123,Z139,Z155,Z176,Z197,Z218,Z239,Z255,Z276,Z292,Z313,Z329,Z350,Z371,Z392,Z413,Z434)","v":0}]
[]
[]
[]
[]
[null,"Recycling and Waste Reporting table"]
[null,"The light green-coloured cells should be completed to achieve 'pioneering' status."]
[null,null,null,null,"TOTAL ESTIMATES OF WASTE",null,null,"WASTE MANAGEMENT ROUTES",null,null,null,null,null,"SUMMARY"]
[null,null,null,null,null,null,null,"REUSE ",null,"RECYCLE",null,"OTHER DISPOSAL"]
[null,null,"Type of Waste","Source of Information","Overall Waste \n(tonnes)","Overall Waste\n(tonnes/m2 GIA)","Performance Indicator (Planning Stage Estimate)","Reuse Onsite (%)","Reuse Offsite (%)","Recycle Onsite (%)","Recycle Offsite (%)","To Landfill (%)","To Other Management (%)","Total Reuse (%)","Total Recycle (%)","Total Reuse and Recycle (%)","Total Waste Reported (%)"]
[null,null,null,null,"PRODUCT AND CONSTRUCTION STAGE (MODULE A)"]
[null,1,"Demolition Waste",null,null,{"$f":"IF($D$31>0,IF(E466>0,E466/$D$31,0),0)","v":0},{"$f":"F466","v":0},null,null,null,null,null,null,{"$f":"SUM(H466:I466)","v":0},{"$f":"SUM(J466:K466)","v":0},{"$f":"SUM(N466:O466)","v":0},{"$f":"SUM(H466:M466)","v":0}]
[null,2.1,"Excavation Waste",null,null,{"$f":"IF($D$31>0,IF(E467>0,E467/$D$31,0),0)","v":0},{"$f":"F467","v":0},null,null,null,null,null,null,{"$f":"SUM(H467:I467)","v":0},{"$f":"SUM(J467:K467)","v":0},{"$f":"SUM(N467:O467)","v":0},{"$f":"SUM(H467:M467)","v":0}]
[null,2.8,"Construction Waste",null,null,{"$f":"IF($D$31>0,IF(E468>0,E468/$D$31,0),0)","v":0},{"$f":"F468","v":0},null,null,null,null,null,null,{"$f":"SUM(H468:I468)","v":0},{"$f":"SUM(J468:K468)","v":0},{"$f":"SUM(N468:O468)","v":0},{"$f":"SUM(H468:M468)","v":0}]
[null,null,null,null,"USE STAGE (MODULE B)"]
[null,3,"Demolition / Strip-out Waste",null,{"$f":"IF(ISNUMBER(O455),O455/1000,0)","v":0},{"$f":"IF($D$31>0,IF(E470>0,E470/$D$31,0),0)","v":0},"-",null,null,null,null,null,null,{"$f":"SUM(H470:I470)","v":0},{"$f":"SUM(J470:K470)","v":0},{"$f":"SUM(N470:O470)","v":0},{"$f":"SUM(H470:M470)","v":0}]
[null,4,"Construction Waste",null,{"$f":"IF(ISNUMBER(Q455),Q455/1000,0)","v":0},{"$f":"IF($D$31>0,IF(E471>0,E471/$D$31,0),0)","v":0},"-",null,null,null,null,null,null,{"$f":"SUM(H471:I471)","v":0},{"$f":"SUM(J471:K471)","v":0},{"$f":"SUM(N471:O471)","v":0},{"$f":"SUM(H471:M471)","v":0}]
[null,null,null,null,"Overall Waste (tonnes/annum)","Overall Waste (tonnes/annum\n/m2)","Performance Indicator (LPG Appendix 1)","Reuse Onsite (%)","Reuse Offsite (%)","Recycle Onsite (%)","Recycle Offsite (%)","To Landfill (%)","To Other Management (%)","Total Reuse (%)","Total Recycle (%)","Total Reuse and Recycle (%)","Total Waste Reported (%)"]
[null,5,"Municipal Waste",null,null,{"$f":"IF($D$31>0,IF(E473>0,E473/$D$31,0),0)","v":0},{"$f":"F473","v":0},null,null,null,null,null,null,{"$f":"SUM(H473:I473)","v":0},{"$f":"SUM(J473:K473)","v":0},{"$f":"SUM(N473:O473)","v":0},{"$f":"SUM(H473:M473)","v":0}]
[null,6,"Industrial Waste (if applicable)",null,null,"-","-",null,null,null,null,null,null,{"$f":"SUM(H474:I474)","v":0},{"$f":"SUM(J474:K474)","v":0},{"$f":"SUM(N474:O474)","v":0},{"$f":"SUM(H474:M474)","v":0}]
[null,null,null,null,"MODULE A - MODULE C"]
[null,null,null,null,"Overall Materials \n(tonnes)","Overall Materials (Modules A-C) (tonnes\n/m2)","-","Reuse Onsite (%)","Reuse Offsite (%)","Recycle Onsite (%)","Recycle Offsite (%)","To Landfill (%)","To Other Management (%)","Total Reuse (%)","Total Recycle (%)","Total Reuse and Recycle (%)","Total Waste Reported (%)"]
[null,7,"Total Materials",null,{"$f":"IF(AND(ISNUMBER(F455),ISNUMBER(J455),ISNUMBER(O455),ISNUMBER(Q455)),((Q455+O455+F455+J455)/1000),0)","v":0},{"$f":"IF($D$31>0,IF(E477>0,E477/$D$31,0),0)","v":0},"-",null,null,null,null,null,null,{"$f":"SUM(H477:I477)","v":0},{"$f":"SUM(J477:K477)","v":0},{"$f":"SUM(N477:O477)","v":0},{"$f":"SUM(H477:M477)","v":0}]
[]
[]
[null,"Circular Economy Targets"]
[null,"Circular economy targets for existing and new development",null,"Policy Requirement","Target Aiming For (%)","Policy Met?","Explanation (How will performance against this metric be secured through design, implementation and monitoring?)"]
[null,"Demolition waste materials (non-hazardous)",null,"Minimum of 95% diverted from landfill for reuse, recycling or recovery.",null,{"$f":"IF(ISNUMBER(E482),IF(E482=95%,\"Yes\",IF(E482>95%,\"Exceeds Policy\",\"No\")),\"\")","v":""}]
[null,"Excavation waste materials",null,"Minimum of 95% diverted from landfill for beneficial reuse.",null,{"$f":"IF(ISNUMBER(E483),IF(E483=95%,\"Yes\",IF(E483>95%,\"Exceeds Policy\",\"No\")),\"\")","v":""}]
[null,"Construction waste materials",null,"Minimum of 95% diverted from landfill for reuse, recycling or recovery.",null,{"$f":"IF(ISNUMBER(E484),IF(E484=95%,\"Yes\",IF(E484>95%,\"Exceeds Policy\",\"No\")),\"\")","v":""}]
[null,"Municipal waste",null,"Minimum 65% recycling rate by 2030.",null,{"$f":"IF(ISNUMBER(E485),IF(E485=65%,\"Yes\",IF(E485>65%,\"Exceeds Policy\",\"No\")),\"\")","v":""}]
[null,"Recycled content",null,"Minimum 20% of the building material elements to be comprised of recycled or reused content.",null,{"$f":"IF(ISNUMBER(E486),IF(E486=20%,\"Yes\",IF(E486>20%,\"Exceeds Policy\",\"No\")),\"\")","v":""}]
[null,"Additional requirements",null,"Policy Requirement","Please acknowledge acceptance for a planning condition",null,"Please set out an indicative timescale and responsible party for the provision of this information"]
[null,"Reserved Matters Reporting",null,"A condition will be attached to an approval of a referable outline planning permission, securing the submission of a CE Statement as a reserved matter. Applications for reserved matters will be required to review and address the information provided at outline stage and update any default values used as far as possible. "]

{"sheet":"Detailed Application Stage","index":3,"n_rows":488,"n_cols":26,"rows_kept":488,"cut":false,"hidden":false,"merged":[[88,22,88,25],[433,2,433,3],[434,1,453,1],[434,2,453,3],[88,4,88,11],[88,12,88,16],[391,2,391,3],[392,1,411,1],[392,2,411,3],[412,2,412,3],[413,1,432,1],[413,2,432,3],[349,2,349,3],[350,1,369,1],[350,2,369,3],[370,2,370,3],[371,1,390,1],[371,2,390,3],[312,2,312,3],[313,1,327,1],[313,2,327,3],[328,2,328,3],[329,1,348,1],[329,2,348,3],[275,2,275,3],[276,1,290,1],[276,2,290,3],[291,2,291,3],[292,1,311,1],[292,2,311,3],[239,1,253,1],[239,2,253,3],[254,2,254,3],[255,1,274,1],[255,2,274,3],[197,1,216,1],[197,2,216,3],[217,2,217,3],[218,1,237,1],[218,2,237,3],[155,1,174,1],[155,2,174,3],[175,2,175,3],[176,1,195,1],[176,2,195,3],[75,1,75,3],[73,1,73,3],[74,1,74,3],[88,17,88,21],[106,2,106,3],[91,1,105,1],[91,2,105,3],[80,1,80,2],[81,1,81,2],[82,1,82,2],[83,1,83,2],[75,4,75,11],[0,0,1,6],[3,0,3,5],[4,0,4,2],[4,4,4,5],[70,4,70,11],[72,1,72,3],[462,9,462,10],[462,7,462,8],[461,7,461,12],[461,4,461,6],[76,1,79,2],[88,2,88,3],[89,2,89,3],[90,2,90,3],[123,1,137,1],[123,2,137,3],[138,2,138,3],[139,1,153,1],[139,2,153,3],[107,1,121,1],[107,2,121,3],[122,2,122,3],[196,2,196,3],[461,13,461,16],[486,6,486,8],[487,6,487,8],[487,4,487,5],[480,6,480,8],[481,6,481,8],[482,6,482,8],[483,6,483,8],[484,6,484,8],[485,6,485,8],[462,11,462,12],[462,13,462,16],[154,2,154,3],[238,2,238,3]]}
[]
[]
[]
["Detailed Application Stage - Circular Economy Statement"]
[]
[null,null,null,"Project Details"]
[null,null,"Project name","Jamestown Road"]
[null,null,"Planning application reference number (if applicable)"]
[null,null,"Applicant"]
[null,null,"London Borough","London Borough of Camden"]
[null,null,"Brief description of the project"]
[null,null,"Author/s"]
[null,null,"Date of assessment"]
[null,null,"Number of Use Types",1]
[null,null,"Use Class / Type","Floor Area by use type (m2)"]
[null,null,"Use Class / Type 1",9879]
[null,null,"Use Class / Type 2","Use Class / Type 2 GIA"]
[null,null,"Use Class / Type 3","Use Class / Type 3 GIA"]
[null,null,"Use Class / Type 4","Use Class / Type 4 GIA"]
[null,null,"Use Class / Type 5","Use Class / Type 5 GIA"]
[null,null,"Use Class / Type 6","Use Class / Type 6 GIA"]
[null,null,"Use Class / Type 7","Use Class / Type 7 GIA"]
[null,null,"Use Class / Type 8","Use Class / Type 8 GIA"]
[null,null,"Use Class / Type 9","Use Class / Type 9 GIA"]
[null,null,"Use Class / Type 10","Use Class / Type 10 GIA"]
[null,null,"Use Class / Type 11","Use Class / Type 11 GIA"]
[null,null,"Use Class / Type 12","Use Class / Type 12 GIA"]
[null,null,"Use Class / Type 13","Use Class / Type 13 GIA"]
[null,null,"Use Class / Type 14","Use Class / Type 14 GIA"]
[null,null,"Use Class / Type 15","Use Class / Type 15 GIA"]
[null,null,"Overall GIA (m2)",{"$f":"SUM(D16:D30)","v":9879}]
[]
[]
[null,"Circular Economy Design Approaches"]
[null,"Circular Economy Design Approaches for Existing Structures / Buildings",null,"Applicant Response"]
[null,"Is there an existing building on the site?",null,"Yes"]
[null,"Is it technically feasible to retain the building(s) in whole or in part?",null,"No"]
[null,"Are there any building materials or elements available on site that can be used?"]
[null,"Is the existing building, or parts of the building, suited to the requirements for the site?"]
[null,"Is it technically feasible to recover the 'residual value' of the buildings elements or materials?",null,"No"]
[null,"The preferred strategy is:",null,"NEW BUILDING"]
[null,"The preferred strategy is:",null,"RETAIN and RETROFIT"]
[null,"The preferred strategy is:",null,"PARTIAL RETENTION and REFURBISHMENT"]
[null,"The preferred strategy is:",null,"DISASSEMBLE/DECONSTRUCT AND REUSE"]
[null,"The preferred strategy is:",null,"DEMOLISH/DECONSTRUCT AND RECYCLE"]
[null,"Circular Economy Design Approach","Phase/Building/Area/Layer","Strategic Response"]
[null,"Retain and Retrofit","N/A","Potential for redevelopment and the decision to dismantle the building is rooted in several reasons. First, the site itself bears little historical significance. The area has undergone various transformations but unlike neighbouring buildings, this site bears minimal historical weight.\nFurther, the industrial style that once defined this area now clashes with the evolving character of the site’s surroundings. The buildings’ architectural merit faces limitations in the context of contemporary use. Today, the focus leans toward creating vibrant social hubs rather than preserving industrial relics.\n"]
[null,"Partial Retention and Refurbishment","N/A","While the upper floors of the buildings will be demolished, it is proposed to retain the existing basement walls to use as a temporary formwork to construct a larger and slightly deeper basement."]
[null,"Disassemble and Reuse","N/A","The possibility of salvaging and reusing these bricks should be investigated, it may be possible to cut ‘panels’ from the external walls."]
[null,"Demolish and Recycle","Existing concrete\nExisting structural steelwork \nExisting brickwork and tiles\nExisting windows","Concrete on site should be segregated and can be crushed to produce recycled concrete aggregate \n\nMetal could be dismantled and reused or recycled. Other metal items can be recycled, and the decorative metal work and grates could be repurposed.\n\nWhere reuse is not possible, the bricks should be separated from other materials and can be crushed to produce recycled aggregate. If this material is surplus to requirements or there is not enough space on site for storage it should be sent to a licensed waste contractor for crushing and recycling.\n\nOn site existing building materials to be recovered where practical and either re-used on site or recycled off site as per BREEAM Wst 01 credit diversion from landfill. \n\nSpecialist to be appointed to undertake a pre-demolition audit to assess the opportunities for maximising material recovery. \n\nThe windows in the main building 1 appear to be double glazed with aluminium, and in relatively good condition. Windows in building 2 appear to be single glaze, with varied frames of timber and aluminium. These windows could be considered for re-use via a salvage/ reclamation contractor, it is unlikely that it will be possible to reuse the windows elsewhere onsite so these should be segregated on site where possible. The glass from the partitions could be offered for reuse but if this is not possible it should also be segregated on site before being removed by a licensed waste contractor for recycling.\n\nBREEAM Wst 01 to be achieved and exceeded with 95% of demolition waste to be diverted from landfill.  "]
[null,"Circular Economy Design Approaches for New Buildings, Infrastructure and Layers Over the Lifetime of the Development",null,"Applicant Response"]
[null,"Is the whole building designed to have a short life on its current site? (e.g. less than 10 yrs)",null,"No"]
[null,"Is there likely to be a need for building of a similar size (etc.) in different locations in the future?"]
[null,"Is it foreseeable that the building will need to change use/function within its design life?",null,"No"]
[null,"The preferred strategy is:",null,"Design for BUILDING RELOCATION"]
[null,"The preferred strategy is:",null,"Design for COMPONENT / MATERIAL REUSE"]
[null,"The preferred strategy is:",null,"Design for ADAPTABILITY"]
[null,"All developments should apply the 6 Circular Economy principles, including:",null,"Designing for DISASSEMBLY and ADAPTABILITY, MATERIAL REUSE ON-SITE and/or RECYCLING should be maximised"]
[null,"Circular Economy Design Approach","Phase/Building/Area/Layer","Strategic Response"]
[null,"Building relocation","N/A","N/A"]
[null,"Component or material reuse","Brick and Blockwork \nMaterials and Framing\nDesign for Off-site Manufacture – Precast Concrete\nCement Replacement\nRecycled Reinforcement\nRecycled Aggregates\nLightweight Aggregates","Hand laid brick specified currently over prefabricated bonded systems.\n\"A concrete frame solution, with optimum structural grids, minimizing transfer structures has been developed to meet the client brief.\n\nIn order to reduce the embodied carbon and improve sustainability of the concrete solution, a number of efficiencies have been considered as described below. The building will also benefit from the thermal mass properties of concrete throughout its design life post-construction to offset carbon as a result of the new development.\"\nAn in-situ concrete solution has been assumed for the frame with precast stairs. Design for off-site manufacture of the primary structural frame components will be investigated for the next stage of procurement. This could incorporate precast column sections, twin wall and solid panel precast construction. By using an off-site precast concrete facility, sustainability can be enhanced through management and control of the construction process reducing wastage and optimising vehicle deliveries. Current member sizes for the core walls are such that they can be constructed using a Twin-Wall system or similar.\n\"Cement replacement with GGBS results in a reduction in the embodied carbon as a result of cement production. Ground Granulated Blast Furnace Slag (GGBS) is a by-product of iron making and an effective cement replacement material which can reduce the embodied carbon of a concrete mix.\n\nConcrete mix designs for the project are to incorporate a typical minimum 30% cement replacement with GGBS. Increasing GGBS has an effect on the rate of early age strength development of the concrete. Proposals for cement replacement at higher levels will need to be reviewed with the contractor for the impact on formwork cycles and striking times. The typical 7-day strength of a GGBS concrete has been found to be 55-65% of the 28 day strength compared to 70-80% for a similar CEM I mix. Similar 28 day strengths to a CEM I mix will normally be achieved when using up to 50% GGBS cement replacement.\n\nConsideration of maximum GGBS will be undertaken with the main contractor for supply chain feedback and developed with strength gain in considered versus formwork cycles.\n\n• Target min 25-30% GGBS in concrete slabs/walls and columns\n• Target min 30-50% GGBS in foundations/piles & pilecaps\"\n\"Many of the major reinforcement producers recycle locally sourced scrap metal using an electric arc furnace process, with minimal new materials to ensure correct properties. The high percentage of recycled material reduces the embodied carbon factor. Contractor proposals for reinforcement procurement will be reviewed for their use of recycled materials to ensure a more sustainable solution.\n\n• Target 97% recycled content\"\nRecycled aggregates give a reduction in the use of virgin aggregates and the use of recycled concrete aggregates reduces the amount of waste sent to landfill. Thus, valuable mineral resources are preserved and there can be an improvement on the overall carbon footprint. Provision will be made in the specification for recycled aggregates in the next stage.\n\"By using lightweight aggregates, the self-weight of the structural concrete can be reduced, in turn reducing loading to columns and foundations to minimise section sizes and material volumes. Other potential benefits include improved handling and lifting operations of lighter precast elements and a reduction in formwork and propping materials.\n\nThe use of lightweight aggregates has an effect on the structural properties of the concrete however and a detailed review would be required. Additionally, there are procurement aspects to consider due to greater limitations on supplier.\""]
[null,"Adaptability","New Building ","The structural grid and service routes for the new building are arranged in a highly regular grid. Together with a relatively shallow block depth and core locations, the buildings lends itself to a residential adaptation. Typical residential and hotel layouts have been tested using these grids. Amenity spaces could be re-purposed for hotel restaurant/ bar and BOH use. \n\n  In terms of specific spare capacity allocated within new plant and distribution mains, the following allowances will be considered as the design is developed:\n\n\t25% capacity on electrical distribution boards (number of  ways)\n\t25% spare capacity (by number of points) on BEMS system\n\t100% spare capacity on sprinkler pumps (N+1), via duty and stand-by pump arrangement\n\t100% spare capacity on wet riser pumps (N+1), via duty and stand-by pump arrangement\n\t100% spare capacity on domestic water pumps (N+1), via duty, assist & stand-by pump arrangement\n\nMargins will be allowed on the specified duty of plant in line with CIBSE recommendations.\n\nThe extent to which future expansion is required for the project is undefined, and there is no intent to designate specific floor plate which is to be used for future expansion associated with MEP plant. However primary infrastructure plant for example, water booster pumps etc. will be modular in design such that additional infrastructure can be easily added should there be a need for future expansion on the site.\n\n"]
[null,"Flexibility","New Building","The structural grid and service routes for the new building are arranged in a highly regular grid. Together with a relatively shallow block depth and core locations, the buildings lends itself to a residential adaptation. Typical residential and hotel layouts have been tested using these grids. Amenity spaces could be re-purposed for hotel restaurant/ bar and BOH use. \n\nMEP systems will be designed such that they can be modified to suit a degree of internal reconfiguration without the need for major replacement, for example by zoning and careful design of system circuitry. Zone isolation facilities will be provided to enable reconfiguration work to take place without affecting the entire building.\n\nThe concrete frame building is designed for a mixture of residential/student and Industrial uses. With regards to a future change of use for the building as a whole, the load allowances are such that the student accommodation could be converted to either residential/hotel use with minimal construction works to the frame. The Industrial box has a higher degree of flexibility in change of use as its been designed for high floor loadings and large clear spans. The concrete slabs give good flexibility for the introduction of new builders work holes in future.\n\nWith the use of precast components, through careful demolition, whole sections can be reused for other developments, reducing the embodied carbon of future construction work.\n\nA movement joint has been incorporated between the student/residential accommodation to allow future flexibility should part of the structure need to be demolished.\n\n"]
[null,"Replaceability","All areas","Plant areas area accessed by the core or are directly accessible from the street to ensure plant replacement is possible. Risers to the PBSA rooms are accessed from the communal corridor to ensure repair and replacement without access to rooms is possible. For further input, refer to STR and MEP.\nAll items of plant and equipment will be installed and located in such a manner that access for servicing and maintenance is achieved in accordance with the manufacturer’s minimum requirements. In addition, relevant guidance from other good practice documents will be followed, including CIBSE Guide to ownership, operation, and maintenance of building services,\n\nTo develop an initial strategy for removing and replacing major items of Building Services plant, the following allowances have been made within the design:\n\nPlantrooms at Level 00 have access direct to outside, or onto a communal corridor.\nPlant generally can be broken down into component parts and can be moved to lifts and through the internal corridors wherever necessary,\nMechanical and Public Health plant rooms to have double doors of clear width 2,000mm and an absolute minimum clear height of 2,400mm,\nClear height within plant rooms shall generally be at a minimum of 3,780mm,\nAll plant room doors open into the corridor or externally, and flat against the wall.\n"]
[null,"Disassembly","All areas","Material passports will be used for all significant elements of the build. Information on products and materials, their history re-use potential will be stored in the BIM model issued on completion of the project. This will allow for easier future use of building components and encourage specification of products and systems that can easily be deconstructed. \n\nAll items of major MEP plant will generally be capable of being disasemnled into component parts and re-assembled insitu. As the design develops a plant access and aminatnace stratgey will be produed which will demotrate how major items of plant and ewquipment can be replaced throughout the life of the building. \n\nThe concrete frame building is designed for a mixture of residential/student and Industrial uses. With regards to a future change of use for the building as a whole, the load allowances are such that the student accommodation could be converted to either residential/hotel use with minimal construction works to the frame. The Industrial box has a higher degree of flexibility in change of use as its been designed for high floor loadings and large clear spans. The concrete slabs give good flexibility for the introduction of new builders work holes in future.\n\nWith the use of precast components, through careful demolition, whole sections can be reused for other developments, reducing the embodied carbon of future construction work.\n\nA movement joint has been incorporated between the student/residential accommodation to allow future flexibility should part of the structure need to be demolished."]
[null,"Longevity","All areas","The reinforced concrete frame used throughout all parts of the building will be designed for a long lifespan to enable future re-use. Brick and masonry facades which are used across 80% of the building are typically very durable and require little maintenance to ensure their longevity. \n\nInherently MEP plant when used heavily, will over the life of a building will require replacement, to extend the servcie life of the plant and equipment a reobust mainteance strategy incorprating PPM should be adopted by the client and buidliung operators."]
[]
[]
[null,"Circular Economy Design Principles by Building Layer"]
[null,"The Circular Economy Design Principles by Building Layer table should consider where the Applicant seeks to go beyond standard practice. If there are multiple phases / buildings / areas with different measures / strategies, please specify these separately within the table below."]
[null,null,null,null,"Building Layer",null,null,null,null,null,null,null,"Summary","Challenges","Actions & Counter-Actions, Who and When","Plan to Prove and Quantify"]
[null,null,null,null,"Site","Substructure","Superstructure","Shell/Skin","Services","Space ","Stuff","Construction Stuff"]
[null,"Is it likely the layer (or components within it) will need to be moved or otherwise modified within 5-15 years, e.g. due to changing use patterns or user requirements?",null,null,"N/A","No","No","No","No","No","Yes","N/A"]
[null,"Is it likely the layer (or components within it) will need to be changed, upgraded or replaced within 5-15 years, e.g. for improved performance, aesthetics",null,null,"N/A","No","No","No","No","Yes","Yes","N/A"]
[null,"The preferred strategy is:",null,null,"-",{"$f":"IF(F73=\"Yes\",\"Design for FLEXIBILITY\",IF(F74=\"Yes\",\"Design for REPLACEABILITY\",IF(AND(F73=\"No\",F74=\"No\"),\"Design for ADAPTABILITY\",\"\")))","v":"Design for ADAPTABILITY"},{"$f":"IF(G73=\"Yes\",\"Design for FLEXIBILITY\",IF(G74=\"Yes\",\"Design for REPLACEABILITY\",IF(AND(G73=\"No\",G74=\"No\"),\"Design for ADAPTABILITY\",\"\")))","v":"Design for ADAPTABILITY"},"Design for ADAPTABILITY","Design for ADAPTABILITY","Design for REPLACEABILITY","Design for FLEXIBILITY","-"]
[null,"Design Principles",null,null,"All developments should apply the 6 circular economy principles, including designing for DISASSEMBLY and ADAPTABILITY, MATERIAL REUSE ON-SITE and/or RECYCLING should be maximised."]
[null,"Designing out waste",null,"Module A - Product Sourcing and Construction Stage","Soft landscape has been maximised. Where paths are required, brick pavers and resin bound surfacing have been used in the locations where increased durability is required, otherwise self-binding gravel is used.\n\nThe piling mat is to make use of the site-won materials arising from demolition of the existing building and hardstanding. Crushed material may also be considered for export and reuse elsewhere as 6F2.\n\nStage 2 design utilizes the existing basement retaining wall as a temporary propping system to avoid the need for mechanical props and additional concrete thrust blocks. The proposed basement requires to be lower than the existing basement to satisfy minimum headroom requirements and it is proposed to construct a contiguous piled wall in board of the existing retaining wall to prevent undermining the existing basement structure. Where there is sufficient space to safely batter excavations a traditional reinforced concrete wall has been proposed to reduce the volume of concrete required for a full piled embedded retaining wall solution.","A concrete frame solution, with optimum structural grids, minimizing transfer structures has been developed.\n\nPrecast stairs has been assumed.\n\nDesign for off-site manufacture of the primary structural frame components will be investigated for the next stage, e.g. precast column sections, twin wall and solid panel precast construction.\n\n• Target min 25-30% GGBS in concrete slabs/walls and columns\n• Target min 30-50% GGBS in foundations/piles & pilecaps\n• Target 97% recycled content for reinforcement\n\nProvision will be made in the specification for recycled aggregates in the next stage.\n\nLightweight aggregates will be considered, however a detailed review would be required.","Target min 25-30% GGBS in concrete slabs/walls and columns","Low carbon materials; high recycled content; re-use from alternative waste stream (i.e. recycled bricks); recyclable materials; materials with EPDs.","The MEP design will be sympathetic towards the use of modular approaches, such as pre-fabricated pod bathrooms, and pre-fabricated utility cupboards. In general the approach to modular construction will be governed by the contractor.","Prefabricated or assembled off-site elements to be prioritised where possible i.e bathroom pods","Prioritise locally sourced materials where possible, including furniture and fixtures that are designed with sustainability in mind.","Opportunities to be investigated. and to be reviewed with contractor","The nature of the design utilising a repetitive cellular arrangement lends itself to a system-based modular approach. Use of pre-fabricated elements especially internally presents opportunities for efficiency, both spatially and in reducing waste. Likewise, layouts have been developed to optimise the structural grid and minimise the amount of concrete and reinforcement required.","Achieving optimal structural design through detailed design stages. \n\nMaximising cement replacement without impacting programme (e.g. affecting curing times)\n\nSourcing local products and systems for as many elements of the build as possible – these may potentially result in increased costs. \n\nLikewise, sourcing sustainable materials may present cost/ viability challenges. \n\nRecycled content targets may limit product choice options.","Rationalised building form and regular structural grid reduces the need for transfers and prioritises minimal wastage throughout where possible.\n\nLarge span and regular structural grid  and rationalised integrated building form reduces the need for transfers and prioritises minimal wastage throughout where possible.\n\nSourcing local materials and products to reduce emissions and use low-carbon materials where possible. \n\nUse materials with high recycled content and can be recycled/reused\n\nUse materials with EPDs to compare and track environmental information\n\nConsider pre-fabricated and precast facades to maximise quality control & reduce waste\n\nModularised elements reduce amount of waste produced\n\nLocally sourced furniture and fixtures  that are designed with sustainability in mind\n\nDiscussions to be conducted with fit-out suppliers/ subcontractors on reducing waste and re-usability of system components. E.g. purpose built furniture, fittings and finishes. ","Embodied carbon analysis tools to be used to test options at detailed design stages where applicable. \n\nEPD certificates to be sought for comparison tests between material choice options. \n\nBREEAM credits for Mat 01, Mat 02, Mat 03, Wst 01 and Ene 01 to be achieved. \n\nImplementation of a Site Waste Management Plan \n\nReporting of actual waste against forecast waste within the Site Waste Management Plan"]
[null,null,null,"Module B - In-Use Stage","Adequate and recommended watering of trees and plants during initial establishment, to ensure these do not need to be replaced unnecessarily. Maintain weed growth in pavers which could damage joints.","N/A, minimum work requried ","N/A, minimum work requried ","Allow easy maintenance reduce full elements replacement and related waste ","Leak detection and monitoring systems is proposed to be incorporated within the MEP design, both for the incoming mains water services and throughout the risers. ","Waste will be segregated into refuse, recyclables and garden waste where applicable","\nWaste segregation into refuse, recyclables, and garden/food waste where applicable\nOperators/ landlords to develop strategies for analysing post-occupancy data.\n\nImplementation of Operational Waste Management Plan with effective methods to ensure that operational performance will be managed and reported","N/A","Building has been designed to respond to overheating requirements, lowering operational energy and heating requirements as much as possible and managing environmental constrains.\n\nThe nature of the ongoing management presents opportunities to optimise their operations consumption of energy and other products. \n\nImplementation of the Operational Waste Management Plan\n\nThe production of a Building User Guide","Data on energy and water consumption will need intelligent analysis from all landlords to learn the right lessons which then feed into changes in the way facilities are operated to reduce energy and water use. \n\nAchievement of the 65% Municipal Waste recycling target.\n\nMaterials to be robust and easy to maintain and replace. \n\n","Mechanically fixed façade modules that can be disassembled\n\nFixing elements such as windows and doors that can be easily removed and disassembled, causing minimal damage to materials \n\nThermal mass of structures to moderate temperature variations minimising main volume mechanical systems.                       \n\nHigh thermal fabric values throughout further minimises energy consumption\n\nPassive measures integrated into architecture such as building orientation, shading, natural ventilation\n\nThermally broken PPC aluminium windows provides better insulation and reduces need for mechanical heating/cooling, which reduces operational energy\n\nLeak detection will be included in the design\n\nWaste segregation into refuse, recyclables, and garden/food waste where applicable\nOperators/ landlords to develop strategies for analysing post-occupancy data.\n\nImplementation of Operational Waste Management Plan with effective methods to ensure that operational performance will be managed and reported","Mechanical fixing of materials where possible as opposed to bonding to reduce damage and allow for future disassembly and reuse.\n\nContinuous reduction in energy and water use, recorded year on year. \n\nSubmission of final Site Waste Management Plan\n\nBREEAM credits for Man 04, Ene 01, Ene 02, Mat 01, Mat 05 Wst 03, Wst 06 and Wat 02."]
[null,null,null,"Module C - End-of-Life Stage","Play equipment is off-the-shelf, from a supplier who can recycle equipment.","Steel reinforcement can be recycled. Concrete can be crushed for general aggregate.",null,"Maximize diversion from landfill","The design will seek to incorporate measures to allow refrigerant recovery allowing the safe removal of refrigerants, such as CFCs, HCFCs, or HFCs, from cooling systems like air conditioners, refrigerators, and heat pumps. This procedure is essential to prevent the release of harmful chemicals into the atmosphere, which can contribute to ozone depletion and global warming. During recovery, refrigerants would be collected and stored in certified recovery cylinders using specialized equipment, ensuring compliance with environmental regulations.","Minimising Packaging","Mechanical fixing of items as opposed to bonding","Opportunities to be investigated. and to be reviewed with contractor","Due to the need for a concrete frame as the most efficient non-combustible structure, most opportunities for re-use will be in internal fittings.\n\nA Whole Life Carbon Assessment has been undertaken, and includes default end of life scenarios as set out with in OneClick LCA software (Mat 01)","Building to be designed to be adapted for  future reuse and adaptation Some thought will be needed in how to maximise the opportunities for re-use of non-structural components","Fully agile and flexible operational volume from GF slab to underside of beams with large spans between columns enabling a full range of logistics uses and future proofing adjustments of uses future decades.       \n\nArchitect, MEP consultant and structural engineer to specify and design for re-use at the next stage.\n\nMechanical fixing of items as opposed to bonding\n\nOpportunities to be investigated and to be reviewed with contractor","Material passports will be used where possible at the next stage of detailed design to aid re-use. Product and material information including its history and potential for re-use will be incorporated for all key elements into the BIM model. \n\nAchieve Wst 06 Credit"]
[null,null,null,"Module D - Benefits and Loads Beyond the System Boundary","Concrete elements to be crushed to aggregates","Concrete elements can be crushed to aggregates ",null,null,"Supplier takeback schemes should be considered for end of life. Noted that the MEP design cannot really provide any influence on this aspect. ","Waste segregation to be provided for all uses",null,"Opportunities to be investigated. and to be reviewed with contractor","Refer to sections on Module C, Due to the need for a concrete frame as the most efficient non-combustible structure, most opportunities for re-use will be in internal fittings.","Refer to sections on Module C\n\nSupplier takeback schemes to be considered, this might have cost impact and limit supplier choice. ","Refer to sections on Module C\n\nConcrete elements to be crushed to aggregates.\n\nInternal finishing materials to be reused elsewhere if in good condition.","Refer to sections on Module C.\n\nOpportunities to be investigated and to be reviewed with contractor"]
[null,"Designing for longevity",null,null,"- Sand surfacing around play equipment, rather than grass. A durable ground material that is not worn through use.\n\n- The hammock and play huts are off-The-shelf products, from A local supplier who can carry out maintenance and replace parts should they be required. Balancing play equipment (boulders, ‘fallen’ logs and Balancing stumps) are all easy to replace natural products.\n\n- Seating around The site is composed of A brick structural base with timber batten seating attached to The top face. timber battens will be regular sized and easy to replace should damage or wear occur.","The building will benefit from the thermal mass properties of concrete throughout its design life post-construction to offset carbon as a result of the new development.",null,"Priorotise use of self-finishing products;  metal and bricks; reduce coatings; design details to avoid weathering","Work undertaken during the early stages of design did not identify any, suitable heat network within the area, however the energy strategy developed utilises heat pump technology throughout which is expected to align with current and future design standards providing longevity in terms of the services strategies within the scheme. ","Use of durable materials",null,"Opportunities to be investigated. and to be reviewed with contractor","A lean approach to finishes in shared spaces as well as more durable finishes generally. \n\nAim to achieve credits under Mat 05 Designing for durability and resilience and Wst 05 Adaptation to climate change","Building structure to be designed to balance a long lifespan and low embodied carbon. \n\nDesigning or specifying fittings for longevity without impacting on viability will be a challenge to overcome when the scheme is looked at in more detail at the next stage. ","A minimum of a 100 year plus structural design to be achieved, which will significantly reduce the embodied carbon footprint when measured from construction and into its long life of highly flexible uses. \n\nUse of durable materials that can withstand weathering.\n\nFlexibility and adaptability extends lifetime of spaces and reduces decay\n\nArchitect to work closely with the client/ operator to achieve reusability, adaptability, and longevity ","Opportunities to be investigated. and to o be reviewed with contractor\n\nPerformance will be monitored at\nthe point of specification and implementation will be verified based on the As Built Information to be included in either the O&M Manual.\n\nAchieve Mat 05 and Wst 05 Credits"]
[null,"Designing for adaptability or flexibility",null,null,"- Low brick walls are throughout the landscape, often serving dual functions. E.g. retaining walls, seating and soft-thresholds.\n\n- The paved spill-out area from the commercial space into the student courtyard is designed so that it would be possible to separate from the student space with a fenced boundary, should this separation be required in the future","The load allowances are such that the student accommodation could be converted to either residential/hotel use with minimal construction works to the frame. The Industrial box has a higher degree of flexibility in change of use as it has been designed for high floor loadings and large clear spans. The concrete slabs give good flexibility for the introduction of new builders work holes in future.\n\nA movement joint has been incorporated between the student/residential accommodation to allow future flexibility should part of the structure need to be demolished.",null,"Façade modularization princiapls to be explored during the next stage","The MEP design will be sympathetic towards the use of modular approaches, such as pre-fabricated pod bathrooms, and pre-fabricated utility cupboards. In general the approach to modular construction will be governed by the contractor.","Maximise modularisation and off-site fabrication where possible",null,"Opportunities to be investigated. and to be reviewed with contractor","Multi options for adaptability of the proposed building. This includes converting the co-living space to residential or to a hotel. With additional options for adaptation for Industrial space depending on future use. \n\nThere are further options for adaptations including the Plant and Servicing areas, Facade replacement, an in internal reconfiguration and a vertical/horizontal extension\n\nRefer to the separate report on adaptability for more information. (Wst 06)","Finding the optimum layout for future uses\n\nFully agile and flexible operational volume from GF slab to underside of beams with large spans between columns enabling a full range of logistics uses and future proofing adjustments of uses future decades.                                                           ","Fully agile and flexible operational volume from GF slab to underside of beams with large spans between columns enabling a full range of logistics uses and future proofing adjustments of uses future decades.   \n\nMaximise modularisation of façade and elements within (such as windows, ventilation panels, etc.)         \n\nSpaces designed to be flexible and adaptable, allowing for different uses and extending lifetime of spaces\n\nLarge structural grids allow for flexibility                                               ","Achieve Wst 06 Credits at both concept design and technical design\n\nDisassembly strategies and opportunities to be reviewed \nand investigated with contractor."]
[null,"Designing for disassembly",null,null,"Module style brick and timber seating",null,null,"Bolted connections for balconies and deck access allow for disassembly","The MEP design will be sympathetic towards adopting a standardised approach allowing modular component parts (for example valve sets, pre-fabricated drainage pipework, riser modules) to be utilised. ","Disassembly strategy to be reviewed",null,"Opportunities to be investigated. and to be reviewed with contractor","Refer to the notes on material passports. This will effectively provide a materials bank to enable potential re-use in future projects on this or other sites. \n\nIrreversible fixing methods that restrict disassembly and re-use are to be avoided. For example, use of adhesives should be restricted where practical.\n\nAim to achieve two credits under Wst 06 Design for Disassembly and Functional Adaptability","Maximize the use of standardised components and avoid design solutions which constrain disassembly/recoverability.\n\nThe rainscreen façade to be designed for ease of disassembly\n\nMechanical fixing of items as opposed to bonding.","Disassembly/recoverability review during detailed design (structural engineer, architect, contractor input)\n\nColumn free canopy over ramp and holding zone, cantilevered acoustic canopy to be steel frame to prioritise disassembly potential. Curtain wall systems to proioritise for ease of disassembly.\n\nSteelwork connections will be designed as bolted","Aim to achieve two credits under Wst 06 Design for Disassembly and Functional Adaptability\n\nPerformance will be monitored at the point of specification and implementation will be verified based on the As Built information\n\nInformation to be included in either the O&M or Building User Guide.\n\nAchieve Wst 06 Credits"]
[null,"Using systems, elements or materials that can be re-used and recycled",null,null,"Use of more readily recycled materials: Timber play equipment and brick pavers","With the use of precast components, through careful demolition, whole sections can be reused for other developments, reducing the embodied carbon of future construction work.",null,"Use metals with little coating to allow recyclability; use recycled aluminium; use recycled bricks where possible; consider glass made with post-consumer recycled content;","Supplier takeback schemes should be considered for end of life. Noted that the MEP design cannot really provide any influence on this aspect. ","High recycled content Plasterboard to be considered",null,"Opportunities to be investigated. and to be reviewed with contractor","Targeting 4 credits under Mat 03 Responsible Sourcing \nof Construction Products. The development of a sustainable procurement plan for substructure, superstructure, internal finishes, and hard landscaping.","Availability of recyclable construction materials. Potential of regional supply shortages of materials such as blast-furnace slag by-product due to reduced slag output. \n\nCommercial viability of the scheme may be compromised by tightly specifying materials with overly ambitious sustainability credentials at this stage.\n\nCosting of responsible materials. Lack of available material within UK and its closed borders.","Design Team to ensure that product selection at the \npoint of specification has high ambitions for sustainability and include performance requirements within tender information.","Performance will be monitored at the point of specification and implementation will be verified based on the As Built information\n\nAchievement of 4 Credits for Mat 03"]
[]
[]
[null,"Bill of Materials"]
[null,"Please click the + symbol to the left hand side of the Bill of Materials table to view or hide the input rows for each Building Element Category. The rows for substructure and frame have been unhidden to highlight this. A fixed number of rows has been provided for each Building Element Category based on a sub-set of typical WLCA submissions. Should the number of rows provided not be sufficient to allow input of all materials for a given Building Element Category, Applicants should prioritise the inclusion of the materials with the highest quantity. "]
[null,null,"BUILDING ELEMENT CATEGORY -  LEVEL 1 (based on the RICS New Rules of\nMeasurement (NRM) classification system level 2 sub-elements https://www.rics.org/globalassets/rics-website/media/products/data-products/bcis-construction/bcis-elemental-standard-form-cost-analysis-4th-nrm-edition-2012.pdf)",null,"PRODUCT AND CONSTRUCTION STAGE (MODULE A)",null,null,null,null,null,null,null,"USE STAGE (MODULE B)",null,null,null,null,"END OF LIFE STAGE (MODULE C)",null,null,null,null,"BENEFITS BEYOND THE SYSTEM BOUNDARY (MODULE D)"]
[null,null,"Building Element Category",null,"Material Type","Material quantity\n(Module A)\n(kg)","Material intensity \n(Module A) \n(kg/m2 GIA)","Performance Indicator (LPG Appendix 1)","Construction Waste Factor \n(Module A)","Construction Waste \n(Module A)\n(kg)","Recycled Content \nby mass (kg)","Recycled Content \nby value (%)","Expected Lifespan\n(years)","Number of Replacements (over assumed 60-year period)","Repair and Replacement quantities of materials\n(Module B)\n (kg)","Construction Waste Factor \n(Module B)","Construction Waste \n(Module B)\n(kg)","Design for Disassembly","Assumed End of Life Scenario\n(Description)","% Reusing ","% Recycling","% Landfill","Estimated reusable materials (kg)","Estimated reusable materials intensity\n(kg/m2 GIA)","Estimated recyclable materials (kg)","Estimated recyclable materials intensity\n(kg/m2 GIA)"]
[null,0.1,"Demolition: Toxic/Hazardous/Contaminated Material Treatment",null,"-",{"$f":"SUM(F92:F106)","v":0},{"$f":"IF(AND(F91<>0,$D$31<>0),F91/$D$31,0)","v":0},"-","-",{"$f":"SUM(J92:J106)","v":0},"-","-","-","-",{"$f":"SUM(O92:O106)","v":0},"-",{"$f":"SUM(Q92:Q106)","v":0},"-","-",{"$f":"IF(W91<>0,W91/($F$91+$O$91),0)","v":0},{"$f":"IF(Y91<>0,Y91/($F$91+$O$91),0)","v":0},{"$f":"1-T91-U91","v":1},{"$f":"SUM(W92:W106)","v":0},{"$f":"IF(AND(W91<>0,$D$31<>0),W91/$D$31,0)","v":0},{"$f":"SUM(Y92:Y106)","v":0},{"$f":"IF(AND(Y91<>0,$D$31<>0),Y91/$D$31,0)","v":0}]
[null,0.1,"Demolition: Toxic/Hazardous/Contaminated Material Treatment",null,null,null,{"$f":"IF(AND(F92<>0,$D$31<>0),F92/$D$31,0)","v":0},"-",0,{"$f":"F92*I92","v":0},null,null,null,{"$f":"IF(M92<>0,INT(59/M92),0)","v":0},{"$f":"F92*N92","v":0},0,{"$f":"O92*P92","v":0},null,null,0,0,{"$f":"1-T92-U92","v":1},{"$f":"T92*(F92+O92)","v":0},{"$f":"IF(AND(W92<>0,$D$31<>0),W92/$D$31,0)","v":0},{"$f":"U92*(F92+O92)","v":0},{"$f":"IF(AND(Y92<>0,$D$31<>0),Y92/$D$31,0)","v":0}]
[null,null,null,null,null,null,{"$f":"IF(AND(F93<>0,$D$31<>0),F93/$D$31,0)","v":0},"-",0,{"$f":"F93*I93","v":0},null,null,null,{"$f":"IF(M93<>0,INT(59/M93),0)","v":0},{"$f":"F93*N93","v":0},0,{"$f":"O93*P93","v":0},null,null,0,0,{"$f":"1-T93-U93","v":1},{"$f":"T93*(F93+O93)","v":0},{"$f":"IF(AND(W93<>0,$D$31<>0),W93/$D$31,0)","v":0},{"$f":"U93*(F93+O93)","v":0},0]
[null,null,null,null,null,null,0,"-",0,0,null,null,null,0,0,0,0,null,null,0,0,1,0,0,0,0]
[null,null,null,null,null,null,0,"-",0,0,null,null,null,0,0,0,0,null,null,0,0,1,0,0,0,0]
[null,null,null,null,null,null,0,"-",0,0,null,null,null,0,0,0,0,null,null,0,0,1,0,0,0,0]
[null,null,null,null,null,null,0,"-",0,0,null,null,null,0,0,0,0,null,null,0,0,1,0,0,0,0]
[null,null,null,null,null,null,0,"-",0,0,null,null,null,0,0,0,0,null,null,0,0,1,0,0,0,0]
[null,null,null,null,null,null,0,"-",0,0,null,null,null,0,0,0,0,null,null,0,0,1,0,0,0,0]
[null,null,null,null,null,null,0,"-",0,0,null,null,null,0,0,0,0,null,null,0,0,1,0,0,0,0]
[null,null,null,null,null,null,0,"-",0,0,null,null,null,0,0,0,0,null,null,0,0,1,0,0,0,0]
[null,null,null,null,null,null,0,"-",0,0,null,null,null,0,0,0,0,null,null,0,0,1,0,0,0,0]
[null,null,null,null,null,null,0,"-",0,0,null,null,null,0,0,0,0,null,null,0,0,1,0,0,0,0]
[null,null,null,null,null,null,0,"-",0,0,null,null,null,0,0,0,0,null,null,0,0,1,0,0,0,0]
[null,null,null,null,null,null,0,"-",0,0,null,null,null,0,0,0,0,null,null,0,0,1,0,0,0,0]
[null,null,null,null,null,null,0,"-",0,0,null,null,null,0,0,0,0,null,null,0,0,1,0,0,0,0]
[null,0.2,"Major Demolition Works",null,"-",{"$f":"SUM(F108:F122)","v":3233210.02},{"$f":"IF(AND(F107<>0,$D$31<>0),F107/$D$31,0)","v":327.28110335054157},"-","-",{"$f":"SUM(J108:J122)","v":0},"-","-","-","-",{"$f":"SUM(O108:O122)","v":0},"-",{"$f":"SUM(Q108:Q122)","v":0},"-","-",{"$f":"IF(W107<>0,W107/($F$107+$O$107),0)","v":0},{"$f":"IF(Y107<>0,Y107/($F$107+$O$107),0)","v":0.94999999999999984},{"$f":"1-T107-U107","v":5.0000000000000155E-2},{"$f":"SUM(W108:W122)","v":0},0,{"$f":"SUM(Y108:Y122)","v":3071549.5189999994},310.9170481830144]
[null,0.2,"Major Demolition Works",null,"Concrete (inc. foundations) ",2762811.59,{"$f":"IF(AND(F108<>0,$D$31<>0),F108/$D$31,0)","v":279.66510679218544},"-",null,{"$f":"I108*F108","v":0},"n/a",null,60,{"$f":"IF(M108<>0,INT(59/M108),0)","v":0},{"$f":"F108*N108","v":0},0,{"$f":"O108*P108","v":0},null,"offsite recycling",0,0.95,5.0000000000000044E-2,0,0,2624671.0104999999,265.68185145257615]
[null,null,null,null,"Brick/ceramics tiles ",102295.4,{"$f":"IF(AND(F109<>0,$D$31<>0),F109/$D$31,0)","v":10.354833485170563},"-",null,0,"n/a",null,60,{"$f":"IF(M109<>0,INT(59/M109),0)","v":0},{"$f":"F109*N109","v":0},0,{"$f":"O109*P109","v":0},null,"offsite recycling",0,0.95,5.0000000000000044E-2,0,0,97180.62999999999,9.8370918109120353]
[null,null,null,null,"Glass ",350,{"$f":"IF(AND(F110<>0,$D$31<>0),F110/$D$31,0)","v":3.5428687114080371E-2},"-",null,0,"n/a",null,60,0,0,0,0,null,"offsite recycling",0,0.95,5.0000000000000044E-2,0,0,332.5,3.3657252758376353E-2]
[null,null,null,null,"Carpet (Tiles) ",4873,0.49326854944832471,"-",null,0,"n/a",null,60,0,0,0,0,null,"offsite recycling",0,0.95,5.0000000000000044E-2,0,0,4629.3499999999995,0.46860512197590842]
[null,null,null,null,"Plasterboard (gypsum based)",115552.77,11.696808381415124,"-",null,0,"n/a",null,60,0,0,0,0,null,"offsite recycling",0,0.95,5.0000000000000044E-2,0,0,109775.1315,11.111967962344368]
[null,null,null,null,"Timber",2902.17,0.29377163680534468,"-",null,0,"n/a",null,60,0,0,0,0,null,"offsite recycling",0,0.95,5.0000000000000044E-2,0,0,2757.0614999999998,0.2790830549650774]
[null,null,null,null,"Metal",149631.79,15.146451057799373,"-",null,0,"n/a",null,60,0,0,0,0,null,"offsite recycling",0,0.95,5.0000000000000044E-2,0,0,142150.20050000001,14.389128504909404]
[null,null,null,null,"Insulation",35206.559999999998,3.563777710294564,"-",null,0,"n/a",null,60,0,0,0,0,null,"offsite recycling",0,0.95,5.0000000000000044E-2,0,0,33446.231999999996,3.3855888247798358]
[null,null,null,null,"Other Products (Fixtures & Fittings, inc. carpet) ",59586.74,6.0316570503087359,"-",null,0,"n/a",null,60,0,0,0,0,null,"offsite recycling",0,0.95,5.0000000000000044E-2,0,0,56607.402999999998,5.7300741977932992]
[null,null,null,null,null,null,0,"-",null,0,null,null,null,0,0,0,0,null,null,null,null,1,0,0,0,0]
[null,null,null,null,null,null,0,"-",null,0,null,null,null,0,0,0,0,null,null,null,null,1,0,0,0,0]
[null,null,null,null,null,null,0,"-",null,0,null,null,null,0,0,0,0,null,null,null,null,1,0,0,0,0]
[null,null,null,null,null,null,0,"-",null,0,null,null,null,0,0,0,0,null,null,null,null,1,0,0,0,0]
[null,null,null,null,null,null,0,"-",null,0,null,null,null,0,0,0,0,null,null,null,null,1,0,0,0,0]
[null,null,null,null,null,null,0,"-",null,0,null,null,null,0,0,0,0,null,null,null,null,1,0,0,0,0]
[null,0.3,"Temporary Support to Adjacent Structures",null,"-",{"$f":"SUM(F124:F138)","v":0},{"$f":"IF(AND(F123<>0,$D$31<>0),F123/$D$31,0)","v":0},"-","-",{"$f":"SUM(J124:J138)","v":0},"-","-","-","-",{"$f":"SUM(O124:O138)","v":0},"-",{"$f":"SUM(Q124:Q138)","v":0},"-","-",{"$f":"IF(W123<>0,W123/($F$123+$O$123),0)","v":0},{"$f":"IF(Y123<>0,Y123/($F$123+$O$123),0)","v":0},1,{"$f":"SUM(W124:W138)","v":0},0,{"$f":"SUM(Y124:Y138)","v":0},0]
[null,0.3,"Temporary Support to Adjacent Structures",null,null,null,{"$f":"IF(AND(F124<>0,$D$31<>0),F124/$D$31,0)","v":0},"-",0,{"$f":"I124*F124","v":0},null,null,null,{"$f":"IF(M124<>0,INT(59/M124),0)","v":0},{"$f":"F124*N124","v":0},0,{"$f":"O124*P124","v":0},null,null,0,0,1,0,0,0,0]
[null,null,null,null,null,null,{"$f":"IF(AND(F125<>0,$D$31<>0),F125/$D$31,0)","v":0},"-",0,0,null,null,null,{"$f":"IF(M125<>0,INT(59/M125),0)","v":0},{"$f":"F125*N125","v":0},0,{"$f":"O125*P125","v":0},null,null,0,0,1,0,0,0,0]
[null,null,null,null,null,null,{"$f":"IF(AND(F126<>0,$D$31<>0),F126/$D$31,0)","v":0},"-",0,0,null,null,null,0,0,0,0,null,null,0,0,1,0,0,0,0]
[null,null,null,null,null,null,0,"-",0,0,null,null,null,0,0,0,0,null,null,0,0,1,0,0,0,0]
[null,null,null,null,null,null,0,"-",0,0,null,null,null,0,0,0,0,null,null,0,0,1,0,0,0,0]
[null,null,null,null,null,null,0,"-",0,0,null,null,null,0,0,0,0,null,null,0,0,1,0,0,0,0]
[null,null,null,null,null,null,0,"-",0,0,null,null,null,0,0,0,0,null,null,0,0,1,0,0,0,0]
[null,null,null,null,null,null,0,"-",0,0,null,null,null,0,0,0,0,null,null,0,0,1,0,0,0,0]
[null,null,null,null,null,null,0,"-",0,0,null,null,null,0,0,0,0,null,null,0,0,1,0,0,0,0]
[null,null,null,null,null,null,0,"-",0,0,null,null,null,0,0,0,0,null,null,0,0,1,0,0,0,0]
[null,null,null,null,null,null,0,"-",0,0,null,null,null,0,0,0,0,null,null,0,0,1,0,0,0,0]
[null,null,null,null,null,null,0,"-",0,0,null,null,null,0,0,0,0,null,null,0,0,1,0,0,0,0]
[null,null,null,null,null,null,0,"-",0,0,null,null,null,0,0,0,0,null,null,0,0,1,0,0,0,0]
[null,null,null,null,null,null,0,"-",0,0,null,null,null,0,0,0,0,null,null,0,0,1,0,0,0,0]
[null,null,null,null,null,null,0,"-",0,0,null,null,null,0,0,0,0,null,null,0,0,1,0,0,0,0]
[null,0.4,"Specialist Ground Works",null,"-",{"$f":"SUM(F140:F154)","v":0},{"$f":"IF(AND(F139<>0,$D$31<>0),F139/$D$31,0)","v":0},"-","-",{"$f":"SUM(J140:J154)","v":0},"-","-","-","-",{"$f":"SUM(O140:O154)","v":0},"-",{"$f":"SUM(Q140:Q154)","v":0},"-","-",{"$f":"IF(W139<>0,W139/($F$139+$O$139),0)","v":0},{"$f":"IF(Y139<>0,Y139/($F$139+$O$139),0)","v":0},1,{"$f":"SUM(W140:W154)","v":0},0,{"$f":"SUM(Y140:Y154)","v":0},0]
[null,0.4,"Specialist Ground Works",null,null,null,{"$f":"IF(AND(F140<>0,$D$31<>0),F140/$D$31,0)","v":0},"-",0,{"$f":"I140*F140","v":0},null,null,null,{"$f":"IF(M140<>0,INT(59/M140),0)","v":0},{"$f":"F140*N140","v":0},0,{"$f":"O140*P140","v":0},null,null,0,0,1,0,0,0,0]
[null,null,null,null,null,null,{"$f":"IF(AND(F141<>0,$D$31<>0),F141/$D$31,0)","v":0},"-",0,0,null,null,null,{"$f":"IF(M141<>0,INT(59/M141),0)","v":0},{"$f":"F141*N141","v":0},0,{"$f":"O141*P141","v":0},null,null,0,0,1,0,0,0,0]
[null,null,null,null,null,null,{"$f":"IF(AND(F142<>0,$D$31<>0),F142/$D$31,0)","v":0},"-",0,0,null,null,null,0,0,0,0,null,null,0,0,1,0,0,0,0]
[null,null,null,null,null,null,0,"-",0,0,null,null,null,0,0,0,0,null,null,0,0,1,0,0,0,0]
[null,null,null,null,null,null,0,"-",0,0,null,null,null,0,0,0,0,null,null,0,0,1,0,0,0,0]
[null,null,null,null,null,null,0,"-",0,0,null,null,null,0,0,0,0,null,null,0,0,1,0,0,0,0]
[null,null,null,null,null,null,0,"-",0,0,null,null,null,0,0,0,0,null,null,0,0,1,0,0,0,0]
[null,null,null,null,null,null,0,"-",0,0,null,null,null,0,0,0,0,null,null,0,0,1,0,0,0,0]
[null,null,null,null,null,null,0,"-",0,0,null,null,null,0,0,0,0,null,null,0,0,1,0,0,0,0]
[null,null,null,null,null,null,0,"-",0,0,null,null,null,0,0,0,0,null,null,0,0,1,0,0,0,0]
[null,null,null,null,null,null,0,"-",0,0,null,null,null,0,0,0,0,null,null,0,0,1,0,0,0,0]
[null,null,null,null,null,null,0,"-",0,0,null,null,null,0,0,0,0,null,null,0,0,1,0,0,0,0]
[null,null,null,null,null,null,0,"-",0,0,null,null,null,0,0,0,0,null,null,0,0,1,0,0,0,0]
[null,null,null,null,null,null,0,"-",0,0,null,null,null,0,0,0,0,null,null,0,0,1,0,0,0,0]
[null,null,null,null,null,null,0,"-",0,0,null,null,null,0,0,0,0,null,null,0,0,1,0,0,0,0]
[null,1,"Substructure",null,"-",{"$f":"SUM(F156:F175)","v":13057226.4},{"$f":"IF(AND(F155<>0,$D$31<>0),F155/$D$31,0)","v":1321.7153962951716},{"$f":"SUMPRODUCT((C91:D454=\"Substructure\")*G91:G454)","v":1324.7521409049498},"-",{"$f":"SUM(J156:J175)","v":313972.33},"-","-","-","-",{"$f":"SUM(O156:O175)","v":0},"-",{"$f":"SUM(Q156:Q175)","v":0},"-","-",{"$f":"IF(W155<>0,W155/($F$155+$O$155),0)","v":0},{"$f":"IF(Y155<>0,Y155/($F$155+$O$155),0)","v":0.95},5.0000000000000044E-2,{"$f":"SUM(W156:W175)","v":0},0,{"$f":"SUM(Y156:Y175)","v":12404365.08},1255.629626480413]
[null,1,"Substructure",null,"Carbon steel reinforcing bar (rebar) (secondary production route – scrap), 7850 kg/m3 (Speciality Steel UK Limited (T/A Liberty Speciality Steels) - Rotherham Steel & Bar (member of UK CARES))",30000,{"$f":"IF(AND(F156<>0,$D$31<>0),F156/$D$31,0)","v":3.0367446097783177},"-",4.8500000000000001E-2,{"$f":"I156*F156","v":1455},29400,0.98,60,{"$f":"IF(M156<>0,INT(59/M156),0)","v":0},{"$f":"F156*N156","v":0},null,{"$f":"O156*P156","v":0},"No","offsite recycling",0,0.95,5.0000000000000044E-2,0,0,28500,2.8849073792894018]
[null,null,null,null,"Carbon steel reinforcing bar (rebar) (secondary production route – scrap), 7850 kg/m3 (Speciality Steel UK Limited (T/A Liberty Speciality Steels) - Rotherham Steel & Bar (member of UK CARES))",63200,{"$f":"IF(AND(F157<>0,$D$31<>0),F157/$D$31,0)","v":6.3974086445996559},"-",4.8499999999999995E-2,3065.2,61936,0.98,60,{"$f":"IF(M157<>0,INT(59/M157),0)","v":0},{"$f":"F157*N157","v":0},null,{"$f":"O157*P157","v":0},"No","offsite recycling",0,0.95,{"$f":"1-T157-U157","v":5.0000000000000044E-2},{"$f":"T157*(F157+O157)","v":0},{"$f":"IF(AND(W157<>0,$D$31<>0),W157/$D$31,0)","v":0},{"$f":"U157*(F157+O157)","v":60040},6.0775382123696726]
[null,null,null,null,"Carbon steel reinforcing bar (rebar) (secondary production route – scrap), 7850 kg/m3 (Speciality Steel UK Limited (T/A Liberty Speciality Steels) - Rotherham Steel & Bar (member of UK CARES))",117500,{"$f":"IF(AND(F158<>0,$D$31<>0),F158/$D$31,0)","v":11.893916388298411},"-",4.8500000000000001E-2,5698.75,115150,0.98,60,0,0,null,0,"No","offsite recycling",0,0.95,5.0000000000000044E-2,0,0,111625,11.29922056888349]
[null,null,null,null,"Carbon steel reinforcing bar (rebar) (secondary production route – scrap), 7850 kg/m3 (Speciality Steel UK Limited (T/A Liberty Speciality Steels) - Rotherham Steel & Bar (member of UK CARES))",132800,13.442656139285353,"-",4.8500000000000001E-2,6440.8,130144,0.98,60,0,0,null,0,"No","offsite recycling",0,0.95,5.0000000000000044E-2,0,0,126160,12.770523332321085]
[null,null,null,null,"XPS insulation board, 0.033 W/mK, 31 kg/m3, Floorboard Standard, Laminating Board, Upstand Board (Polyfoam XPS Ltd (2021))",9374.4,0.94892195566352866,"-",4.0000426693975084E-2,374.98,0,0,60,0,0,null,0,"No","offsite recycling",0,0.95,5.0000000000000044E-2,0,0,8905.6799999999985,0.90147585788035212]
[null,null,null,null,"Concrete blocks with paint finish, 7.3 MPa, 100-140 mm, 141.6 kg/m2, Synerg Eco (Plasmor Limited)",101952,10.320072881870635,"-",0.05,5097.6000000000004,20390.400000000001,0.2,60,0,0,null,0,"No","offsite recycling",0,0.95,5.0000000000000044E-2,0,0,96854.399999999994,9.804069237777103]
[null,null,null,null,"Excavation works, kg or m3 of removed masses (Required for IMPACT calculations)",5306400,537.13938657758888,"-",0,0,1326600,0.25,60,0,0,null,0,"No","offsite recycling",0,0.95,5.0000000000000044E-2,0,0,5041080,510.28241724870941]
[null,null,null,null,"Ready-mix concrete, normal strength, generic, C32/40 (4600/5800 PSI) with CEM II/B-V, 30% GGBS content in cement (300 kg/m3; 18.7 lbs/ft3 total cement) (One Click LCA)",288000,29.152748253871849,"-",0.04,11520,57600,0.2,60,0,0,null,0,"No","offsite recycling",0,0.95,5.0000000000000044E-2,0,0,273600,27.695110841178256]
[null,null,null,null,"Ready-mix concrete, normal strength, generic, C32/40 (4600/5800 PSI) with CEM II/B-V, 30% GGBS content in cement (300 kg/m3; 18.7 lbs/ft3 total cement) (One Click LCA)",1128000,114.18159732766475,"-",0.04,45120,225600,0.2,60,0,0,null,0,"No","offsite recycling",0,0.95,5.0000000000000044E-2,0,0,1071600,108.47251746128151]
[null,null,null,null,"Ready-mix concrete, normal strength, generic, C32/40 (4600/5800 PSI) with CEM II/B-V, 30% GGBS content in cement (300 kg/m3; 18.7 lbs/ft3 total cement) (One Click LCA)",1896000,191.92225933798969,"-",0.04,75840,379200,0.2,60,0,0,null,0,"No","offsite recycling",0,0.95,5.0000000000000044E-2,0,0,1801200,182.3261463710902]
[null,null,null,null,"Ready-mix concrete, normal strength, generic, C32/40 (4600/5800 PSI) with CEM II/B-V, 30% GGBS content in cement (300 kg/m3; 18.7 lbs/ft3 total cement) (One Click LCA)",3984000,403.27968417856056,"-",0.04,159360,796800,0.2,60,0,0,null,0,"No","offsite recycling",0,0.95,5.0000000000000044E-2,0,0,3784800,383.11569996963254]
[null,null,null,null,null,null,0,"-",null,0,null,null,null,0,0,null,0,null,null,null,null,1,0,0,0,0]
[null,null,null,null,null,null,0,"-",null,0,null,null,null,0,0,null,0,null,null,null,null,1,0,0,0,0]
[null,null,null,null,null,null,0,"-",null,0,null,null,null,0,0,null,0,null,null,null,null,1,0,0,0,0]
[null,null,null,null,null,null,{"$f":"IF(AND(F170<>0,$D$31<>0),F170/$D$31,0)","v":0},"-",null,0,null,null,null,0,0,null,0,null,null,null,null,1,0,0,0,0]
[null,null,null,null,null,null,{"$f":"IF(AND(F171<>0,$D$31<>0),F171/$D$31,0)","v":0},"-",null,0,null,null,null,0,0,null,0,null,null,null,null,1,0,0,0,0]
[null,null,null,null,null,null,{"$f":"IF(AND(F172<>0,$D$31<>0),F172/$D$31,0)","v":0},"-",null,0,null,null,null,0,0,null,0,null,null,null,null,1,0,0,0,0]
[null,null,null,null,null,null,0,"-",null,0,null,null,null,0,0,null,0,null,null,null,null,1,0,0,0,0]
[null,null,null,null,null,null,0,"-",null,0,null,null,null,0,0,null,0,null,null,null,null,1,0,0,0,0]
[null,null,null,null,null,null,{"$f":"IF(AND(F175<>0,$D$31<>0),F175/$D$31,0)","v":0},"-",null,0,null,null,null,{"$f":"IF(M175<>0,INT(59/M175),0)","v":0},0,null,0,null,null,null,null,1,0,0,0,0]
[null,2.1,"Superstructure: Frame",null,"-",{"$f":"SUM(F177:F196)","v":3675298.99},{"$f":"IF(AND(F176<>0,$D$31<>0),F176/$D$31,0)","v":372.03147990687319},{"$f":"SUMPRODUCT((C91:D454=\"Superstructure: Frame\")*G91:G454)","v":372.73681445490439},"-",{"$f":"SUM(J177:J196)","v":208010.21},"-","-","-","-",{"$f":"SUM(O177:O196)","v":0},"-",{"$f":"SUM(Q177:Q196)","v":0},"-","-",{"$f":"IF(W176<>0,W176/($F$176+$O$176),0)","v":0},{"$f":"IF(Y176<>0,Y176/($F$176+$O$176),0)","v":0.95},5.0000000000000044E-2,{"$f":"SUM(W177:W196)","v":0},0,{"$f":"SUM(Y177:Y196)","v":3491534.0405000001},353.42990591152954]
[null,2.1,"Superstructure: Frame",null,"Wooden formwork, single sided with steel fixtures, 26 kg/m2 (One Click LCA)",6968,{"$f":"IF(AND(F177<>0,$D$31<>0),F177/$D$31,0)","v":0.70533454803117723},"-",0.16700057405281288,{"$f":"I177*F177","v":1163.6600000000001},696.80000000000007,0.1,60,{"$f":"IF(M177<>0,INT(59/M177),0)","v":0},{"$f":"F177*N177","v":0},0,{"$f":"O177*P177","v":0},"Yes","offsite recycling",0,0.95,5.0000000000000044E-2,0,0,6619.5999999999995,0.67006782062961834]
[null,null,null,null,"Ready-mix concrete, normal strength, generic, C32/40 (4600/5800 PSI) with CEM II/B-V, 30% GGBS content in cement (300 kg/m3; 18.7 lbs/ft3 total cement) (One Click LCA)",744000,{"$f":"IF(AND(F178<>0,$D$31<>0),F178/$D$31,0)","v":75.311266322502277},"-",0.04,29760,148800,0.2,60,{"$f":"IF(M178<>0,INT(59/M178),0)","v":0},{"$f":"F178*N178","v":0},0,{"$f":"O178*P178","v":0},"No","offsite recycling",0,0.95,5.0000000000000044E-2,0,0,706800,71.545703006377167]
[null,null,null,null,"Ready-mix concrete, normal strength, generic, C32/40 (4600/5800 PSI) with CEM II/B-V, 30% GGBS content in cement (300 kg/m3; 18.7 lbs/ft3 total cement) (One Click LCA)",2112000,{"$f":"IF(AND(F179<>0,$D$31<>0),F179/$D$31,0)","v":213.78682052839355},"-",0.04,84480,422400,0.2,60,0,0,0,0,"No","offsite recycling",0,0.95,5.0000000000000044E-2,0,0,2006400,203.09747950197388]
[null,null,null,null,"Wooden formwork, single sided with steel fixtures, 26 kg/m2 (One Click LCA)",457600,46.320477781151936,"-",0.16699999999999998,76419.199999999997,45760,0.1,60,0,0,0,0,"Yes","offsite recycling",0,0.95,5.0000000000000044E-2,0,0,434720,44.00445389209434]
[null,null,null,null,"Carbon steel reinforcing bar (rebar) (secondary production route – scrap), 7850 kg/m3 (Speciality Steel UK Limited (T/A Liberty Speciality Steels) - Rotherham Steel & Bar (member of UK CARES))",108500,10.982893005364916,"-",4.8500000000000001E-2,5262.25,106330,0.98,60,0,0,0,0,"No","offsite recycling",0,0.95,5.0000000000000044E-2,0,0,103075,10.43374835509667]
[null,null,null,null,"Carbon steel reinforcing bar (rebar) (secondary production route – scrap), 7850 kg/m3 (Speciality Steel UK Limited (T/A Liberty Speciality Steels) - Rotherham Steel & Bar (member of UK CARES))",132000,13.361676283024597,"-",4.8500000000000001E-2,6402,129360,0.98,60,0,0,0,0,"No","offsite recycling",0,0.95,5.0000000000000044E-2,0,0,125400,12.693592468873367]
[null,null,null,null,"Structural steel profiles, generic, 60% recycled content,  I, H, U, L, and T sections, S235, S275 and S355",6590.99,0.66717177852009313,"-",3.2999594901524661E-2,217.50000000000003,3954.5939999999996,0.6,null,0,0,0,0,"No","offsite recycling",0,0.95,5.0000000000000044E-2,0,0,6261.4404999999997,0.63381318959408839]
[null,null,null,null,"Ready-mix concrete, for precast products, 2340 kg/m3, Routine Mix (NS501F-891) (Humes, Sydney (Blacktown) plant)",107640,10.895839659884604,"-",0.04,4305.6000000000004,21528,0.2,null,0,0,0,0,"No","offsite recycling",0,0.95,5.0000000000000044E-2,0,0,102258,10.351047676890374]
[null,null,null,null,null,null,0,"-",0,0,null,null,null,0,0,0,0,null,null,null,null,1,0,0,0,0]
[null,null,null,null,null,null,0,"-",0,0,null,null,null,0,0,0,0,null,null,null,null,1,0,0,0,0]
[null,null,null,null,null,null,0,"-",0,0,null,null,null,0,0,0,0,null,null,null,null,1,0,0,0,0]
[null,null,null,null,null,null,0,"-",0,0,null,null,null,0,0,0,0,null,null,null,null,1,0,0,0,0]
[null,null,null,null,null,null,0,"-",0,0,null,null,null,0,0,0,0,null,null,null,null,1,0,0,0,0]
[null,null,null,null,null,null,0,"-",0,0,null,null,null,0,0,0,0,null,null,null,null,1,0,0,0,0]
[null,null,null,null,null,null,{"$f":"IF(AND(F191<>0,$D$31<>0),F191/$D$31,0)","v":0},"-",0,0,null,null,null,0,0,0,0,null,null,null,null,1,0,0,0,0]
[null,null,null,null,null,null,{"$f":"IF(AND(F192<>0,$D$31<>0),F192/$D$31,0)","v":0},"-",0,0,null,null,null,0,0,0,0,null,null,null,null,1,0,0,0,0]
[null,null,null,null,null,null,{"$f":"IF(AND(F193<>0,$D$31<>0),F193/$D$31,0)","v":0},"-",0,0,null,null,null,0,0,0,0,null,null,null,null,1,0,0,0,0]
[null,null,null,null,null,null,{"$f":"IF(AND(F194<>0,$D$31<>0),F194/$D$31,0)","v":0},"-",0,0,null,null,null,0,0,0,0,null,null,null,null,1,0,0,0,0]
[null,null,null,null,null,null,0,"-",0,0,null,null,null,0,0,0,0,null,null,null,null,1,0,0,0,0]
[null,null,null,null,null,null,0,"-",0,0,null,null,null,0,0,0,0,null,null,null,null,1,0,0,0,0]
[null,2.2000000000000002,"Superstructure: Upper Floors",null,"-",{"$f":"SUM(F198:F217)","v":6325880},{"$f":"IF(AND(F197<>0,$D$31<>0),F197/$D$31,0)","v":640.33606640348216},{"$f":"SUMPRODUCT((C176:D459=\"Superstructure: Upper Floors\")*G176:G459)","v":1228.2498228565646},"-",{"$f":"SUM(J198:J217)","v":287261.26},"-","-","-","-",{"$f":"SUM(O198:O217)","v":0},"-",{"$f":"SUM(Q198:Q217)","v":0},"-","-",{"$f":"IF(W197<>0,W197/($F$197+$O$197),0)","v":0},{"$f":"IF(Y197<>0,Y197/($F$197+$O$197),0)","v":0.95},5.0000000000000044E-2,{"$f":"SUM(W198:W217)","v":0},0,{"$f":"SUM(Y198:Y217)","v":6009586},608.31926308330799]
[null,2.2000000000000002,"Superstructure: Upper Floors",null,"Ready-mix concrete, normal strength, generic, C32/40 (4600/5800 PSI) with CEM II/B-V, 30% GGBS content in cement (300 kg/m3; 18.7 lbs/ft3 total cement) (One Click LCA)",5808000,{"$f":"IF(AND(F198<>0,$D$31<>0),F198/$D$31,0)","v":587.91375645308233},"-",0.04,{"$f":"I198*F198","v":232320},1161600,0.2,60,{"$f":"IF(M198<>0,INT(59/M198),0)","v":0},{"$f":"F198*N198","v":0},0,{"$f":"O198*P198","v":0},"No","offsite recycling",0,0.95,5.0000000000000044E-2,0,0,5517600,558.51806863042816]
[null,null,null,null,"Wooden formwork, single sided with steel fixtures, 26 kg/m2 (One Click LCA)",251680,{"$f":"IF(AND(F199<>0,$D$31<>0),F199/$D$31,0)","v":25.476262779633565},"-",0.16699999999999998,42030.559999999998,25168,0.1,60,{"$f":"IF(M199<>0,INT(59/M199),0)","v":0},{"$f":"F199*N199","v":0},0,{"$f":"O199*P199","v":0},"No","offsite recycling",0,0.95,5.0000000000000044E-2,0,0,239096,24.202449640651889]
[null,null,null,null,"Carbon steel reinforcing bar (rebar) (secondary production route – scrap), 7850 kg/m3 (Speciality Steel UK Limited (T/A Liberty Speciality Steels) - Rotherham Steel & Bar (member of UK CARES))",266200,{"$f":"IF(AND(F200<>0,$D$31<>0),F200/$D$31,0)","v":26.946047170766271},"-",4.8500000000000001E-2,12910.7,260876,0.98,60,0,0,0,0,"No","offsite recycling",0,0.95,5.0000000000000044E-2,0,0,252890,25.598744812227959]
[null,null,null,null,null,null,0,"-",0,0,null,null,null,0,0,0,0,null,null,null,null,1,0,0,0,0]
[null,null,null,null,null,null,0,"-",0,0,null,null,null,0,0,0,0,null,null,null,null,1,0,0,0,0]
[null,null,null,null,null,null,0,"-",0,0,null,null,null,0,0,0,0,null,null,null,null,1,0,0,0,0]
[null,null,null,null,null,null,0,"-",0,0,null,null,null,0,0,0,0,null,null,null,null,1,0,0,0,0]
[null,null,null,null,null,null,0,"-",0,0,null,null,null,0,0,0,0,null,null,null,null,1,0,0,0,0]
[null,null,null,null,null,null,0,"-",0,0,null,null,null,0,0,0,0,null,null,null,null,1,0,0,0,0]
[null,null,null,null,null,null,0,"-",0,0,null,null,null,0,0,0,0,null,null,null,null,1,0,0,0,0]
[null,null,null,null,null,null,0,"-",0,0,null,null,null,0,0,0,0,null,null,null,null,1,0,0,0,0]
[null,null,null,null,null,null,0,"-",0,0,null,null,null,0,0,0,0,null,null,null,null,1,0,0,0,0]
[null,null,null,null,null,null,0,"-",0,0,null,null,null,0,0,0,0,null,null,null,null,1,0,0,0,0]
[null,null,null,null,null,null,0,"-",0,0,null,null,null,0,0,0,0,null,null,null,null,1,0,0,0,0]
[null,null,null,null,null,null,{"$f":"IF(AND(F212<>0,$D$31<>0),F212/$D$31,0)","v":0},"-",0,0,null,null,null,0,0,0,0,null,null,null,null,1,0,0,0,0]
[null,null,null,null,null,null,{"$f":"IF(AND(F213<>0,$D$31<>0),F213/$D$31,0)","v":0},"-",0,0,null,null,null,0,0,0,0,null,null,null,null,1,0,0,0,0]
[null,null,null,null,null,null,{"$f":"IF(AND(F214<>0,$D$31<>0),F214/$D$31,0)","v":0},"-",0,0,null,null,null,0,0,0,0,null,null,null,null,1,0,0,0,0]
[null,null,null,null,null,null,{"$f":"IF(AND(F215<>0,$D$31<>0),F215/$D$31,0)","v":0},"-",0,0,null,null,null,0,0,0,0,null,null,null,null,1,0,0,0,0]
[null,null,null,null,null,null,0,"-",0,0,null,null,null,0,0,0,0,null,null,null,null,1,0,0,0,0]
[null,null,null,null,null,null,0,"-",0,{"$f":"I217*F217","v":0},null,null,null,0,0,0,0,null,null,null,null,1,0,0,0,0]
[null,2.2999999999999998,"Superstructure: Roof",null,"-",{"$f":"SUM(F219:F238)","v":2063530.3599999999},{"$f":"IF(AND(F218<>0,$D$31<>0),F218/$D$31,0)","v":208.88048992813037},{"$f":"SUMPRODUCT((C91:D454=\"Superstructure: Roof\")*G91:G454)","v":209.24437291223808},"-",{"$f":"SUM(J219:J238)","v":79761.719999999987},"-","-","-","-",{"$f":"SUM(O219:O238)","v":0},"-",{"$f":"SUM(Q219:Q238)","v":0},"-","-",{"$f":"IF(W218<>0,W218/($F$218+$O$218),0)","v":0},{"$f":"IF(Y218<>0,Y218/($F$218+$O$218),0)","v":0.95000000000000007},4.9999999999999933E-2,{"$f":"SUM(W219:W238)","v":0},0,{"$f":"SUM(Y219:Y238)","v":1960353.8419999999},198.43646543172386]
[null,2.2999999999999998,"Superstructure: Roof",null,"Light expanded clay aggregate (LECA), 430 kg/m3, AR 4/10 – 430 GEO (ARGEX)",3594.8,{"$f":"IF(AND(F219<>0,$D$31<>0),F219/$D$31,0)","v":0.3638829841077032},"-",1.0000556359185491E-2,{"$f":"I219*F219","v":35.950000000000003},718.96,0.2,60,{"$f":"IF(M219<>0,INT(59/M219),0)","v":0},{"$f":"F219*N219","v":0},0,{"$f":"O219*P219","v":0},"No","offsite recycling",0,0.95,5.0000000000000044E-2,0,0,3415.06,0.34568883490231805]
[null,null,null,null,"Light expanded clay aggregate (LECA), 430 kg/m3, AR 4/10 – 430 GEO (ARGEX)",19995,{"$f":"IF(AND(F220<>0,$D$31<>0),F220/$D$31,0)","v":2.0239902824172487},"-",0.01,199.95000000000002,3999,0.2,60,{"$f":"IF(M220<>0,INT(59/M220),0)","v":0},{"$f":"F220*N220","v":0},0,{"$f":"O220*P220","v":0},"No","offsite recycling",0,0.95,5.0000000000000044E-2,0,0,18995.25,1.9227907682963863]
[null,null,null,null,"Precast concrete pavers, manufacturers average, 2300 kg/m3, HomePave (AG Paving + Building Products Limited)",106950,{"$f":"IF(AND(F221<>0,$D$31<>0),F221/$D$31,0)","v":10.825994533859703},"-",0,0,21390,0.2,60,0,0,0,0,"No","offsite recycling",0,0.95,{"$f":"1-T221-U221","v":5.0000000000000044E-2},{"$f":"T221*(F221+O221)","v":0},{"$f":"IF(AND(W221<>0,$D$31<>0),W221/$D$31,0)","v":0},{"$f":"U221*(F221+O221)","v":101602.5},10.284694807166717]
[null,null,null,null,"PIR insulation board, with multi-layer aluminium complex siding, 66 mm, L = 0.022 W/mK, R = 3 m2K/W, 2.11 kg/m2, 32 kg/m3, enertherm ALU (IKO Insulations Ltd)",3143.36,0.31818605121975913,"-",3.9998600223964162E-2,125.72999999999999,0,0,60,0,0,0,0,"No","offsite recycling",0,0.95,5.0000000000000044E-2,0,0,2986.192,0.30227674865877113]
[null,null,null,null,"Topsoil, 1000 kg/m3 (Den Ouden Group)",125400,12.693592468873367,"-",0,0,125400,1,60,0,0,0,0,"No","offsite recycling",0,0.95,5.0000000000000044E-2,0,0,119130,12.058912845429699]
[null,null,null,null,"PIR insulation board, with multi-layer aluminium complex siding, 66 mm, L = 0.022 W/mK, R = 3 m2K/W, 2.11 kg/m2, 32 kg/m3, enertherm ALU (IKO Insulations Ltd)",6993.6,0.7079259034315214,"-",3.9999428048501484E-2,279.74,0,0,60,0,0,0,0,"No","offsite recycling",0,0.95,5.0000000000000044E-2,0,0,6643.92,0.67252960825994534]
[null,null,null,null,"Waterproofing membrane, single component, cold applied, from PU, 1.5 mm, 1.98 kg/m2, Sikalastic-625 (Sika)",5517.6,0.55851806863042819,"-",9.9999999999999992E-2,551.76,2758.8,0.5,60,0,0,0,0,"No","offsite recycling",0,0.95,5.0000000000000044E-2,0,0,5241.72,0.53059216519890684]
[null,null,null,null,"Ready-mix concrete, normal strength, generic, C32/40 (4600/5800 PSI) with CEM II/B-V, 30% GGBS content in cement (300 kg/m3; 18.7 lbs/ft3 total cement) (One Click LCA)",200640,20.309747950197387,"-",0.04,8025.6,40128,0.2,60,0,0,0,0,"No","offsite recycling",0,0.95,5.0000000000000044E-2,0,0,190608,19.294260552687518]
[null,null,null,null,"Ready-mix concrete, normal strength, generic, C32/40 (4600/5800 PSI) with CEM II/B-V, 30% GGBS content in cement (300 kg/m3; 18.7 lbs/ft3 total cement) (One Click LCA)",1032000,104.46401457637413,"-",0.04,41280,206400,0.2,60,0,0,0,0,"No","offsite recycling",0,0.95,5.0000000000000044E-2,0,0,980400,99.240813847555415]
[null,null,null,null,"Waterproofing membrane, single component, cold applied, from PU, 1.5 mm, 1.98 kg/m2, Sikalastic-625 (Sika)",12276,1.2426358943212876,"-",9.9999999999999992E-2,1227.5999999999999,6138,0.5,60,0,0,0,0,"No","offsite recycling",0,0.95,5.0000000000000044E-2,0,0,11662.199999999999,1.1805040996052232]
[null,null,null,null,"Ready-mix concrete, normal strength, generic, C32/40 (4600/5800 PSI) with CEM II/B-V, 30% GGBS content in cement (300 kg/m3; 18.7 lbs/ft3 total cement) (One Click LCA)",446400,45.186759793501366,"-",0.04,17856,89280,0.2,60,0,0,0,0,"No","offsite recycling",0,0.95,5.0000000000000044E-2,0,0,424080,42.927421803826299]
[null,null,null,null,"Wooden formwork, single sided with steel fixtures, 26 kg/m2 (One Click LCA)",44720,4.5267739649762122,"-",0.16699999999999998,7468.2399999999989,4472,0.1,60,0,0,0,0,"No","offsite recycling",0,0.95,5.0000000000000044E-2,0,0,42484,4.3004352667274013]
[null,null,null,null,"Carbon steel reinforcing bar (rebar) (secondary production route – scrap), 7850 kg/m3 (Speciality Steel UK Limited (T/A Liberty Speciality Steels) - Rotherham Steel & Bar (member of UK CARES))",55900,5.658467456220265,"-",4.8500000000000001E-2,2711.15,54782,0.98,60,0,0,0,0,"No","offsite recycling",0,0.95,5.0000000000000044E-2,0,0,53105,5.3755440834092516]
[null,null,null,null,null,null,0,"-",0,0,null,null,null,0,0,0,0,null,null,null,null,1,0,0,0,0]
[null,null,null,null,null,null,{"$f":"IF(AND(F233<>0,$D$31<>0),F233/$D$31,0)","v":0},"-",0,0,null,null,null,0,0,0,0,null,null,null,null,1,0,0,0,0]
[null,null,null,null,null,null,{"$f":"IF(AND(F234<>0,$D$31<>0),F234/$D$31,0)","v":0},"-",0,0,null,null,null,0,0,0,0,null,null,null,null,1,0,0,0,0]
[null,null,null,null,null,null,{"$f":"IF(AND(F235<>0,$D$31<>0),F235/$D$31,0)","v":0},"-",0,0,null,null,null,0,0,0,0,null,null,null,null,1,0,0,0,0]
[null,null,null,null,null,null,{"$f":"IF(AND(F236<>0,$D$31<>0),F236/$D$31,0)","v":0},"-",0,0,null,null,null,0,0,0,0,null,null,null,null,1,0,0,0,0]
[null,null,null,null,null,null,0,"-",0,0,null,null,null,0,0,0,0,null,null,null,null,1,0,0,0,0]
[null,null,null,null,null,null,0,"-",0,0,null,null,null,0,0,0,0,null,null,null,null,1,0,0,0,0]
[null,2.4,"Superstructure: Stairs and Ramps",null,"-",{"$f":"SUM(F240:F254)","v":148957.25},{"$f":"IF(AND(F239<>0,$D$31<>0),F239/$D$31,0)","v":15.078170867496711},"-","-",{"$f":"SUM(J240:J254)","v":334.65},"-","-","-","-",{"$f":"SUM(O240:O254)","v":0},"-",{"$f":"SUM(Q240:Q254)","v":0},"-","-",{"$f":"IF(W239<>0,W239/($F$239+$O$239),0)","v":0},{"$f":"IF(Y239<>0,Y239/($F$239+$O$239),0)","v":0.94999999999999984},5.0000000000000155E-2,{"$f":"SUM(W240:W254)","v":0},0,{"$f":"SUM(Y240:Y254)","v":141509.38749999998},14.324262324121873]
[null,2.4,"Superstructure: Stairs and Ramps",null,"Carbon steel reinforcing bar (rebar) (secondary production route – scrap), 7850 kg/m3 (Speciality Steel UK Limited (T/A Liberty Speciality Steels) - Rotherham Steel & Bar (member of UK CARES))",6900,{"$f":"IF(AND(F240<>0,$D$31<>0),F240/$D$31,0)","v":0.69845126024901305},"-",4.8499999999999995E-2,{"$f":"I240*F240","v":334.65},6762,0.98,60,{"$f":"IF(M240<>0,INT(59/M240),0)","v":0},{"$f":"F240*N240","v":0},0,{"$f":"O240*P240","v":0},"No","offsite recycling",0,0.95,5.0000000000000044E-2,0,0,6555,0.66352869723656238]
[null,null,null,null,"Precast concrete slabs, ep. 0.16m, C25/30 XC4/XF1 CEM II/A (SNBPE)",142057.25,{"$f":"IF(AND(F241<>0,$D$31<>0),F241/$D$31,0)","v":14.379719607247697},"-",0,0,28411.45,0.2,60,{"$f":"IF(M241<>0,INT(59/M241),0)","v":0},{"$f":"F241*N241","v":0},0,{"$f":"O241*P241","v":0},"No","offsite recycling",0,0.95,5.0000000000000044E-2,0,0,134954.38749999998,13.66073362688531]
[null,null,null,null,null,null,{"$f":"IF(AND(F242<>0,$D$31<>0),F242/$D$31,0)","v":0},"-",0,0,null,null,null,0,0,0,0,null,null,null,null,1,0,0,0,0]
[null,null,null,null,null,null,0,"-",0,0,null,null,null,0,0,0,0,null,null,null,null,1,0,0,0,0]
[null,null,null,null,null,null,0,"-",0,0,null,null,null,0,0,0,0,null,null,null,null,1,0,0,0,0]
[null,null,null,null,null,null,0,"-",0,0,null,null,null,0,0,0,0,null,null,null,null,1,0,0,0,0]
[null,null,null,null,null,null,0,"-",0,0,null,null,null,0,0,0,0,null,null,null,null,1,0,0,0,0]
[null,null,null,null,null,null,0,"-",0,0,null,null,null,0,0,0,0,null,null,null,null,1,0,0,0,0]
[null,null,null,null,null,null,0,"-",0,0,null,null,null,0,0,0,0,null,null,null,null,1,0,0,0,0]
[null,null,null,null,null,null,0,"-",0,0,null,null,null,0,0,0,0,null,null,null,null,1,0,0,0,0]
[null,null,null,null,null,null,0,"-",0,0,null,null,null,0,0,0,0,null,null,null,null,1,0,0,0,0]
[null,null,null,null,null,null,0,"-",0,0,null,null,null,0,0,0,0,null,null,null,null,1,0,0,0,0]
[null,null,null,null,null,null,0,"-",0,0,null,null,null,0,0,0,0,null,null,null,null,1,0,0,0,0]
[null,null,null,null,null,null,0,"-",0,0,null,null,null,0,0,0,0,null,null,null,null,1,0,0,0,0]
[null,null,null,null,null,null,{"$f":"IF(AND(F254<>0,$D$31<>0),F254/$D$31,0)","v":0},"-",0,0,null,null,null,0,0,0,0,null,null,null,null,1,0,0,0,0]
[null,2.5,"Superstructure: External Walls",null,"-",{"$f":"SUM(F256:F275)","v":975391.76},{"$f":"IF(AND(F255<>0,$D$31<>0),F255/$D$31,0)","v":98.733855653406209},{"$f":"SUMPRODUCT((C91:D454=\"Superstructure: External Walls\")*G91:G454)+SUMPRODUCT((C91:D454=\"Superstructure: Windows and External Doors\")*G91:G454)","v":104.44825690859399},"-",{"$f":"SUM(J256:J275)","v":56664.65},"-","-","-","-",{"$f":"SUM(O256:O275)","v":0},"-",{"$f":"SUM(Q256:Q275)","v":0},"-","-",{"$f":"IF(W255<>0,W255/($F$255+$O$255),0)","v":0},{"$f":"IF(Y255<>0,Y255/($F$255+$O$255),0)","v":0.94999999999999984},5.0000000000000155E-2,{"$f":"SUM(W256:W275)","v":0},0,{"$f":"SUM(Y256:Y275)","v":926622.1719999999},93.797162870735889]
[null,2.5,"Superstructure: External Walls",null,"Gypsum plaster board, regular, generic, 6.5-25 mm (0.25-0.98 in), 10.725 kg/m2 (2.20 lbs/ft2) (for 12.5 mm/0.49 in), 858 kg/m3 (53.6 lbs/ft3)",26569.7,{"$f":"IF(AND(F256<>0,$D$31<>0),F256/$D$31,0)","v":2.6895131086142321},"-",0.12499990590785745,{"$f":"I256*F256","v":3321.21},5313.9400000000005,0.2,60,{"$f":"IF(M256<>0,INT(59/M256),0)","v":0},{"$f":"F256*N256","v":0},0,{"$f":"O256*P256","v":0},"Yes","offsite recycling",0,0.95,5.0000000000000044E-2,0,0,25241.215,2.5550374531835205]
[null,null,null,null,"Gypsum plaster board, regular, generic, 6.5-25 mm (0.25-0.98 in), 10.725 kg/m2 (2.20 lbs/ft2) (for 12.5 mm/0.49 in), 858 kg/m3 (53.6 lbs/ft3)",26569.7,{"$f":"IF(AND(F257<>0,$D$31<>0),F257/$D$31,0)","v":2.6895131086142321},"-",0.12499990590785745,3321.21,5313.9400000000005,0.2,60,{"$f":"IF(M257<>0,INT(59/M257),0)","v":0},{"$f":"F257*N257","v":0},0,{"$f":"O257*P257","v":0},"Yes","offsite recycling",0,0.95,5.0000000000000044E-2,0,0,25241.215,2.5550374531835205]
[null,null,null,null,"Glass wool insulation panels, unfaced, generic, L = 0.031 W/mK, R = 3.23 m2K/W (18 ft2°Fh/BTU), 25 kg/m3 (1.56 lbs/ft3), (applicable for densities: 0-25 kg/m3 (0-1.56 lbs/ft3)), Lambda=0.031 W/(m.K)",5955,{"$f":"IF(AND(F258<>0,$D$31<>0),F258/$D$31,0)","v":0.602793805040996},"-",0.08,476.40000000000003,595.5,0.1,60,0,0,0,0,"Yes","offsite recycling",0,0.95,5.0000000000000044E-2,0,0,5657.25,0.57265411478894623]
[null,null,null,null,"Gypsum plasterboard, 12.5 mm, 8.985 kg/m2 (average product weight) (Etex Building Performance)",21429.23,2.1691699564733273,"-",0.12499982500537818,2678.65,4285.8460000000005,0.2,60,0,0,0,0,"Yes","offsite recycling",0,0.95,5.0000000000000044E-2,0,0,20357.768499999998,2.0607114586496609]
[null,null,null,null,"Stone wool insulation (stone wool), L = 0.044 W/mK, R = 0.38 m2K/W, 115 mm, 2.53 kg/m2, 22 kg/m3, Hardrock Multifix DD (ROCKWOOL Peninsular S.A.U.)",5247,0.53112663225022771,"-",0.08,419.76,524.70000000000005,0.1,60,0,0,0,0,"Yes","offsite recycling",0,0.95,5.0000000000000044E-2,0,0,4984.6499999999996,0.50457030063771635]
[null,null,null,null,"Red brick, average production, UK, 215 mm x 102.5 mm x 65 mm, 2.13 kg/unit, 1485 kg/m3 (Brick Development Association (BDA) Ltd (2019))",363026.81,36.747323615750581,"-",4.9999998622691257E-2,18151.34,18151.340500000002,0.05,60,0,0,0,0,"Yes","offsite recycling",0,0.95,5.0000000000000044E-2,0,0,344875.46950000001,34.909957434963054]
[null,null,null,null,"Cement board, 12.5mm, 15 kg/m2, 1200 kg/m3, AQUAPANEL Indoor (KNAUF)",35775,3.6213179471606436,"-",0.05,1788.75,7155,0.2,60,0,0,0,0,"Yes","offsite recycling",0,0.95,5.0000000000000044E-2,0,0,33986.25,3.4402520498026115]
[null,null,null,null,"Gypsum plasterboard, 12.5 mm, 8.985 kg/m2 (average product weight) (Etex Building Performance)",23585.63,2.3874511590241929,"-",0.12499984100488304,2948.2,4717.1260000000002,0.2,60,0,0,0,0,"Yes","offsite recycling",0,0.95,5.0000000000000044E-2,0,0,22406.3485,2.268078601072983]
[null,null,null,null,"Stone wool insulation (stone wool), L = 0.044 W/mK, R = 0.38 m2K/W, 115 mm, 2.53 kg/m2, 22 kg/m3, Hardrock Multifix DD (ROCKWOOL Peninsular S.A.U.)",5775,0.5845733373823262,"-",0.08,462,577.5,0.1,60,0,0,0,0,"Yes","offsite recycling",0,0.95,5.0000000000000044E-2,0,0,5486.25,0.55534467051320979]
[null,null,null,null,"Stone wool insulation (stone wool), L = 0.044 W/mK, R = 0.38 m2K/W, 115 mm, 2.53 kg/m2, 22 kg/m3, Hardrock Multifix DD (ROCKWOOL Peninsular S.A.U.)",8662.5,0.87686000607348924,"-",0.08,693,866.25,0.1,60,0,0,0,0,"Yes","offsite recycling",0,0.95,5.0000000000000044E-2,0,0,8229.375,0.83301700576981474]
[null,null,null,null,"Red brick, average production, UK, 215 mm x 102.5 mm x 65 mm, 2.13 kg/unit, 1485 kg/m3 (Brick Development Association (BDA) Ltd (2019))",399557.81,40.445167527077636,"-",4.9999998748616624E-2,19977.89,19977.890500000001,0.05,60,0,0,0,0,"Yes","offsite recycling",0,0.95,5.0000000000000044E-2,0,0,379579.91949999996,38.422909150723754]
[null,null,null,null,"Cement board, 12.5mm, 15 kg/m2, 1200 kg/m3, AQUAPANEL Indoor (KNAUF)",39375,3.9857273003340419,"-",0.05,1968.75,7875,0.2,60,0,0,0,0,"Yes","offsite recycling",0,0.95,5.0000000000000044E-2,0,0,37406.25,3.7864409353173398]
[null,null,null,null,"Structural steel profiles, generic, 60% recycled content,  I, H, U, L, and T sections, S235, S275 and S355",6600,0.66808381415122986,"-",3.3000000000000002E-2,217.8,3960,0.6,60,0,0,0,0,"Yes","offsite recycling",0,0.95,5.0000000000000044E-2,0,0,6270,0.63467962344366835]
[null,null,null,null,"Structural steel profiles, generic, 60% recycled content,  I, H, U, L, and T sections, S235, S275 and S355",7263.38,0.73523433545905459,"-",3.2999787977498078E-2,239.69,4358.0280000000002,0.6,60,0,0,0,0,null,"offsite recycling",0,0.95,5.0000000000000044E-2,0,0,6900.2109999999993,0.69847261868610178]
[null,null,null,null,null,null,{"$f":"IF(AND(F270<>0,$D$31<>0),F270/$D$31,0)","v":0},"-",null,0,null,null,null,0,0,0,0,null,null,null,null,1,0,0,0,0]
[null,null,null,null,null,null,{"$f":"IF(AND(F271<>0,$D$31<>0),F271/$D$31,0)","v":0},"-",null,0,null,null,null,0,0,0,0,null,null,null,null,1,0,0,0,0]
[null,null,null,null,null,null,{"$f":"IF(AND(F272<>0,$D$31<>0),F272/$D$31,0)","v":0},"-",null,0,null,null,null,0,0,0,0,null,null,null,null,1,0,0,0,0]
[null,null,null,null,null,null,{"$f":"IF(AND(F273<>0,$D$31<>0),F273/$D$31,0)","v":0},"-",null,0,null,null,null,0,0,0,0,null,null,null,null,1,0,0,0,0]
[null,null,null,null,null,null,0,"-",null,0,null,null,null,0,0,0,0,null,null,null,null,1,0,0,0,0]
[null,null,null,null,null,null,0,"-",null,0,null,null,null,0,0,0,0,null,null,0,0,1,0,0,0,0]
[null,2.6,"Superstructure: Windows and External Doors",null,"-",{"$f":"SUM(F277:F291)","v":29624.52},{"$f":"IF(AND(F276<>0,$D$31<>0),F276/$D$31,0)","v":2.9987367142423325},{"$f":"SUMPRODUCT((C91:D454=\"Superstructure: External Walls\")*G91:G454)+SUMPRODUCT((C91:D454=\"Superstructure: Windows and External Doors\")*G91:G454)","v":104.44825690859399},"-",{"$f":"SUM(J277:J291)","v":0},"-","-","-","-",{"$f":"SUM(O277:O291)","v":29624.52},"-",{"$f":"SUM(Q277:Q291)","v":0},"-","-",{"$f":"IF(W276<>0,W276/($F$276+$O$276),0)","v":0},{"$f":"IF(Y276<>0,Y276/($F$276+$O$276),0)","v":0.95},5.0000000000000044E-2,{"$f":"SUM(W277:W291)","v":0},0,{"$f":"SUM(Y277:Y291)","v":56286.587999999996},5.6975997570604306]
[null,2.6,"Superstructure: Windows and External Doors",null,"Aluminium framed rooflight, U = 1.1 W/m2K, 51.67 kg/m2, Mardome Glass Trade (Brett Martin Daylight Systems)",258.35000000000002,{"$f":"IF(AND(F277<>0,$D$31<>0),F277/$D$31,0)","v":2.6151432331207616E-2},"-",0,0,85.255500000000012,0.33,30,{"$f":"IF(M277<>0,INT(59/M277),0)","v":1},{"$f":"F277*N277","v":258.35000000000002},0,{"$f":"O277*P277","v":0},"Yes","offsite recycling",0,0.95,5.0000000000000044E-2,0,0,490.86500000000001,4.9687721429294465E-2]
[null,null,null,null,"Wireless access control lock, 3.496 kg/unit, Sargent IN100 Aperio Mortise Lock (Assa Abloy)",180.49,{"$f":"IF(AND(F278<>0,$D$31<>0),F278/$D$31,0)","v":1.8270067820629621E-2},"-",0,0,54.146999999999998,0.3,30,{"$f":"IF(M278<>0,INT(59/M278),0)","v":1},{"$f":"F278*N278","v":180.49},0,{"$f":"O278*P278","v":0},"Yes","offsite recycling",0,0.95,5.0000000000000044E-2,0,0,342.93099999999998,3.4713128859196273E-2]
[null,null,null,null,"Aluminium framed stick curtain wall system with clear float glass insulating unit, double glazed, 4-16-4, 36.4 kg/m2, 0% recycled aluminium (One Click LCA)",7272,{"$f":"IF(AND(F279<>0,$D$31<>0),F279/$D$31,0)","v":0.73610689341026425},"-",0,0,2399.7600000000002,0.33,30,1,7272,0,0,"Yes","offsite recycling",0,0.95,5.0000000000000044E-2,0,0,13816.8,1.3986030974795018]
[null,null,null,null,"Aluminium frame window double glazed, non-operable, 0% recycled aluminium, 1.48 m x 2.18 m, 22.3 kg/m2 (One Click LCA)",21913.68,2.218208320680231,"-",0,0,7231.5144,0.33,30,1,21913.68,0,0,"Yes","offsite recycling",0,0.95,5.0000000000000044E-2,0,0,41635.991999999998,4.2145958092924385]
[null,null,null,null,null,null,0,"-",null,0,null,null,null,0,0,null,0,null,null,null,null,1,0,0,0,0]
[null,null,null,null,null,null,0,"-",null,0,null,null,null,0,0,null,0,null,null,null,null,1,0,0,0,0]
[null,null,null,null,null,null,0,"-",null,0,null,null,null,0,0,null,0,null,null,null,null,1,0,0,0,0]
[null,null,null,null,null,null,0,"-",null,0,null,null,null,0,0,null,0,null,null,null,null,1,0,0,0,0]
[null,null,null,null,null,null,0,"-",null,0,null,null,null,0,0,null,0,null,null,null,null,{"$f":"1-T285-U285","v":1},{"$f":"T285*(F285+O285)","v":0},{"$f":"IF(AND(W285<>0,$D$31<>0),W285/$D$31,0)","v":0},{"$f":"U285*(F285+O285)","v":0},0]
[null,null,null,null,null,null,0,"-",null,0,null,null,null,0,0,null,0,null,null,null,null,1,0,0,0,0]
[null,null,null,null,null,null,0,"-",null,0,null,null,null,0,0,null,0,null,null,null,null,1,0,0,0,0]
[null,null,null,null,null,null,0,"-",null,0,null,null,null,0,0,null,0,null,null,null,null,1,0,0,0,0]
[null,null,null,null,null,null,0,"-",null,0,null,null,null,0,0,null,0,null,null,null,null,1,0,0,0,0]
[null,null,null,null,null,null,0,"-",null,0,null,null,null,0,0,null,0,null,null,null,null,1,0,0,0,0]
[null,null,null,null,null,null,{"$f":"IF(AND(F291<>0,$D$31<>0),F291/$D$31,0)","v":0},"-",null,0,null,null,null,0,0,null,0,null,null,null,null,1,0,0,0,0]
[null,2.7,"Superstructure: Internal Walls and Partitions",null,"-",{"$f":"SUM(F293:F312)","v":459580.83999999997},{"$f":"IF(AND(F292<>0,$D$31<>0),F292/$D$31,0)","v":46.52098795424638},{"$f":"SUMPRODUCT((C91:D454=\"Superstructure: Internal Doors\")*G91:G454)+SUMPRODUCT((C91:D454=\"Superstructure: Internal Walls and Partitions\")*G91:G454)","v":78.137801396902518},"-",{"$f":"SUM(J293:J312)","v":37480.85},"-","-","-","-",{"$f":"SUM(O293:O312)","v":1680},"-",{"$f":"SUM(Q293:Q312)","v":168},"-","-",{"$f":"IF(W292<>0,W292/($F$292+$O$292),0)","v":0},{"$f":"IF(Y292<>0,Y292/($F$292+$O$292),0)","v":0.95000000000000007},4.9999999999999933E-2,{"$f":"SUM(W293:W312)","v":0},0,{"$f":"SUM(Y293:Y312)","v":438197.79800000001},44.35649336977427]
[null,2.7,"Superstructure: Internal Walls and Partitions",null,"Precast concrete block, 700-2100 kg/m3 (BPCF)",224437.5,{"$f":"IF(AND(F293<>0,$D$31<>0),F293/$D$31,0)","v":22.718645611904037},"-",5.0000022277917014E-2,11221.88,44887.5,0.2,60,{"$f":"IF(M293<>0,INT(59/M293),0)","v":0},{"$f":"F293*N293","v":0},0,{"$f":"O293*P293","v":0},"Yes","offsite recycling",0,0.95,5.0000000000000044E-2,0,0,213215.625,21.582713331308838]
[null,null,null,null,"Emulsion matt paint for allround interior use, Pigment: Lightfast Pigments, binder: PVA Copolymer emulsion , solvent: Water, 1.443 kg/l, 18m2/l, 0.16 kg/m2, Supermatt White, Almond White, Gardenia, Magnolia, Light Base, Medium Base (Dulux Trade)",336,{"$f":"IF(AND(F294<>0,$D$31<>0),F294/$D$31,0)","v":3.4011539629517161E-2},"-",0.1,33.6,0,0,10,{"$f":"IF(M294<>0,INT(59/M294),0)","v":5},{"$f":"F294*N294","v":1680},0.1,{"$f":"O294*P294","v":168},"Yes","offsite recycling",0,0.95,5.0000000000000044E-2,0,0,1915.1999999999998,0.19386577588824777]
[null,null,null,null,"Gypsum plaster board, regular, generic, 6.5-25 mm (0.25-0.98 in), 10.725 kg/m2 (2.20 lbs/ft2) (for 12.5 mm/0.49 in), 858 kg/m3 (53.6 lbs/ft3)",94979.42,{"$f":"IF(AND(F295<>0,$D$31<>0),F295/$D$31,0)","v":9.6142747241623638},"-",0.12500002632149154,11872.43,18995.884000000002,0.2,60,0,0,0,0,"Yes","offsite recycling",0,0.95,5.0000000000000044E-2,0,0,90230.448999999993,9.1335609879542456]
[null,null,null,null,"Gypsum plaster board, regular, generic, 6.5-25 mm (0.25-0.98 in), 10.725 kg/m2 (2.20 lbs/ft2) (for 12.5 mm/0.49 in), 858 kg/m3 (53.6 lbs/ft3)",94979.42,9.6142747241623638,"-",0.12500002632149154,11872.43,18995.884000000002,0.2,60,0,0,0,0,"Yes","offsite recycling",0,0.95,5.0000000000000044E-2,0,0,90230.448999999993,9.1335609879542456]
[null,null,null,null,"Glass wool insulation panels, unfaced, generic, L = 0.031 W/mK, R = 3.23 m2K/W (18 ft2°Fh/BTU), 25 kg/m3 (1.56 lbs/ft3), (applicable for densities: 0-25 kg/m3 (0-1.56 lbs/ft3)), Lambda=0.031 W/(m.K)",21287.5,2.1548233626885311,"-",0.08,1703,2128.75,0.1,60,0,0,0,0,"Yes","offsite recycling",0,0.95,5.0000000000000044E-2,0,0,20223.125,2.0470821945541045]
[null,null,null,null,"Structural steel profiles, generic, 60% recycled content,  I, H, U, L, and T sections, S235, S275 and S355",23561,2.3849579916995647,"-",3.2999872670939262E-2,777.51,14136.6,0.6,60,0,0,0,0,"Yes","offsite recycling",0,0.95,5.0000000000000044E-2,0,0,22382.95,2.2657100921145865]
[null,null,null,null,null,null,0,"-",null,0,null,null,null,0,0,0,0,"Yes",null,null,null,1,0,0,0,0]
[null,null,null,null,null,null,0,"-",null,0,null,null,null,0,0,0,0,"Yes",null,null,null,1,0,0,0,0]
[null,null,null,null,null,null,0,"-",null,0,null,null,null,0,0,0,0,"Yes",null,null,null,1,0,0,0,0]
[null,null,null,null,null,null,0,"-",null,0,null,null,null,0,0,0,0,null,null,null,null,1,0,0,0,0]
[null,null,null,null,null,null,0,"-",null,0,null,null,null,0,0,0,0,null,null,null,null,1,0,0,0,0]
[null,null,null,null,null,null,0,"-",null,0,null,null,null,0,0,0,0,null,null,null,null,1,0,0,0,0]
[null,null,null,null,null,null,0,"-",null,0,null,null,null,0,0,0,0,null,null,null,null,1,0,0,0,0]
[null,null,null,null,null,null,0,"-",null,0,null,null,null,0,0,0,0,null,null,null,null,1,0,0,0,0]
[null,null,null,null,null,null,{"$f":"IF(AND(F307<>0,$D$31<>0),F307/$D$31,0)","v":0},"-",null,0,null,null,null,0,0,0,0,null,null,null,null,1,0,0,0,0]
[null,null,null,null,null,null,{"$f":"IF(AND(F308<>0,$D$31<>0),F308/$D$31,0)","v":0},"-",null,0,null,null,null,0,0,0,0,null,null,null,null,1,0,0,0,0]
[null,null,null,null,null,null,{"$f":"IF(AND(F309<>0,$D$31<>0),F309/$D$31,0)","v":0},"-",null,0,null,null,null,0,0,0,0,null,null,null,null,1,0,0,0,0]
[null,null,null,null,null,null,{"$f":"IF(AND(F310<>0,$D$31<>0),F310/$D$31,0)","v":0},"-",null,0,null,null,null,0,0,0,0,null,null,null,null,1,0,0,0,0]
[null,null,null,null,null,null,0,"-",null,0,null,null,null,0,0,0,0,null,null,null,null,1,0,0,0,0]
[null,null,null,null,null,null,0,"-",null,0,null,null,null,0,0,0,0,null,null,null,null,1,0,0,0,0]
[null,2.8,"Superstructure: Internal Doors",null,"-",{"$f":"SUM(F314:F328)","v":76990},{"$f":"IF(AND(F313<>0,$D$31<>0),F313/$D$31,0)","v":7.7932989168944227},{"$f":"SUMPRODUCT((C91:D454=\"Superstructure: Internal Doors\")*G91:G454)+SUMPRODUCT((C91:D454=\"Superstructure: Internal Walls and Partitions\")*G91:G454)","v":78.137801396902518},"-",{"$f":"SUM(J314:J328)","v":0},"-","-","-","-",{"$f":"SUM(O314:O328)","v":76990},"-",{"$f":"SUM(Q314:Q328)","v":0},"-","-",{"$f":"IF(W313<>0,W313/($F$313+$O$313),0)","v":0},{"$f":"IF(Y313<>0,Y313/($F$313+$O$313),0)","v":0.95},5.0000000000000044E-2,{"$f":"SUM(W314:W328)","v":0},0,{"$f":"SUM(Y314:Y328)","v":146281},14.807267942099402]
[null,2.8,"Superstructure: Internal Doors",null,"Steel door with mineral wool core, fire rated, 900x2000 mm, 74 kg/unit (One Click LCA)",10915,{"$f":"IF(AND(F314<>0,$D$31<>0),F314/$D$31,0)","v":1.1048689138576779},"-",0,0,6549,0.6,30,{"$f":"IF(M314<>0,INT(59/M314),0)","v":1},{"$f":"F314*N314","v":10915},0,{"$f":"O314*P314","v":0},"Yes","offsite recycling",0,0.95,5.0000000000000044E-2,0,0,20738.5,2.0992509363295881]
[null,null,null,null,"Steel door with mineral wool core, fire rated, 900x2000 mm, 74 kg/unit (One Click LCA)",46250,{"$f":"IF(AND(F315<>0,$D$31<>0),F315/$D$31,0)","v":4.6816479400749067},"-",0,0,27750,0.6,30,{"$f":"IF(M315<>0,INT(59/M315),0)","v":1},{"$f":"F315*N315","v":46250},0,{"$f":"O315*P315","v":0},"Yes","offsite recycling",0,0.95,5.0000000000000044E-2,0,0,87875,8.8951310861423227]
[null,null,null,null,"Doors with wooden frame, interior, Portes intérieures de communication avec huisserie bois (DONNEE ENVIRONNEMENTALE GENERIQUE PAR DEFAUT)",19825,{"$f":"IF(AND(F316<>0,$D$31<>0),F316/$D$31,0)","v":2.0067820629618383},"-",0,0,1982.5,0.1,30,1,19825,0,0,null,null,0,0.95,5.0000000000000044E-2,0,0,37667.5,3.8128859196274925]
[null,null,null,null,null,null,0,"-",0,0,null,null,null,0,0,null,0,null,null,null,null,1,0,0,0,0]
[null,null,null,null,null,null,0,"-",0,0,null,null,null,0,0,null,0,null,null,null,null,1,0,0,0,0]
[null,null,null,null,null,null,0,"-",0,0,null,null,null,0,0,null,0,null,null,null,null,1,0,0,0,0]
[null,null,null,null,null,null,0,"-",0,{"$f":"I320*F320","v":0},null,null,null,0,0,null,0,null,null,null,null,1,0,0,0,0]
[null,null,null,null,null,null,0,"-",0,0,null,null,null,0,0,null,0,null,null,null,null,1,0,0,0,0]
[null,null,null,null,null,null,0,"-",0,0,null,null,null,0,0,null,0,null,null,null,null,1,0,0,0,0]
[null,null,null,null,null,null,0,"-",0,0,null,null,null,0,0,null,0,null,null,null,null,1,0,0,0,0]
[null,null,null,null,null,null,0,"-",0,0,null,null,null,0,0,null,0,null,null,null,null,1,0,0,0,0]
[null,null,null,null,null,null,0,"-",0,0,null,null,null,0,0,null,0,null,null,null,null,1,0,0,0,0]
[null,null,null,null,null,null,0,"-",0,0,null,null,null,0,0,null,0,null,null,null,null,1,0,0,0,0]
[null,null,null,null,null,null,0,"-",0,0,null,null,null,0,0,null,0,null,null,null,null,1,0,0,0,0]
[null,null,null,null,null,null,{"$f":"IF(AND(F328<>0,$D$31<>0),F328/$D$31,0)","v":0},"-",0,0,null,null,null,0,0,null,0,null,null,null,null,1,0,0,0,0]
[null,3,"Finishes",null,"-",{"$f":"SUM(F330:F349)","v":492766.1},{"$f":"IF(AND(F329<>0,$D$31<>0),F329/$D$31,0)","v":49.880159935216113},"-","-",{"$f":"SUM(J330:J349)","v":18838.199999999997},"-","-","-","-",{"$f":"SUM(O330:O349)","v":334747},"-",{"$f":"SUM(Q330:Q349)","v":4423.45},"-","-",{"$f":"IF(W329<>0,W329/($F$329+$O$329),0)","v":0},{"$f":"IF(Y329<>0,Y329/($F$329+$O$329),0)","v":0.95},5.0000000000000044E-2,{"$f":"SUM(W330:W349)","v":0},0,{"$f":"SUM(Y330:Y349)","v":786137.44499999995},79.576621621621612]
[null,3,"Finishes",null,"Emulsion matt paint for allround interior use, Pigment: Lightfast Pigments, binder: PVA Copolymer emulsion , solvent: Water, 1.443 kg/l, 18m2/l, 0.16 kg/m2, Supermatt White, Almond White, Gardenia, Magnolia, Light Base, Medium Base (Dulux Trade)",7744,{"$f":"IF(AND(F330<>0,$D$31<>0),F330/$D$31,0)","v":0.7838850086041097},"-",9.9999999999999992E-2,774.4,0,0,30,{"$f":"IF(M330<>0,INT(59/M330),0)","v":1},{"$f":"F330*N330","v":7744},9.9999999999999992E-2,{"$f":"O330*P330","v":774.4},"Yes","offsite recycling",0,0.95,5.0000000000000044E-2,0,0,14713.599999999999,1.4893815163478084]
[null,null,null,null,"Crumb rubber underlays, 2.7 - 2.9 kg/m2 (Interfloor)",1960,{"$f":"IF(AND(F331<>0,$D$31<>0),F331/$D$31,0)","v":0.19840064783885009},"-",0.1,196,980,0.5,10,{"$f":"IF(M331<>0,INT(59/M331),0)","v":5},{"$f":"F331*N331","v":9800},0.1,{"$f":"O331*P331","v":980},"Yes","offsite recycling",0,0.95,5.0000000000000044E-2,0,0,11172,1.1308836926814454]
[null,null,null,null,"Tufted carpet tile with nylon 6 pile material, 1.8 kg/m2, maximum surface pile weight 400 g/m2 (One Click LCA)",1260,{"$f":"IF(AND(F332<>0,$D$31<>0),F332/$D$31,0)","v":0.12754327361068934},"-",0.1,126,315,0.25,60,0,0,0.1,0,"Yes","offsite recycling",0,0.95,5.0000000000000044E-2,0,0,1197,0.12116610993015488]
[null,null,null,null,"Crumb rubber underlays, 2.7 - 2.9 kg/m2 (Interfloor)",16128,1.6325539022168236,"-",9.9999999999999992E-2,1612.8,8064,0.5,30,1,16128,9.9999999999999992E-2,1612.8,"Yes","offsite recycling",0,0.95,5.0000000000000044E-2,0,0,30643.199999999997,3.1018524142119643]
[null,null,null,null,"DPL laminate flooring, 9 mm, 800-1200 kg/m3 (EPLF)",50112,5.0725781961737022,"-",4.9999999999999996E-2,2505.6,10022.400000000001,0.2,60,0,0,4.9999999999999996E-2,0,"Yes","offsite recycling",0,0.95,5.0000000000000044E-2,0,0,47606.399999999994,4.8189492863650161]
[null,null,null,null,"Prefabricated bathroom module with technical and sanitary equipment, biogenic CO2 not subtracted (for CML), 1350 kg/unit (Eiffage SA)",292950,29.653811114485272,"-",0,0,87885,0.3,30,1,292950,0,0,"Yes","offsite recycling",0,0.95,5.0000000000000044E-2,0,0,556605,56.342241117522015]
[null,null,null,null,"Ceramic tiles and plates, 18.65 kg/m2 (Bundesverband Keramische Fliesen)",12122.5,1.2270978844012552,"-",0.1,1212.25,0,0,60,0,0,0.1,0,"Yes","offsite recycling",0,0.95,5.0000000000000044E-2,0,0,11516.375,1.1657429901811924]
[null,null,null,null,"Adhesives, for tiles, German average, Class A, sipersion-based, 1250 kg/m3, EPD coverage: 1000-1500 kg/m3 (DBC/IVK/VdL)",8125,0.82245166514829438,"-",0.13,1056.25,0,0,30,1,8125,0.13,1056.25,"Yes","offsite recycling",0,0.95,5.0000000000000044E-2,0,0,15437.5,1.5626581637817594]
[null,null,null,null,"Suspended plasterboard ceiling, 6.5 mm, Plafond suspendu en plaque de plâtre [ép. 6,5mm] (DONNEE ENVIRONNEMENTALE GENERIQUE PAR DEFAUT)",0,0,"-",0.125,0,0,0,30,1,0,0.125,0,"Yes","offsite recycling",0,0.95,5.0000000000000044E-2,0,0,0,0]
[null,null,null,null,"Finish plaster, 2 mm, 921 kg/m3, Skimcoat, Skimcoat Short Set, Carlite, Carlite Ultra (Gyproc (2021))",66864.600000000006,6.7683571211661109,"-",0.13000002991119364,8692.4,0,0,60,0,0,0.13000002991119364,0,"Yes","offsite recycling",0,0.95,5.0000000000000044E-2,0,0,63521.37,6.4299392651078051]
[null,null,null,null,"Suspended ceiling metal grid, Chicago Metallic™ Grids (Rockfon)",35500,3.5934811215710094,"-",7.4999999999999997E-2,2662.5,21300,0.6,60,0,0,7.4999999999999997E-2,0,"Yes","offsite recycling",0,0.95,5.0000000000000044E-2,0,0,33725,3.4138070654924588]
[null,null,null,null,null,null,0,"-",null,0,null,null,null,0,0,0,0,null,null,null,null,1,0,0,0,0]
[null,null,null,null,null,null,0,"-",null,0,null,null,null,0,0,0,0,null,null,null,null,1,0,0,0,0]
[null,null,null,null,null,null,0,"-",null,0,null,null,null,0,0,0,0,null,null,null,null,1,0,0,0,0]
[null,null,null,null,null,null,{"$f":"IF(AND(F344<>0,$D$31<>0),F344/$D$31,0)","v":0},"-",null,0,null,null,null,0,0,0,0,null,null,null,null,1,0,0,0,0]
[null,null,null,null,null,null,{"$f":"IF(AND(F345<>0,$D$31<>0),F345/$D$31,0)","v":0},"-",null,0,null,null,null,0,0,0,0,null,null,null,null,1,0,0,0,0]
[null,null,null,null,null,null,{"$f":"IF(AND(F346<>0,$D$31<>0),F346/$D$31,0)","v":0},"-",null,0,null,null,null,0,0,0,0,null,null,null,null,1,0,0,0,0]
[null,null,null,null,null,null,{"$f":"IF(AND(F347<>0,$D$31<>0),F347/$D$31,0)","v":0},"-",null,0,null,null,null,0,0,0,0,null,null,null,null,1,0,0,0,0]
[null,null,null,null,null,null,0,"-",null,0,null,null,null,0,0,0,0,null,null,null,null,1,0,0,0,0]
[null,null,null,null,null,null,0,"-",null,0,null,null,null,0,0,0,0,null,null,null,null,{"$f":"1-T349-U349","v":1},{"$f":"T349*(F349+O349)","v":0},{"$f":"IF(AND(W349<>0,$D$31<>0),W349/$D$31,0)","v":0},{"$f":"U349*(F349+O349)","v":0},0]
[null,4,"Fittings, furnishings & equipment (FFE)",null,"-",{"$f":"SUM(F351:F370)","v":297435.06},{"$f":"IF(AND(F350<>0,$D$31<>0),F350/$D$31,0)","v":30.10781050713635},"-","-",{"$f":"SUM(J351:J370)","v":11897.400103094407},"-","-","-","-",{"$f":"SUM(O351:O370)","v":207431.98},"-",{"$f":"SUM(Q351:Q370)","v":8297.271453222942},"-","-",{"$f":"IF(W350<>0,W350/($F$350+$O$350),0)","v":0},{"$f":"IF(Y350<>0,Y350/($F$350+$O$350),0)","v":0.94999999999999984},5.0000000000000155E-2,{"$f":"SUM(W351:W370)","v":0},0,{"$f":"SUM(Y351:Y370)","v":479623.68799999997},48.549821641866579]
[null,4,"Fittings, furnishings & equipment (FFE)",null,"Desk",9911,{"$f":"IF(AND(F351<>0,$D$31<>0),F351/$D$31,0)","v":1.0032391942504302},"-",3.9999725059455898E-2,396.4372750642674,4364.58,0.3,15,{"$f":"IF(M351<>0,INT(59/M351),0)","v":3},{"$f":"F351*N351","v":29733},3.9999725059455898E-2,{"$f":"O351*P351","v":1189.3118251928022},"Yes","offsite recycling",0,0.95,5.0000000000000044E-2,0,0,37661.799999999996,3.8123089381516344]
[null,null,null,null,"Kitchen",54383.46,{"$f":"IF(AND(F352<>0,$D$31<>0),F352/$D$31,0)","v":5.5049559672031583},"-",0.04,2175.3384000000001,2973.2999999999997,0.3,15,{"$f":"IF(M352<>0,INT(59/M352),0)","v":3},{"$f":"F352*N352","v":163150.38},0.04,{"$f":"O352*P352","v":6526.0152000000007},"Yes","offsite recycling",0,0.95,5.0000000000000044E-2,0,0,206657.14799999999,20.918832675371998]
[null,null,null,null,"Bed",14548.6,{"$f":"IF(AND(F353<>0,$D$31<>0),F353/$D$31,0)","v":1.4726794209940277},"-",4.0000029420709904E-2,581.9444280301401,16315.037999999999,0.3,30,1,14548.6,4.0000029420709904E-2,581.9444280301401,"Yes","offsite recycling",0,0.95,5.0000000000000044E-2,0,0,27642.34,2.7980908998886527]
[null,null,null,null,"Wardrobe",218592,22.126935924688734,"-",0.04,8743.68,65577.599999999991,0.3,60,0,0,0.04,0,"Yes","offsite recycling",0,0.95,5.0000000000000044E-2,0,0,207662.4,21.020589128454297]
[null,null,null,null,null,null,0,"-",0,0,null,null,null,0,0,0,0,null,null,null,null,1,0,0,0,0]
[null,null,null,null,null,null,0,"-",0,0,null,null,null,0,0,0,0,null,null,null,null,1,0,0,0,0]
[null,null,null,null,null,null,0,"-",0,0,null,null,null,0,0,0,0,null,null,null,null,1,0,0,0,0]
[null,null,null,null,null,null,0,"-",0,0,null,null,null,0,0,0,0,null,null,null,null,1,0,0,0,0]
[null,null,null,null,null,null,0,"-",0,0,null,null,null,0,0,0,0,null,null,null,null,1,0,0,0,0]
[null,null,null,null,null,null,0,"-",0,0,null,null,null,0,0,0,0,null,null,null,null,1,0,0,0,0]
[null,null,null,null,null,null,0,"-",0,0,null,null,null,0,0,0,0,null,null,null,null,1,0,0,0,0]
[null,null,null,null,null,null,0,"-",0,0,null,null,null,0,0,0,0,null,null,null,null,1,0,0,0,0]
[null,null,null,null,null,null,0,"-",0,0,null,null,null,0,0,0,0,null,null,null,null,1,0,0,0,0]
[null,null,null,null,null,null,0,"-",0,0,null,null,null,0,0,0,0,null,null,null,null,1,0,0,0,0]
[null,null,null,null,null,null,{"$f":"IF(AND(F365<>0,$D$31<>0),F365/$D$31,0)","v":0},"-",0,0,null,null,null,0,0,0,0,null,null,null,null,1,0,0,0,0]
[null,null,null,null,null,null,{"$f":"IF(AND(F366<>0,$D$31<>0),F366/$D$31,0)","v":0},"-",0,0,null,null,null,0,0,0,0,null,null,null,null,1,0,0,0,0]
[null,null,null,null,null,null,{"$f":"IF(AND(F367<>0,$D$31<>0),F367/$D$31,0)","v":0},"-",0,0,null,null,null,0,0,0,0,null,null,null,null,1,0,0,0,0]
[null,null,null,null,null,null,{"$f":"IF(AND(F368<>0,$D$31<>0),F368/$D$31,0)","v":0},"-",0,0,null,null,null,0,0,0,0,null,null,null,null,1,0,0,0,0]
[null,null,null,null,null,null,0,"-",0,0,null,null,null,0,0,0,0,null,null,null,null,1,0,0,0,0]
[null,null,null,null,null,null,0,"-",0,0,null,null,null,0,0,0,0,null,null,null,null,1,0,0,0,0]
[null,5,"Services (MEP)",null,"-",{"$f":"SUM(F372:F391)","v":143325.19999999998},{"$f":"IF(AND(F371<>0,$D$31<>0),F371/$D$31,0)","v":14.508067618179975},"-","-",{"$f":"SUM(J372:J391)","v":1528.3000000000002},"-","-","-","-",{"$f":"SUM(O372:O391)","v":175069.79999999996},"-",{"$f":"SUM(Q372:Q391)","v":946.71999999999991},"-","-",{"$f":"IF(W371<>0,W371/($F$371+$O$371),0)","v":0},{"$f":"IF(Y371<>0,Y371/($F$371+$O$371),0)","v":0.95},5.0000000000000044E-2,{"$f":"SUM(W372:W391)","v":0},0,{"$f":"SUM(Y372:Y391)","v":302475.24999999994},30.618002834294963]
[null,5,"Services (MEP)",null,"Acrylic bathtub, 20.8 kg/unit, DURAVIT : Starck (700345 ; 700344 ; 700342). D-Code (700097 ; 700098 ; 700104 ; 700105) // - KOHLER : Stil 2 (E6812-00 ; E6811-00). Corvette (E60900-00 ; E60901-00/60901-00 ; E60902-00/60902-00 ; E60903-00/60903-00 ; E60904-00/60904-00 ; E60905-00/60905-00). Struktura (E6D020-00/6D020-00 ; E6D021-00/6D021-00). Odeon Up (E6048-00/E6D231-00 ; E6049-00/E6D232-00 ; E6057-00/E6D234-00 ; E6060-00/E6D235-00 ; E6080-00/E6D233-00) (Association Française des Industries de la Salle de Bains)",561.6,{"$f":"IF(AND(F372<>0,$D$31<>0),F372/$D$31,0)","v":5.6847859095050107E-2},"-",0,0,56.160000000000004,0.1,20,{"$f":"IF(M372<>0,INT(59/M372),0)","v":2},{"$f":"F372*N372","v":1123.2},0,{"$f":"O372*P372","v":0},"Yes","offsite recycling",0,0.95,5.0000000000000044E-2,0,0,1600.5600000000002,0.16201639842089283]
[null,null,null,null,"Semi-frameless shower enclosure, 50 kg/unit, 875 x 875 x 1950 mm, tempered glass thickness: 6 mm, aluminium frame (One Click LCA)",10750,{"$f":"IF(AND(F373<>0,$D$31<>0),F373/$D$31,0)","v":1.0881668185038971},"-",0,0,3547.5,0.33,20,{"$f":"IF(M373<>0,INT(59/M373),0)","v":2},{"$f":"F373*N373","v":21500},0,{"$f":"O373*P373","v":0},"Yes","offsite recycling",0,0.95,5.0000000000000044E-2,0,0,30637.5,3.1012754327361067]
[null,null,null,null,"Vitreous ceramic sanitaryware, flushometer toilet, 14 x 26 x 15 in, 24.9 kg/unit, Afwall Millennium 3xxx and 2xxx Series Bowls (LIXIL Water Technology)",5577.6,{"$f":"IF(AND(F374<>0,$D$31<>0),F374/$D$31,0)","v":0.56459155784998483},"-",0,0,111.55200000000001,0.02,20,2,11155.2,0,0,"Yes","offsite recycling",0,0.95,5.0000000000000044E-2,0,0,15896.160000000002,1.6090859398724568]
[null,null,null,null,"Ceramic bathroom washbasin, 16.7 kg/unit, 850 × 460 × 150 mm (One Click LCA)",7181,0.72689543476060325,"-",0,0,0,0,20,2,14362,0,0,"Yes","offsite recycling",0,0.95,5.0000000000000044E-2,0,0,20465.849999999999,2.0716519890677194]
[null,null,null,null,"Elevator for residential buildings, 2930 kg/unit (FEDERATION DES ASCENSEURS)",17580,1.7795323413300941,"-",0,0,5274,0.3,40,1,17580,0,0,"Yes","offsite recycling",0,0.95,5.0000000000000044E-2,0,0,33402,3.3811114485271787]
[null,null,null,null,"Monocrystalline photovoltaic modules, per m2, 11.17 kg/m2, 460 Wc, BGPV (BK) 460-MCSI 575 (Solipac)",2435.06,0.24648851098289301,"-",0,0,730.51799999999992,0.3,25,2,4870.12,0,0,"Yes","offsite recycling",0,0.95,5.0000000000000044E-2,0,0,6939.9210000000003,0.70249225630124512]
[null,null,null,null,"Corrugated plastic pipes, 0.138 kg/m, FFKuS-EM-F-105 co2ntrol (Fränkische Rohrwerke Gebr. Kirchner GmbH & Co.)",113.69,1.1508249822856564E-2,"-",5.9987685812296597E-2,6.82,22.738,0.2,30,1,113.69,5.9987685812296597E-2,6.82,"Yes","offsite recycling",0,0.95,5.0000000000000044E-2,0,0,216.011,2.1865674663427471E-2]
[null,null,null,null,"Diesel generator, 5448 kg/unit, Groupe électrogène diesel insonorisé (DONNEE ENVIRONNEMENTALE GENERIQUE PAR DEFAUT)",2179.1999999999998,0.22058912845429698,"-",0,0,653.75999999999988,0.3,30,1,2179.1999999999998,0,0,"Yes","offsite recycling",0,0.95,5.0000000000000044E-2,0,0,4140.4799999999996,0.41911934406316426]
[null,null,null,null,"Air conditioning unit (reversible heat pump), rooftop mounted, 1546.7 kg/unit, 99.8 kW, e-Baltic eBFH100 SYSAER H 105 WSM2 0354 MF ULTI+ R32 21-115 e-Baltic eBFH100 - SYSAER H 105 - WSM2 0354 MF - ULTI+ R32 21-115 (Uniclima)",8197.51,0.82979147687012855,"-",0,0,2459.2530000000002,0.3,30,1,8197.51,0,0,"Yes","offsite recycling",0,0.95,5.0000000000000044E-2,0,0,15575.269,1.5766038060532443]
[null,null,null,null,"Copper pipes, Type L, DN 16 mm, (5/8 in), 0.54 kg/m, wall thickness: 1.07 mm (One Click LCA)",2386.2199999999998,0.24154469075817389,"-",5.9998658966901625E-2,143.16999999999999,477.24399999999997,0.2,60,0,0,5.9998658966901625E-2,0,"Yes","offsite recycling",0,0.95,5.0000000000000044E-2,0,0,2266.9089999999997,0.22946745622026518]
[null,null,null,null,"Radiator, 600x1200 mm, 37 kg/unit, CenterRad Compact (Wolseley)",11507,1.1647940074906367,"-",0.01,115.07000000000001,3452.1,0.3,60,0,0,0.01,0,"Yes","offsite recycling",0,0.95,5.0000000000000044E-2,0,0,10931.65,1.1065543071161048]
[null,null,null,null,"Galvanised steel cable tray, 7850 kg/m3 (Philip Grahame Ltd)",7918,0.80149812734082393,"-",7.4999999999999997E-2,593.85,4750.8,0.6,60,0,0,7.4999999999999997E-2,0,"Yes","offsite recycling",0,0.95,5.0000000000000044E-2,0,0,7522.0999999999995,0.76142322097378268]
[null,null,null,null,"Galvanized steel ventilation ducts, rectangular, 355x1000 mm, 27.7 kg/m, wall thickness: 1 mm (One Click LCA)",10902.08,1.1035610891790666,"-",9.9999266195074706E-3,{"$f":"I384*F384","v":109.02000000000001},6541.2479999999996,0.6,60,0,0,9.9999266195074706E-3,0,"Yes","offsite recycling",0,0.95,5.0000000000000044E-2,0,0,10356.975999999999,1.0483830347201133]
[null,null,null,null,"Wall mounted switchboards, P= 630 W, 235.96 kg/unit, - PrismaSet L 400A switchboard (SCHNEIDER ELECTRIC - AUTOMATION / SCHNEIDER ELECTRIC INDUSTRIES SAS)",13449.72,1.3614454904342543,"-",1.0000208182772578E-2,134.5,4034.9159999999997,0.3,45,1,13449.72,1.0000208182772578E-2,134.5,"Yes","offsite recycling",0,0.95,5.0000000000000044E-2,0,0,25554.467999999997,2.586746431825083]
[null,null,null,null,"Smoke detector, French average, Détecteurs de fumée (DONNEE ENVIRONNEMENTALE GENERIQUE PAR DEFAUT)",889.74,{"$f":"IF(AND(F386<>0,$D$31<>0),F386/$D$31,0)","v":9.0063771636805345E-2},"-",1.0002922201991593E-2,8.9,266.92199999999997,0.3,30,1,889.74,1.0002922201991593E-2,8.9,"Yes","offsite recycling",0,0.95,5.0000000000000044E-2,0,0,1690.5059999999999,0.17112116610993014]
[null,null,null,null,"Electricity distribution system, cabling and central, for all building types, per m2 GFA",37952.639999999999,{"$f":"IF(AND(F387<>0,$D$31<>0),F387/$D$31,0)","v":3.8417491648952322},"-",1.0000094855061465E-2,379.53,11385.791999999999,0.3,25,2,75905.279999999999,1.0000094855061465E-2,759.06,"Yes","offsite recycling",0,0.95,5.0000000000000044E-2,0,0,108165.02399999999,10.948985119951411]
[null,null,null,null,"LAN cable, 0.16 kg/m, CAT6A F/UTP, 032878  (LEGRAND)",123.03,{"$f":"IF(AND(F388<>0,$D$31<>0),F388/$D$31,0)","v":1.245368964470088E-2},"-",9.9975615703486957E-3,1.23,36.908999999999999,0.3,30,1,123.03,9.9975615703486957E-3,1.23,"Yes","offsite recycling",0,0.95,5.0000000000000044E-2,0,0,233.75700000000001,2.3662010324931673E-2]
[null,null,null,null,"Low voltage cable, Section conductrice de 5 mm2 à 120 mm2, Câble basse tension 0,6/1kV (DONNEE ENVIRONNEMENTALE GENERIQUE PAR DEFAUT)",1643.26,{"$f":"IF(AND(F389<>0,$D$31<>0),F389/$D$31,0)","v":0.16633869824881062},"-",9.9984177792923814E-3,16.43,492.97799999999995,0.3,30,1,1643.26,9.9984177792923814E-3,16.43,"Yes","offsite recycling",0,0.95,5.0000000000000044E-2,0,0,3122.194,0.31604352667274016]
[null,null,null,null,"Copper data cable, plenum rated, 0.0454 kg/m, 10Gain XP 6A (Superior Essex)",74.8,7.5716165603806054E-3,"-",1.0026737967914439E-2,0.75,14.96,0.2,30,1,74.8,1.0026737967914439E-2,0.75,"Yes","offsite recycling",0,0.95,5.0000000000000044E-2,0,0,142.11999999999998,1.4386071464723147E-2]
[null,null,null,null,"Communication cable, 0.231 kg/m, Câble PTT 288 [14 paires] - DONNEE ENVIRONNEMENTALE PAR DEFAUT (MINISTERE DE L’ENVIRONNEMENT, DE L’ENERGIE ET DE LA MER  -  MINISTERE DU LOGEMENT ET DE L´HABITAT DURABLE)",1903.05,0.19263589432128758,"-",9.9997372638658995E-3,19.03,380.61,0.2,30,1,1903.05,9.9997372638658995E-3,19.03,"Yes","offsite recycling",0,0.95,5.0000000000000044E-2,0,0,3615.7949999999996,0.36600819921044636]
[null,6,"Prefabricated Buildings and Building Units",null,"-",{"$f":"SUM(F393:F412)","v":0},{"$f":"IF(AND(F392<>0,$D$31<>0),F392/$D$31,0)","v":0},"-","-",{"$f":"SUM(J393:J412)","v":0},"-","-","-","-",{"$f":"SUM(O393:O412)","v":0},"-",{"$f":"SUM(Q393:Q412)","v":0},"-","-",{"$f":"IF(W392<>0,W392/($F$392+$O$392),0)","v":0},{"$f":"IF(Y392<>0,Y392/($F$392+$O$392),0)","v":0},1,{"$f":"SUM(W393:W412)","v":0},0,{"$f":"SUM(Y393:Y412)","v":0},0]
[null,6,"Prefabricated Buildings and Building Units",null,null,null,{"$f":"IF(AND(F393<>0,$D$31<>0),F393/$D$31,0)","v":0},"-",0,0,null,null,null,{"$f":"IF(M393<>0,INT(59/M393),0)","v":0},{"$f":"F393*N393","v":0},0,{"$f":"O393*P393","v":0},null,null,0,0,1,0,0,0,0]
[null,null,null,null,null,null,{"$f":"IF(AND(F394<>0,$D$31<>0),F394/$D$31,0)","v":0},"-",0,0,null,null,null,{"$f":"IF(M394<>0,INT(59/M394),0)","v":0},{"$f":"F394*N394","v":0},0,{"$f":"O394*P394","v":0},null,null,0,0,1,0,0,0,0]
[null,null,null,null,null,null,{"$f":"IF(AND(F395<>0,$D$31<>0),F395/$D$31,0)","v":0},"-",0,0,null,null,null,0,0,0,0,null,null,0,0,1,0,0,0,0]
[null,null,null,null,null,null,0,"-",0,0,null,null,null,0,0,0,0,null,null,0,0,1,0,0,0,0]
[null,null,null,null,null,null,0,"-",0,0,null,null,null,0,0,0,0,null,null,0,0,1,0,0,0,0]
[null,null,null,null,null,null,0,"-",0,0,null,null,null,0,0,0,0,null,null,0,0,1,0,0,0,0]
[null,null,null,null,null,null,0,"-",0,0,null,null,null,0,0,0,0,null,null,0,0,1,0,0,0,0]
[null,null,null,null,null,null,0,"-",0,0,null,null,null,0,0,0,0,null,null,0,0,1,0,0,0,0]
[null,null,null,null,null,null,0,"-",0,0,null,null,null,0,0,0,0,null,null,0,0,1,0,0,0,0]
[null,null,null,null,null,null,0,"-",0,0,null,null,null,0,0,0,0,null,null,0,0,1,0,0,0,0]
[null,null,null,null,null,null,0,"-",0,0,null,null,null,0,0,0,0,null,null,0,0,1,0,0,0,0]
[null,null,null,null,null,null,0,"-",0,0,null,null,null,0,0,0,0,null,null,0,0,1,0,0,0,0]
[null,null,null,null,null,null,0,"-",0,0,null,null,null,0,0,0,0,null,null,0,0,1,0,0,0,0]
[null,null,null,null,null,null,0,"-",0,0,null,null,null,0,0,0,0,null,null,0,0,1,0,0,0,0]
[null,null,null,null,null,null,{"$f":"IF(AND(F407<>0,$D$31<>0),F407/$D$31,0)","v":0},"-",0,0,null,null,null,0,0,0,0,null,null,0,0,1,0,0,0,0]
[null,null,null,null,null,null,{"$f":"IF(AND(F408<>0,$D$31<>0),F408/$D$31,0)","v":0},"-",0,0,null,null,null,0,0,0,0,null,null,0,0,1,0,0,0,0]
[null,null,null,null,null,null,{"$f":"IF(AND(F409<>0,$D$31<>0),F409/$D$31,0)","v":0},"-",0,0,null,null,null,0,0,0,0,null,null,0,0,1,0,0,0,0]
[null,null,null,null,null,null,{"$f":"IF(AND(F410<>0,$D$31<>0),F410/$D$31,0)","v":0},"-",0,0,null,null,null,0,0,0,0,null,null,0,0,1,0,0,0,0]
[null,null,null,null,null,null,0,"-",0,0,null,null,null,0,0,0,0,null,null,0,0,1,0,0,0,0]
[null,null,null,null,null,null,0,"-",0,0,null,null,null,0,0,0,0,null,null,0,0,1,0,0,0,0]
[null,7,"Work to Existing Building",null,"-",{"$f":"SUM(F414:F433)","v":0},{"$f":"IF(AND(F413<>0,$D$31<>0),F413/$D$31,0)","v":0},"-","-",{"$f":"SUM(J414:J433)","v":0},"-","-","-","-",{"$f":"SUM(O414:O433)","v":0},"-",{"$f":"SUM(Q414:Q433)","v":0},"-","-",{"$f":"IF(W413<>0,W413/($F$413+$O$413),0)","v":0},{"$f":"IF(Y413<>0,Y413/($F$413+$O$413),0)","v":0},{"$f":"1-T413-U413","v":1},{"$f":"SUM(W414:W433)","v":0},{"$f":"IF(AND(W413<>0,$D$31<>0),W413/$D$31,0)","v":0},{"$f":"SUM(Y414:Y433)","v":0},0]
[null,7,"Work to Existing Building",null,null,null,{"$f":"IF(AND(F414<>0,$D$31<>0),F414/$D$31,0)","v":0},"-",0,0,null,null,null,{"$f":"IF(M414<>0,INT(59/M414),0)","v":0},{"$f":"F414*N414","v":0},0,{"$f":"O414*P414","v":0},null,null,0,0,1,{"$f":"T414*(F414+O414)","v":0},0,{"$f":"U414*(F414+O414)","v":0},0]
[null,null,null,null,null,null,{"$f":"IF(AND(F415<>0,$D$31<>0),F415/$D$31,0)","v":0},"-",0,0,null,null,null,{"$f":"IF(M415<>0,INT(59/M415),0)","v":0},{"$f":"F415*N415","v":0},0,{"$f":"O415*P415","v":0},null,null,0,0,1,0,0,0,0]
[null,null,null,null,null,null,{"$f":"IF(AND(F416<>0,$D$31<>0),F416/$D$31,0)","v":0},"-",0,0,null,null,null,0,0,0,0,null,null,0,0,1,0,0,0,0]
[null,null,null,null,null,null,0,"-",0,0,null,null,null,0,0,0,0,null,null,0,0,1,0,0,0,0]
[null,null,null,null,null,null,0,"-",0,0,null,null,null,0,0,0,0,null,null,0,0,1,0,0,0,0]
[null,null,null,null,null,null,0,"-",0,0,null,null,null,0,0,0,0,null,null,0,0,1,0,0,0,0]
[null,null,null,null,null,null,0,"-",0,0,null,null,null,0,0,0,0,null,null,0,0,1,0,0,0,0]
[null,null,null,null,null,null,0,"-",0,0,null,null,null,0,0,0,0,null,null,0,0,1,0,0,0,0]
[null,null,null,null,null,null,0,"-",0,0,null,null,null,0,0,0,0,null,null,0,0,1,0,0,0,0]
[null,null,null,null,null,null,0,"-",0,0,null,null,null,0,0,0,0,null,null,0,0,1,0,0,0,0]
[null,null,null,null,null,null,0,"-",0,0,null,null,null,0,0,0,0,null,null,0,0,1,0,0,0,0]
[null,null,null,null,null,null,0,"-",0,0,null,null,null,0,0,0,0,null,null,0,0,1,0,0,0,0]
[null,null,null,null,null,null,0,"-",0,0,null,null,null,0,0,0,0,null,null,0,0,1,0,0,0,0]
[null,null,null,null,null,null,0,"-",0,0,null,null,null,0,0,0,0,null,null,0,0,1,0,0,0,0]
[null,null,null,null,null,null,{"$f":"IF(AND(F428<>0,$D$31<>0),F428/$D$31,0)","v":0},"-",0,0,null,null,null,0,0,0,0,null,null,0,0,1,0,0,0,0]
[null,null,null,null,null,null,{"$f":"IF(AND(F429<>0,$D$31<>0),F429/$D$31,0)","v":0},"-",0,0,null,null,null,0,0,0,0,null,null,0,0,1,0,0,0,0]
[null,null,null,null,null,null,{"$f":"IF(AND(F430<>0,$D$31<>0),F430/$D$31,0)","v":0},"-",0,0,null,null,null,0,0,0,0,null,null,0,0,1,0,0,0,0]
[null,null,null,null,null,null,{"$f":"IF(AND(F431<>0,$D$31<>0),F431/$D$31,0)","v":0},"-",0,0,null,null,null,0,0,0,0,null,null,0,0,1,0,0,0,0]
[null,null,null,null,null,null,0,"-",0,0,null,null,null,0,0,0,0,null,null,0,0,1,0,0,0,0]
[null,null,null,null,null,null,0,"-",0,0,null,null,null,0,0,0,0,null,null,0,0,1,0,0,0,0]
[null,8,"External works",null,"-",{"$f":"SUM(F435:F454)","v":217520},{"$f":"IF(AND(F434<>0,$D$31<>0),F434/$D$31,0)","v":22.018422917299322},"-","-",{"$f":"SUM(J435:J454)","v":10876},"-","-","-","-",{"$f":"SUM(O435:O454)","v":5300},"-",{"$f":"SUM(Q435:Q454)","v":265},"-","-",{"$f":"IF(W434<>0,W434/($F$434+$O$434),0)","v":0},{"$f":"IF(Y434<>0,Y434/($F$434+$O$434),0)","v":0.95},5.0000000000000044E-2,{"$f":"SUM(W435:W454)","v":0},0,{"$f":"SUM(Y435:Y454)","v":211679},21.427168741775482]
[null,8,"External works",null,"Resin bound aggregate decorative paving system, 3-10 mm grain size, 100 - 150 mm, 1060 kg/m3, Addaset, Addabound, Terrabound and Terrabase (Addagrip Terraco)",5300,{"$f":"IF(AND(F435<>0,$D$31<>0),F435/$D$31,0)","v":0.53649154772750274},"-",0.05,265,530,0.1,30,{"$f":"IF(M435<>0,INT(59/M435),0)","v":1},{"$f":"F435*N435","v":5300},0.05,{"$f":"O435*P435","v":265},"No","offsite recycling",0,0.95,5.0000000000000044E-2,0,0,10070,1.0193339406822552]
[null,null,null,null,"Aggregates from loose rocks layer, for parking zones, Aggregate mass = 927 kg/m2, Water mass = 45 kg/m2, 2100 kg/m3, 450 mm (Union Nationale des Producteurs de Granulats)",24720,{"$f":"IF(AND(F436<>0,$D$31<>0),F436/$D$31,0)","v":2.5022775584573336},"-",0.05,1236,24720,1,60,{"$f":"IF(M436<>0,INT(59/M436),0)","v":0},{"$f":"F436*N436","v":0},0.05,{"$f":"O436*P436","v":0},"No","offsite recycling",0,0.95,5.0000000000000044E-2,0,0,23484,2.3771636805344669]
[null,null,null,null,"Topsoil, 1000 kg/m3 (Den Ouden Group)",141000,{"$f":"IF(AND(F437<>0,$D$31<>0),F437/$D$31,0)","v":14.272699665958093},"-",0.05,7050,141000,1,60,0,0,0.05,0,"No","offsite recycling",0,0.95,5.0000000000000044E-2,0,0,133950,13.559064682660189]
[null,null,null,null,"Red brick, average production, UK (The Brick Development Association)",46500,{"$f":"IF(AND(F438<>0,$D$31<>0),F438/$D$31,0)","v":4.7069541451563923},"-",0.05,2325,2325,0.05,60,0,0,0.05,0,"No","offsite recycling",0,0.95,5.0000000000000044E-2,0,0,44175,4.4716064378985729]
[null,null,null,null,null,null,0,"-",null,0,null,null,null,0,0,null,0,null,null,null,null,1,0,0,0,0]
[null,null,null,null,null,null,0,"-",null,0,null,null,null,0,0,null,0,null,null,null,null,1,0,0,0,0]
[null,null,null,null,null,null,0,"-",null,0,null,null,null,0,0,null,0,null,null,null,null,1,0,0,0,0]
[null,null,null,null,null,null,0,"-",null,0,null,null,null,0,0,null,0,null,null,null,null,1,0,0,0,0]
[null,null,null,null,null,null,0,"-",null,0,null,null,null,0,0,null,0,null,null,null,null,1,0,0,0,0]
[null,null,null,null,null,null,0,"-",null,0,null,null,null,0,0,null,0,null,null,null,null,1,0,0,0,0]
[null,null,null,null,null,null,0,"-",null,0,null,null,null,0,0,null,0,null,null,null,null,1,0,0,0,0]
[null,null,null,null,null,null,0,"-",null,0,null,null,null,0,0,null,0,null,null,null,null,1,0,0,0,0]
[null,null,null,null,null,null,0,"-",null,0,null,null,null,0,0,null,0,null,null,null,null,1,0,0,0,0]
[null,null,null,null,null,null,0,"-",null,{"$f":"I448*F448","v":0},null,null,null,0,0,null,0,null,null,null,null,1,0,0,0,0]
[null,null,null,null,null,null,0,"-",null,0,null,null,null,0,0,null,0,null,null,null,null,1,0,0,0,0]
[null,null,null,null,null,null,0,"-",null,0,null,null,null,0,0,null,0,null,null,null,null,1,0,0,0,0]
[null,null,null,null,null,null,0,"-",null,0,null,null,null,0,0,null,0,null,null,null,null,1,0,0,0,0]
[null,null,null,null,null,null,0,"-",null,0,null,null,null,0,0,null,0,null,null,null,null,1,0,0,0,0]
[null,null,null,null,null,null,0,"-",null,{"$f":"I453*F453","v":0},null,null,null,0,0,null,0,null,null,null,null,1,0,0,0,0]
[null,null,null,null,null,null,0,"-",null,{"$f":"I454*F454","v":0},null,null,null,0,{"$f":"F454*N454","v":0},null,{"$f":"O454*P454","v":0},null,null,null,null,1,{"$f":"T454*(F454+O454)","v":0},0,0,{"$f":"IF(AND(Y454<>0,$D$31<>0),Y454/$D$31,0)","v":0}]
[null,null,"Overall",null,null,{"$f":"SUM(F91,F107,F123,F139,F155,F176,F197,F218,F239,F255,F276,F292,F313,F329,F350,F371,F392,F413,F434)","v":31196736.5},3157.8840469683169,null,null,{"$f":"SUM(J91,J107,J123,J139,J155,J176,J197,J218,J239,J255,J276,J292,J313,J329,J350,J371,J392,J413,J434)","v":1026625.5701030944},null,0.217,null,null,{"$f":"SUM(O91,O107,O123,O139,O155,O176,O197,O218,O239,O255,O276,O292,O313,O329,O350,O371,O392,O413,O434)","v":830843.29999999993},null,{"$f":"SUM(Q91,Q107,Q123,Q139,Q155,Q176,Q197,Q218,Q239,Q255,Q276,Q292,Q313,Q329,Q350,Q371,Q392,Q413,Q434)","v":14100.44145322294},null,null,{"$f":"IF(AND($F$455<>0,$O$455<>0),SUM(W91,W107,W123,W139,W155,W176,W197,W218,W239,W255,W276,W292,W313,W329,W350,W371,W392,W413,W434)/($F$455+$O$455),0)","v":0},{"$f":"IF(AND($F$455<>0,$O$455<>0),SUM(Y91,Y107,Y123,Y139,Y155,Y176,Y197,Y218,Y239,Y255,Y276,Y292,Y313,Y329,Y350,Y371,Y392,Y413,Y434)/($F$455+$O$455),0)","v":0.95},{"$f":"1-T455-U455","v":5.0000000000000044E-2},{"$f":"SUM(W91,W107,W123,W139,W155,W176,W197,W218,W239,W255,W276,W292,W313,W329,W350,W371,W392,W413,W434)","v":0},{"$f":"SUM(X91,X107,X123,X139,X155,X176,X197,X218,X239,X255,X276,X292,X313,X329,X350,X371,X392,X413,X434)","v":0},{"$f":"SUM(Y91,Y107,Y123,Y139,Y155,Y176,Y197,Y218,Y239,Y255,Y276,Y292,Y313,Y329,Y350,Y371,Y392,Y413,Y434)","v":30426200.809999999},{"$f":"SUM(Z91,Z107,Z123,Z139,Z155,Z176,Z197,Z218,Z239,Z255,Z276,Z292,Z313,Z329,Z350,Z371,Z392,Z413,Z434)","v":3079.8867101933388}]
[]
[]
[]
[]
[null,"Recycling and Waste Reporting table"]
[null,"The light green-coloured cells should be completed to achieve 'pioneering' status."]
[null,null,null,null,"TOTAL ESTIMATES OF WASTE",null,null,"WASTE MANAGEMENT ROUTES",null,null,null,null,null,"SUMMARY"]
[null,null,null,null,null,null,null,"REUSE ",null,"RECYCLE",null,"OTHER DISPOSAL"]
[null,null,"Type of Waste","Source of Information","Overall Waste \n(tonnes)","Overall Waste\n(tonnes/m2 GIA)","Performance Indicator (Planning Stage Estimate)","Reuse Onsite (%)","Reuse Offsite (%)","Recycle Onsite(%)","Recycle Offsite (%)","To Landfill (%)","To Other Management (%)","Total Reuse (%)","Total Recycle (%)","Total Reuse and Recycle (%)","Total Waste Reported (%)"]
[null,null,null,null,"PRODUCT AND CONSTRUCTION STAGE (MODULE A)"]
[null,1,"Demolition Waste","Jamestown Pre-Demo Audit",{"$f":"F107/1000","v":3233.21002},{"$f":"IF($D$31>0,IF(E466>0,E466/$D$31,0),0)","v":0.32728110335054156},{"$f":"F466","v":0.32728110335054156},0,0,0,0.95,0.05,null,{"$f":"SUM(H466:I466)","v":0},{"$f":"SUM(J466:K466)","v":0.95},{"$f":"SUM(N466:O466)","v":0.95},{"$f":"SUM(H466:M466)","v":1}]
[null,2.1,"Excavation Waste","Project costplan, cut and fill onsite, re-use at a later stage of the project or investigate options for use on other projects",{"$f":"5306.4*50%","v":2653.2},{"$f":"IF($D$31>0,IF(E467>0,E467/$D$31,0),0)","v":0.26856969328879438},{"$f":"F467","v":0.26856969328879438},0,0,0.5,0.5,0,null,{"$f":"SUM(H467:I467)","v":0},{"$f":"SUM(J467:K467)","v":1},{"$f":"SUM(N467:O467)","v":1},{"$f":"SUM(H467:M467)","v":1}]
[null,2.8,"Construction Waste","240903_Jamestown Road_SWMP_Draft_v2",{"$f":"J455/1000","v":1026.6255701030946},{"$f":"IF($D$31>0,IF(E468>0,E468/$D$31,0),0)","v":0.1039199888757055},{"$f":"F468","v":0.1039199888757055},0,0,0,0.95,0.05,null,{"$f":"SUM(H468:I468)","v":0},{"$f":"SUM(J468:K468)","v":0.95},{"$f":"SUM(N468:O468)","v":0.95},{"$f":"SUM(H468:M468)","v":1}]
[null,null,null,null,"USE STAGE (MODULE B)"]
[null,3,"Demolition / Strip-out Waste","whole life carbon assessment ",{"$f":"IF(ISNUMBER(O455),O455/1000,0)","v":830.84329999999989},{"$f":"IF($D$31>0,IF(E470>0,E470/$D$31,0),0)","v":8.4101963761514312E-2},"-",null,null,null,null,null,null,{"$f":"SUM(H470:I470)","v":0},{"$f":"SUM(J470:K470)","v":0},{"$f":"SUM(N470:O470)","v":0},{"$f":"SUM(H470:M470)","v":0}]
[null,4,"Construction Waste","whole life carbon assessment ",{"$f":"IF(ISNUMBER(Q455),Q455/1000,0)","v":14.10044145322294},{"$f":"IF($D$31>0,IF(E471>0,E471/$D$31,0),0)","v":1.4273146526189837E-3},"-",null,null,null,null,null,null,{"$f":"SUM(H471:I471)","v":0},{"$f":"SUM(J471:K471)","v":0},{"$f":"SUM(N471:O471)","v":0},{"$f":"SUM(H471:M471)","v":0}]
[null,null,null,null,"Overall Waste (tonnes/annum)","Overall Waste (tonnes/annum\n/m2)","Performance Indicator (LPG Appendix 1)","Reuse Onsite (%)","Reuse Offsite (%)","Recycle Offsite(%)","Recycle Offsite (%)","To Landfill (%)","To Other Management (%)","Total Reuse (%)","Total Recycle (%)","Total Reuse and Recycle (%)","Total Waste Reported (%)"]
[null,5,"Municipal Waste","240903_Jamestown Road_OWMS_Draft_v2\nhttps://www.aqua-calc.com/calculate/volume-to-weight",{"$f":"(13090+7641)*52*0.48/1000","v":517.44576000000006},{"$f":"IF($D$31>0,IF(E473>0,E473/$D$31,0),0)","v":5.2378354084421506E-2},{"$f":"F473","v":5.2378354084421506E-2},0,0,0,0.95,0.05,null,{"$f":"SUM(H473:I473)","v":0},{"$f":"SUM(J473:K473)","v":0.95},{"$f":"SUM(N473:O473)","v":0.95},{"$f":"SUM(H473:M473)","v":1}]
[null,6,"Industrial Waste (if applicable)",null,null,"-","-",null,null,null,null,null,null,{"$f":"SUM(H474:I474)","v":0},{"$f":"SUM(J474:K474)","v":0},{"$f":"SUM(N474:O474)","v":0},{"$f":"SUM(H474:M474)","v":0}]
[null,null,null,null,"MODULE A - MODULE C"]
[null,null,null,null,"Overall Materials \n(tonnes)","Overall Materials (Modules A-C) (tonnes\n/m2)","-","Reuse Onsite (%)","Reuse Offsite (%)","Recycle Offsite(%)","Recycle Offsite (%)","To Landfill (%)","To Other Management (%)","Total Reuse (%)","Total Recycle (%)","Total Reuse and Recycle (%)","Total Waste Reported (%)"]
[null,7,"Total Materials",null,{"$f":"IF(AND(ISNUMBER(F455),ISNUMBER(J455),ISNUMBER(O455),ISNUMBER(Q455)),((Q455+O455+F455+J455)/1000),0)","v":33068.305811556318},{"$f":"IF($D$31>0,IF(E477>0,E477/$D$31,0),0)","v":3.3473333142581554},"-",null,null,null,null,null,null,{"$f":"SUM(H477:I477)","v":0},{"$f":"SUM(J477:K477)","v":0},{"$f":"SUM(N477:O477)","v":0},{"$f":"SUM(H477:M477)","v":0}]
[]
[]
[null,"Circular Economy Targets"]
[null,"Circular economy targets for existing and new development",null,"Policy Requirement","Target Aiming For (%)","Policy Met?","Explanation (How will performance against this metric be secured through design, implementation and monitoring?)"]
[null,"Demolition waste materials (non-hazardous)",null,"Minimum of 95% diverted from landfill for reuse, recycling or recovery.",0.95,{"$f":"IF(ISNUMBER(E482),IF(E482=95%,\"Yes\",IF(E482>95%,\"Exceeds Policy\",\"No\")),\"\")","v":"Yes"},"This will be achieved by implementing the Pre-Demolition Audit by WPS. Inert Waste will be crushed. These inert materials should be crushed on-site and used as Recycled Aggregate (RA) where possible. The lower value material should be kept separate from Recycled Concrete Aggregate; its first use would be as fill material on-site, with any surplus sold locally. For the remaining inert waste, it could fetch up to £9.00 per tonne. Maximum benefit is to be realised by using the recycled material on-site in the highest value applications first, thereby displacing the procurement of virgin materials.\nFor Timber Materials, it is not reusable in its current state and therefore will be recycled. Sound, whole materials should be offered via material exchange websites, the Community Wood Recycling scheme or local reclamation merchants. \nFor Metals, the following is recommended as there are no items either fit or viable for salvage but all metals will be segregated for recycling.  \n\nIn terms of Waste Monitoring, systems such as WPS Compliance Consulting’s SitePlan could be implemented on-site in order to reflect the waste management plan, because:-\n\tReference to this Audit must be made in the Resource Management Plan (RMP)\n\tThe data from tis Audit must be used as the Forecast data in the project’s RMP\n\tAt the end of the project the Waste Actuals should be compared to the Forecast values (as is the norm in the Review section of the RMP), with any deviations from the planned targets being investigated and explained. \n\nInert materials will be the dominant demolition product. This product should be treated in terms of the priorities of the waste hierarchy of Reduce > Re-use > Recycle > Dispose. Where possible the bricks should be reclaimed for future re-use on-site or for sale or exchange. Unsuitable and damaged inert materials can be crushed for recycled aggregate. Other inert materials should be segregated where possible. These actions will significantly reduce the environmental impact of the demolition process.\n\nA specialist will be appointed post-planning to undertake an extensive demolition audit to evaluate how material recovery can be maximised. As part of this exercise demolition waste could be, where applicable, used as a resource within the construction of the proposed development.\n\nTheir results will be included with the Resource Management Plan/Demolition Audit and will record any changes between the amount of forecast waste and the actual amount of waste. It will detail the how the waste was diverted from landfill and which waste re-processors and recyclers received and managed the waste.;"]
[null,"Excavation waste materials",null,"Minimum of 95% diverted from landfill for beneficial reuse.",0.95,{"$f":"IF(ISNUMBER(E483),IF(E483=95%,\"Yes\",IF(E483>95%,\"Exceeds Policy\",\"No\")),\"\")","v":"Yes"},"A Resource Management Plan (RMP) and Site Waste Management Plan is to be developed at pre-construction stage by the contractor, in conjunction with the design team and implemented by site team.\n\nA member of the site team will be appointed who will be responsible for updating waste data at a minimum monthly for reporting and analysis. This data will be audit on a quarterly basis for accuracy and quality control. They will produce a RMP to record the data."]
[null,"Construction waste materials",null,"Minimum of 95% diverted from landfill for reuse, recycling or recovery.",0.95,{"$f":"IF(ISNUMBER(E484),IF(E484=95%,\"Yes\",IF(E484>95%,\"Exceeds Policy\",\"No\")),\"\")","v":"Yes"},"A Resource Management Plan (RMP) and Site Waste Management Plan is to be developed at pre-construction stage by the contractor, in conjunction with the design team and implemented by site team.\n\nA member of the site team will be appointed who will be responsible for updating waste data at a minimum monthly for reporting and analysis. This data will be audit on a quarterly basis for accuracy and quality control. They will produce a RMP to record the data."]
[null,"Municipal waste",null,"Minimum 65% recycling rate by 2030.",0.65,{"$f":"IF(ISNUMBER(E485),IF(E485=65%,\"Yes\",IF(E485>65%,\"Exceeds Policy\",\"No\")),\"\")","v":"Yes"},"\tFollowing good waste management practice, dedicated spaces for the segregation and storage of operational recyclable waste generated will be provided within the refuse areas.\n\tFor the co-living blocks (Blocks A and B), residents will use dedicated general and recycling refuse chutes within each block.\n\tSite management staff will replace eurobins below the chutes when full. Refuse stores are located adjacent to and accessed directly from the street, in close proximity to collection points where refuse vehicles can alight. \n\tFood waste from communal kitchen areas will be taken down to the refuse area by cleaning staff and deposited in a dedicated food waste bin\n\tBin storage spaces will be accessible and clearly labelled to assist with segregation, storage and collection of the recyclable waste streams. This will support the separate collection of dry recyclables (such as card, paper, mixed plastics, metals and glass) in addition to food waste and other waste\n\tMinimising the amount of waste produced and avoid producing waste in the first instance\n\tRe-using items as many times as possible\n\tRecycling what cannot be reused or is no longer needed\n\tTurning waste materials into new products \n\tDisposing of what is unable to be recovered in a responsible way\n\tBuilding management commits to completing periodic quarterly reviews of waste storage provision and the behaviour of residents in correctly segregating wastes \n\tMinimum 65% recycling rate by 2030.\n\nIn addition to this, the Building User Guides will incorporate a Municipal/Operational Waste Management Plan. This will be supported by the achievement of Man 04 Commissioning and Handover credits and Wst 03 Operational Waste credits\n\nAt post construction stage a final OWMP will developed based upon updated information and will outline how the plan will be updated on an ongoing basis. "]
[null,"Recycled content",null,"Minimum 20% of the building material elements to be comprised of recycled or reused content.",0.2,{"$f":"IF(ISNUMBER(E486),IF(E486=20%,\"Yes\",IF(E486>20%,\"Exceeds Policy\",\"No\")),\"\")","v":"Yes"},"This will be implemented by selecting suppliers with an EPD certification. \nThe Design Team will ensure that product selection at the point of specification complies with the BREEAM Mat 03 targets (to achieve 4 credits) and include performance requirements within tender information. \n\nThis will also be achieved through the minimisation of Whole Life Cycle Carbon by specifying low carbon materials. A Whole Lifecycle Carbon Assessment has been undertaken compliant with the GLA and BREEAM Mat 01 to measure performance against the respective benchmarks. Under the Whole Lifecycle Carbon Assessment (WLC) for the GLA, the development meets the following targets. Module A1-5 WLC Benchmark (<850kgCO2/m2), Module B-C excluding B6&B7 WLC Aspirational Benchmark (<300kgCO2/m2) and for Modules A-C excluding B6&B7 achieves the WLC Aspirational Benchmark (<800kgCO2/m2). A further assessment will be undertaken at post construction stage to confirm these results and with the as-built bill of materials. \n\nThe Development also aims to achieve 5 credits for Mat 01 across both the concept and technical design stages.  "]
[null,"Additional requirements",null,"Policy Requirement","Please acknowledge acceptance for a planning condition",null,"Please set out an indicative timescale and responsible party for the provision of this information"]
[null,"Post-Construction Report",null,"A CE Statement is required at post-construction (i.e. upon commencement of RIBA Stage 6 and prior to the building being handed over, if applicable. Generally, it would be expected that the assessment would be received no more than three months post-construction)","It is accepted that the Post Construction Reporting will be conditioned",null,"Prior to the competition of the Penarth development, a Post Completion Report will be developed listing out the predicted and actual performance against all numerical Circular Economy targets included within the Circular Economy statement. This report is to be submitted to GLA along with supporting evidence in accordance with the London Plan Guidance, Circular Economy Statements (March 2022).    "]

{"sheet":"Post-Construction Stage","index":4,"n_rows":458,"n_cols":26,"rows_kept":458,"cut":false,"hidden":false,"merged":[[275,2,275,3],[409,13,409,16],[276,1,295,1],[276,2,295,3],[359,2,359,3],[360,1,379,1],[360,2,379,3],[380,2,380,3],[381,1,400,1],[381,2,400,3],[296,2,296,3],[297,1,316,1],[297,2,316,3],[317,2,317,3],[318,1,337,1],[318,2,337,3],[338,2,338,3],[339,1,358,1],[339,2,358,3],[222,2,222,3],[223,1,237,1],[223,2,237,3],[238,2,238,3],[239,1,258,1],[239,2,258,3],[259,2,259,3],[260,1,274,1],[260,2,274,3],[164,2,164,3],[165,1,184,1],[165,2,184,3],[185,2,185,3],[186,1,200,1],[186,2,200,3],[201,2,201,3],[202,1,221,1],[202,2,221,3],[35,17,35,21],[35,22,35,25],[449,5,449,6],[450,5,450,6],[449,1,449,2],[450,1,450,2],[437,1,437,2],[427,7,427,9],[38,1,52,1],[38,2,52,3],[54,1,68,1],[54,2,68,3],[69,2,69,3],[70,1,84,1],[70,2,84,3],[85,2,85,3],[86,1,100,1],[86,2,100,3],[101,2,101,3],[408,13,408,16],[53,2,53,3],[431,7,431,9],[432,7,432,9],[102,1,121,1],[451,5,451,6],[452,5,452,6],[437,3,437,4],[437,5,437,6],[444,5,444,6],[445,5,445,6],[446,5,446,6],[447,5,447,6],[448,5,448,6],[449,3,449,4],[450,3,450,4],[451,3,451,4],[452,3,452,4],[438,5,438,6],[439,5,439,6],[440,5,440,6],[441,5,441,6],[442,5,442,6],[443,5,443,6],[443,3,443,4],[444,3,444,4],[445,3,445,4],[451,1,451,2],[452,1,452,2],[438,3,438,4],[439,3,439,4],[440,3,440,4],[441,3,441,4],[442,3,442,4],[442,1,442,2],[443,1,443,2],[444,1,444,2],[445,1,445,2],[446,1,446,2],[447,1,447,2],[438,1,438,2],[439,1,439,2],[440,1,440,2],[441,1,441,2],[446,3,446,4],[447,3,447,4],[448,3,448,4],[448,1,448,2],[456,1,456,2],[456,3,456,4],[457,3,457,4],[458,3,458,4],[459,3,459,4],[460,3,460,4],[457,1,457,2],[458,1,458,2],[459,1,459,2],[460,1,460,2],[470,3,470,4],[471,3,471,4],[461,3,461,4],[462,3,462,4],[463,3,463,4],[464,3,464,4],[465,3,465,4],[466,3,466,4],[469,1,469,2],[470,1,470,2],[471,1,471,2],[463,1,463,2],[464,1,464,2],[465,1,465,2],[466,1,466,2],[467,1,467,2],[468,1,468,2],[461,1,461,2],[462,1,462,2],[467,3,467,4],[468,3,468,4],[469,3,469,4],[428,7,428,9],[429,7,429,9],[430,7,430,9],[35,2,35,3],[36,2,36,3],[37,2,37,3],[35,4,35,11],[0,0,1,6],[3,0,3,5],[4,0,4,2],[4,4,4,5],[408,4,408,6],[408,7,408,12],[409,7,409,8],[409,9,409,10],[409,11,409,12],[35,12,35,16],[102,2,121,3],[122,2,122,3],[123,1,142,1],[123,2,142,3],[143,2,143,3],[144,1,163,1],[144,2,163,3]]}
[]
[]
[]
["Post-Construction Stage - Circular Economy Statement"]
[]
[null,null,null,"Project Details"]
[null,null,"Project name"]
[null,null,"Planning application reference number (if applicable)"]
[null,null,"Applicant"]
[null,null,"London Borough"]
[null,null,"Brief description of the project"]
[null,null,"Author/s"]
[null,null,"Date of assessment"]
[null,null,"Number of Use Types"]
[null,null,"Use Class / Type","Floor Area by use type (m2)"]
[null,null,"Use Class / Type 1","Use Class / Type 1 GIA"]
[null,null,"Use Class / Type 2","Use Class / Type 2 GIA"]
[null,null,"Use Class / Type 3","Use Class / Type 3 GIA"]
[null,null,"Use Class / Type 4","Use Class / Type 4 GIA"]
[null,null,"Use Class / Type 5","Use Class / Type 5 GIA"]
[null,null,"Use Class / Type 6","Use Class / Type 6 GIA"]
[null,null,"Use Class / Type 7","Use Class / Type 7 GIA"]
[null,null,"Use Class / Type 8","Use Class / Type 8 GIA"]
[null,null,"Use Class / Type 9","Use Class / Type 9 GIA"]
[null,null,"Use Class / Type 10","Use Class / Type 10 GIA"]
[null,null,"Use Class / Type 11","Use Class / Type 11 GIA"]
[null,null,"Use Class / Type 12","Use Class / Type 12 GIA"]
[null,null,"Use Class / Type 13","Use Class / Type 13 GIA"]
[null,null,"Use Class / Type 14","Use Class / Type 14 GIA"]
[null,null,"Use Class / Type 15","Use Class / Type 15 GIA"]
[null,null,"Overall GIA (m2)",{"$f":"SUM(D16:D30)","v":0}]
[]
[]
[null,"Bill of Materials"]
[null,"Please click the + symbol to the left hand side of the Bill of Materials table to view or hide the input rows for each Building Element Category. The rows for substructure and frame have been unhidden to highlight this. A fixed number of rows has been provided for each Building Element Category based on a sub-set of typical WLCA submissions. Should the number of rows provided not be sufficient to allow input of all materials for a given Building Element Category, Applicants should prioritise the inclusion of the materials with the highest quantity. "]
[null,null,"BUILDING ELEMENT CATEGORY -  LEVEL 1 (based on the RICS New Rules of\nMeasurement (NRM) classification system level 2 sub-elements https://www.rics.org/globalassets/rics-website/media/products/data-products/bcis-construction/bcis-elemental-standard-form-cost-analysis-4th-nrm-edition-2012.pdf)",null,"PRODUCT AND CONSTRUCTION STAGE (MODULE A)",null,null,null,null,null,null,null,"USE STAGE (MODULE B)",null,null,null,null,"END OF LIFE STAGE (MODULE C)",null,null,null,null,"BENEFITS BEYOND THE SYSTEM BOUNDARY (MODULE D)"]
[null,null,"Building Element Category",null,"Material Type","Material quantity\n(Module A)\n(kg)","Material intensity \n(Module A) \n(kg/m2 GIA)","Performance Indicator (LPG Appendix 1)","Construction Waste Factor \n(Module A)","Construction Waste \n(Module A)\n(kg)","Recycled Content \nby mass (kg)","Recycled Content \nby value (%)","Expected Lifespan\n(years)","Number of Replacements (over assumed 60-year period)","Repair and Replacement quantities of materials\n(Module B)\n (kg)","Construction Waste Factor \n(Module B)","Construction Waste \n(Module B)\n(kg)","Design for Disassembly","Assumed End of Life Scenario\n(Description)","% Reusing ","% Recycling","% Landfill","Estimated reusable materials (kg)","Estimated reusable materials intensity\n(kg/m2 GIA)","Estimated recyclable materials (kg)","Estimated recyclable materials intensity\n(kg/m2 GIA)"]
[null,0.1,"Demolition: Toxic/Hazardous/Contaminated Material Treatment",null,"-",{"$f":"SUM(F39:F53)","v":0},{"$f":"IF(AND(F38<>0,$D$31<>0),F38/$D$31,0)","v":0},"-","-",{"$f":"SUM(J39:J53)","v":0},"-","-","-","-",{"$f":"SUM(O39:O53)","v":0},"-",{"$f":"SUM(Q39:Q53)","v":0},"-","-",{"$f":"IF(W38<>0,W38/($F$91+$O$91),0)","v":0},{"$f":"IF(Y38<>0,Y38/($F$91+$O$91),0)","v":0},{"$f":"1-T38-U38","v":1},{"$f":"SUM(W39:W53)","v":0},{"$f":"IF(AND(W38<>0,$D$31<>0),W38/$D$31,0)","v":0},{"$f":"SUM(Y39:Y53)","v":0},{"$f":"IF(AND(Y38<>0,$D$31<>0),Y38/$D$31,0)","v":0}]
[null,0.1,"Demolition: Toxic/Hazardous/Contaminated Material Treatment",null,null,null,{"$f":"IF(AND(F39<>0,$D$31<>0),F39/$D$31,0)","v":0},"-",0,{"$f":"F39*I39","v":0},null,null,null,{"$f":"IF(M39<>0,INT(59/M39),0)","v":0},{"$f":"F39*N39","v":0},0,{"$f":"O39*P39","v":0},null,null,0,0,{"$f":"1-T39-U39","v":1},{"$f":"T39*(F39+O39)","v":0},{"$f":"IF(AND(W39<>0,$D$31<>0),W39/$D$31,0)","v":0},{"$f":"U39*(F39+O39)","v":0},{"$f":"IF(AND(Y39<>0,$D$31<>0),Y39/$D$31,0)","v":0}]
[null,null,null,null,null,null,{"$f":"IF(AND(F40<>0,$D$31<>0),F40/$D$31,0)","v":0},"-",0,{"$f":"F40*I40","v":0},null,null,null,{"$f":"IF(M40<>0,INT(59/M40),0)","v":0},{"$f":"F40*N40","v":0},0,{"$f":"O40*P40","v":0},null,null,0,0,{"$f":"1-T40-U40","v":1},{"$f":"T40*(F40+O40)","v":0},{"$f":"IF(AND(W40<>0,$D$31<>0),W40/$D$31,0)","v":0},{"$f":"U40*(F40+O40)","v":0},0]
[null,null,null,null,null,null,0,"-",0,0,null,null,null,0,0,0,0,null,null,0,0,1,0,0,0,0]
[null,null,null,null,null,null,0,"-",0,0,null,null,null,0,0,0,0,null,null,0,0,1,0,0,0,0]
[null,null,null,null,null,null,0,"-",0,0,null,null,null,0,0,0,0,null,null,0,0,1,0,0,0,0]
[null,null,null,null,null,null,0,"-",0,0,null,null,null,0,0,0,0,null,null,0,0,1,0,0,0,0]
[null,null,null,null,null,null,0,"-",0,0,null,null,null,0,0,0,0,null,null,0,0,1,0,0,0,0]
[null,null,null,null,null,null,0,"-",0,0,null,null,null,0,0,0,0,null,null,0,0,1,0,0,0,0]
[null,null,null,null,null,null,0,"-",0,0,null,null,null,0,0,0,0,null,null,0,0,1,0,0,0,0]
[null,null,null,null,null,null,0,"-",0,0,null,null,null,0,0,0,0,null,null,0,0,1,0,0,0,0]
[null,null,null,null,null,null,0,"-",0,0,null,null,null,0,0,0,0,null,null,0,0,1,0,0,0,0]
[null,null,null,null,null,null,0,"-",0,0,null,null,null,0,0,0,0,null,null,0,0,1,0,0,0,0]
[null,null,null,null,null,null,0,"-",0,0,null,null,null,0,0,0,0,null,null,0,0,1,0,0,0,0]
[null,null,null,null,null,null,0,"-",0,0,null,null,null,0,0,0,0,null,null,0,0,1,0,0,0,0]
[null,null,null,null,null,null,0,"-",0,0,null,null,null,0,0,0,0,null,null,0,0,1,0,0,0,0]
[null,0.2,"Major Demolition Works",null,"-",{"$f":"SUM(F55:F69)","v":0},{"$f":"IF(AND(F54<>0,$D$31<>0),F54/$D$31,0)","v":0},"-","-",{"$f":"SUM(J55:J69)","v":0},"-","-","-","-",{"$f":"SUM(O55:O69)","v":0},"-",{"$f":"SUM(Q55:Q69)","v":0},"-","-",{"$f":"IF(W54<>0,W54/($F$107+$O$107),0)","v":0},{"$f":"IF(Y54<>0,Y54/($F$107+$O$107),0)","v":0},{"$f":"1-T54-U54","v":1},{"$f":"SUM(W55:W69)","v":0},0,{"$f":"SUM(Y55:Y69)","v":0},0]
[null,0.2,"Major Demolition Works",null,null,null,{"$f":"IF(AND(F55<>0,$D$31<>0),F55/$D$31,0)","v":0},"-",0,{"$f":"I55*F55","v":0},null,null,null,{"$f":"IF(M55<>0,INT(59/M55),0)","v":0},{"$f":"F55*N55","v":0},0,{"$f":"O55*P55","v":0},null,null,0,0,1,0,0,0,0]
[null,null,null,null,null,null,{"$f":"IF(AND(F56<>0,$D$31<>0),F56/$D$31,0)","v":0},"-",0,0,null,null,null,{"$f":"IF(M56<>0,INT(59/M56),0)","v":0},{"$f":"F56*N56","v":0},0,{"$f":"O56*P56","v":0},null,null,0,0,1,0,0,0,0]
[null,null,null,null,null,null,{"$f":"IF(AND(F57<>0,$D$31<>0),F57/$D$31,0)","v":0},"-",0,0,null,null,null,0,0,0,0,null,null,0,0,1,0,0,0,0]
[null,null,null,null,null,null,0,"-",0,0,null,null,null,0,0,0,0,null,null,0,0,1,0,0,0,0]
[null,null,null,null,null,null,0,"-",0,0,null,null,null,0,0,0,0,null,null,0,0,1,0,0,0,0]
[null,null,null,null,null,null,0,"-",0,0,null,null,null,0,0,0,0,null,null,0,0,1,0,0,0,0]
[null,null,null,null,null,null,0,"-",0,0,null,null,null,0,0,0,0,null,null,0,0,1,0,0,0,0]
[null,null,null,null,null,null,0,"-",0,0,null,null,null,0,0,0,0,null,null,0,0,1,0,0,0,0]
[null,null,null,null,null,null,0,"-",0,0,null,null,null,0,0,0,0,null,null,0,0,1,0,0,0,0]
[null,null,null,null,null,null,0,"-",0,0,null,null,null,0,0,0,0,null,null,0,0,1,0,0,0,0]
[null,null,null,null,null,null,0,"-",0,0,null,null,null,0,0,0,0,null,null,0,0,1,0,0,0,0]
[null,null,null,null,null,null,0,"-",0,0,null,null,null,0,0,0,0,null,null,0,0,1,0,0,0,0]
[null,null,null,null,null,null,0,"-",0,0,null,null,null,0,0,0,0,null,null,0,0,1,0,0,0,0]
[null,null,null,null,null,null,0,"-",0,0,null,null,null,0,0,0,0,null,null,0,0,1,0,0,0,0]
[null,null,null,null,null,null,0,"-",0,0,null,null,null,0,0,0,0,null,null,0,0,1,0,0,0,0]
[null,0.3,"Temporary Support to Adjacent Structures",null,"-",{"$f":"SUM(F71:F85)","v":0},{"$f":"IF(AND(F70<>0,$D$31<>0),F70/$D$31,0)","v":0},"-","-",{"$f":"SUM(J71:J85)","v":0},"-","-","-","-",{"$f":"SUM(O71:O85)","v":0},"-",{"$f":"SUM(Q71:Q85)","v":0},"-","-",{"$f":"IF(W70<>0,W70/($F$123+$O$123),0)","v":0},{"$f":"IF(Y70<>0,Y70/($F$123+$O$123),0)","v":0},1,{"$f":"SUM(W71:W85)","v":0},0,{"$f":"SUM(Y71:Y85)","v":0},0]
[null,0.3,"Temporary Support to Adjacent Structures",null,null,null,{"$f":"IF(AND(F71<>0,$D$31<>0),F71/$D$31,0)","v":0},"-",0,{"$f":"I71*F71","v":0},null,null,null,{"$f":"IF(M71<>0,INT(59/M71),0)","v":0},{"$f":"F71*N71","v":0},0,{"$f":"O71*P71","v":0},null,null,0,0,1,0,0,0,0]
[null,null,null,null,null,null,{"$f":"IF(AND(F72<>0,$D$31<>0),F72/$D$31,0)","v":0},"-",0,0,null,null,null,{"$f":"IF(M72<>0,INT(59/M72),0)","v":0},{"$f":"F72*N72","v":0},0,{"$f":"O72*P72","v":0},null,null,0,0,1,0,0,0,0]
[null,null,null,null,null,null,{"$f":"IF(AND(F73<>0,$D$31<>0),F73/$D$31,0)","v":0},"-",0,0,null,null,null,0,0,0,0,null,null,0,0,1,0,0,0,0]
[null,null,null,null,null,null,0,"-",0,0,null,null,null,0,0,0,0,null,null,0,0,1,0,0,0,0]
[null,null,null,null,null,null,0,"-",0,0,null,null,null,0,0,0,0,null,null,0,0,1,0,0,0,0]
[null,null,null,null,null,null,0,"-",0,0,null,null,null,0,0,0,0,null,null,0,0,1,0,0,0,0]
[null,null,null,null,null,null,0,"-",0,0,null,null,null,0,0,0,0,null,null,0,0,1,0,0,0,0]
[null,null,null,null,null,null,0,"-",0,0,null,null,null,0,0,0,0,null,null,0,0,1,0,0,0,0]
[null,null,null,null,null,null,0,"-",0,0,null,null,null,0,0,0,0,null,null,0,0,1,0,0,0,0]
[null,null,null,null,null,null,0,"-",0,0,null,null,null,0,0,0,0,null,null,0,0,1,0,0,0,0]
[null,null,null,null,null,null,0,"-",0,0,null,null,null,0,0,0,0,null,null,0,0,1,0,0,0,0]
[null,null,null,null,null,null,0,"-",0,0,null,null,null,0,0,0,0,null,null,0,0,1,0,0,0,0]
[null,null,null,null,null,null,0,"-",0,0,null,null,null,0,0,0,0,null,null,0,0,1,0,0,0,0]
[null,null,null,null,null,null,0,"-",0,0,null,null,null,0,0,0,0,null,null,0,0,1,0,0,0,0]
[null,null,null,null,null,null,0,"-",0,0,null,null,null,0,0,0,0,null,null,0,0,1,0,0,0,0]
[null,0.4,"Specialist Ground Works",null,"-",{"$f":"SUM(F87:F101)","v":0},{"$f":"IF(AND(F86<>0,$D$31<>0),F86/$D$31,0)","v":0},"-","-",{"$f":"SUM(J87:J101)","v":0},"-","-","-","-",{"$f":"SUM(O87:O101)","v":0},"-",{"$f":"SUM(Q87:Q101)","v":0},"-","-",{"$f":"IF(W86<>0,W86/($F$139+$O$139),0)","v":0},{"$f":"IF(Y86<>0,Y86/($F$139+$O$139),0)","v":0},1,{"$f":"SUM(W87:W101)","v":0},0,{"$f":"SUM(Y87:Y101)","v":0},0]
[null,0.4,"Specialist Ground Works",null,null,null,{"$f":"IF(AND(F87<>0,$D$31<>0),F87/$D$31,0)","v":0},"-",0,{"$f":"I87*F87","v":0},null,null,null,{"$f":"IF(M87<>0,INT(59/M87),0)","v":0},{"$f":"F87*N87","v":0},0,{"$f":"O87*P87","v":0},null,null,0,0,1,0,0,0,0]
[null,null,null,null,null,null,{"$f":"IF(AND(F88<>0,$D$31<>0),F88/$D$31,0)","v":0},"-",0,0,null,null,null,{"$f":"IF(M88<>0,INT(59/M88),0)","v":0},{"$f":"F88*N88","v":0},0,{"$f":"O88*P88","v":0},null,null,0,0,1,0,0,0,0]
[null,null,null,null,null,null,{"$f":"IF(AND(F89<>0,$D$31<>0),F89/$D$31,0)","v":0},"-",0,0,null,null,null,0,0,0,0,null,null,0,0,1,0,0,0,0]
[null,null,null,null,null,null,0,"-",0,0,null,null,null,0,0,0,0,null,null,0,0,1,0,0,0,0]
[null,null,null,null,null,null,0,"-",0,0,null,null,null,0,0,0,0,null,null,0,0,1,0,0,0,0]
[null,null,null,null,null,null,0,"-",0,0,null,null,null,0,0,0,0,null,null,0,0,1,0,0,0,0]
[null,null,null,null,null,null,0,"-",0,0,null,null,null,0,0,0,0,null,null,0,0,1,0,0,0,0]
[null,null,null,null,null,null,0,"-",0,0,null,null,null,0,0,0,0,null,null,0,0,1,0,0,0,0]
[null,null,null,null,null,null,0,"-",0,0,null,null,null,0,0,0,0,null,null,0,0,1,0,0,0,0]
[null,null,null,null,null,null,0,"-",0,0,null,null,null,0,0,0,0,null,null,0,0,1,0,0,0,0]
[null,null,null,null,null,null,0,"-",0,0,null,null,null,0,0,0,0,null,null,0,0,1,0,0,0,0]
[null,null,null,null,null,null,0,"-",0,0,null,null,null,0,0,0,0,null,null,0,0,1,0,0,0,0]
[null,null,null,null,null,null,0,"-",0,0,null,null,null,0,0,0,0,null,null,0,0,1,0,0,0,0]
[null,null,null,null,null,null,0,"-",0,0,null,null,null,0,0,0,0,null,null,0,0,1,0,0,0,0]
[null,null,null,null,null,null,0,"-",0,0,null,null,null,0,0,0,0,null,null,0,0,1,0,0,0,0]
[null,1,"Substructure",null,"-",{"$f":"SUM(F103:F122)","v":0},{"$f":"IF(AND(F102<>0,$D$31<>0),F102/$D$31,0)","v":0},{"$f":"SUMPRODUCT((C38:D401=\"Substructure\")*G38:G401)","v":0},"-",{"$f":"SUM(J103:J122)","v":0},"-","-","-","-",{"$f":"SUM(O103:O122)","v":0},"-",{"$f":"SUM(Q103:Q122)","v":0},"-","-",{"$f":"IF(W102<>0,W102/($F$155+$O$155),0)","v":0},{"$f":"IF(Y102<>0,Y102/($F$155+$O$155),0)","v":0},1,{"$f":"SUM(W103:W122)","v":0},0,{"$f":"SUM(Y103:Y122)","v":0},0]
[null,1,"Substructure",null,null,null,{"$f":"IF(AND(F103<>0,$D$31<>0),F103/$D$31,0)","v":0},"-",0,{"$f":"I103*F103","v":0},null,null,null,{"$f":"IF(M103<>0,INT(59/M103),0)","v":0},{"$f":"F103*N103","v":0},0,{"$f":"O103*P103","v":0},null,null,0,0,1,{"$f":"T103*(F103+O103)","v":0},0,{"$f":"U103*(F103+O103)","v":0},0]
[null,null,null,null,null,null,{"$f":"IF(AND(F104<>0,$D$31<>0),F104/$D$31,0)","v":0},"-",0,0,null,null,null,{"$f":"IF(M104<>0,INT(59/M104),0)","v":0},{"$f":"F104*N104","v":0},0,{"$f":"O104*P104","v":0},null,null,0,0,{"$f":"1-T104-U104","v":1},0,{"$f":"IF(AND(W104<>0,$D$31<>0),W104/$D$31,0)","v":0},0,0]
[null,null,null,null,null,null,{"$f":"IF(AND(F105<>0,$D$31<>0),F105/$D$31,0)","v":0},"-",0,0,null,null,null,0,0,0,0,null,null,0,0,1,0,0,0,0]
[null,null,null,null,null,null,0,"-",0,0,null,null,null,0,0,0,0,null,null,0,0,1,0,0,0,0]
[null,null,null,null,null,null,0,"-",0,0,null,null,null,0,0,0,0,null,null,0,0,1,0,0,0,0]
[null,null,null,null,null,null,0,"-",0,0,null,null,null,0,0,0,0,null,null,0,0,1,0,0,0,0]
[null,null,null,null,null,null,0,"-",0,0,null,null,null,0,0,0,0,null,null,0,0,1,0,0,0,0]
[null,null,null,null,null,null,0,"-",0,0,null,null,null,0,0,0,0,null,null,0,0,1,0,0,0,0]
[null,null,null,null,null,null,0,"-",0,0,null,null,null,0,0,0,0,null,null,0,0,1,0,0,0,0]
[null,null,null,null,null,null,0,"-",0,0,null,null,null,0,0,0,0,null,null,0,0,1,0,0,0,0]
[null,null,null,null,null,null,0,"-",0,0,null,null,null,0,0,0,0,null,null,0,0,1,0,0,0,0]
[null,null,null,null,null,null,0,"-",0,0,null,null,null,0,0,0,0,null,null,0,0,1,0,0,0,0]
[null,null,null,null,null,null,0,"-",0,0,null,null,null,0,0,0,0,null,null,0,0,1,0,0,0,0]
[null,null,null,null,null,null,0,"-",0,0,null,null,null,0,0,0,0,null,null,0,0,1,0,0,0,0]
[null,null,null,null,null,null,{"$f":"IF(AND(F117<>0,$D$31<>0),F117/$D$31,0)","v":0},"-",0,0,null,null,null,0,0,0,0,null,null,0,0,1,0,0,0,0]
[null,null,null,null,null,null,{"$f":"IF(AND(F118<>0,$D$31<>0),F118/$D$31,0)","v":0},"-",0,0,null,null,null,0,0,0,0,null,null,0,0,1,0,0,0,0]
[null,null,null,null,null,null,{"$f":"IF(AND(F119<>0,$D$31<>0),F119/$D$31,0)","v":0},"-",0,0,null,null,null,0,0,0,0,null,null,0,0,1,0,0,0,0]
[null,null,null,null,null,null,0,"-",0,0,null,null,null,0,0,0,0,null,null,0,0,1,0,0,0,0]
[null,null,null,null,null,null,0,"-",0,0,null,null,null,0,0,0,0,null,null,0,0,1,0,0,0,0]
[null,null,null,null,null,null,{"$f":"IF(AND(F122<>0,$D$31<>0),F122/$D$31,0)","v":0},"-",0,0,null,null,null,{"$f":"IF(M122<>0,INT(59/M122),0)","v":0},0,0,0,null,null,0,0,1,0,0,0,0]
[null,2.1,"Superstructure: Frame",null,"-",{"$f":"SUM(F124:F143)","v":0},{"$f":"IF(AND(F123<>0,$D$31<>0),F123/$D$31,0)","v":0},{"$f":"SUMPRODUCT((C38:D401=\"Superstructure: Frame\")*G38:G401)","v":0},"-",{"$f":"SUM(J124:J143)","v":0},"-","-","-","-",{"$f":"SUM(O124:O143)","v":0},"-",{"$f":"SUM(Q124:Q143)","v":0},"-","-",{"$f":"IF(W123<>0,W123/($F$176+$O$176),0)","v":0},{"$f":"IF(Y123<>0,Y123/($F$176+$O$176),0)","v":0},1,{"$f":"SUM(W124:W143)","v":0},0,{"$f":"SUM(Y124:Y143)","v":0},0]
[null,2.1,"Superstructure: Frame",null,null,null,{"$f":"IF(AND(F124<>0,$D$31<>0),F124/$D$31,0)","v":0},"-",0,{"$f":"I124*F124","v":0},null,null,null,{"$f":"IF(M124<>0,INT(59/M124),0)","v":0},{"$f":"F124*N124","v":0},0,{"$f":"O124*P124","v":0},null,null,0,0,1,{"$f":"T124*(F124+O124)","v":0},0,{"$f":"U124*(F124+O124)","v":0},0]
[null,null,null,null,null,null,{"$f":"IF(AND(F125<>0,$D$31<>0),F125/$D$31,0)","v":0},"-",0,0,null,null,null,{"$f":"IF(M125<>0,INT(59/M125),0)","v":0},{"$f":"F125*N125","v":0},0,{"$f":"O125*P125","v":0},null,null,0,0,1,0,0,0,0]
[null,null,null,null,null,null,{"$f":"IF(AND(F126<>0,$D$31<>0),F126/$D$31,0)","v":0},"-",0,0,null,null,null,0,0,0,0,null,null,0,0,1,0,0,0,0]
[null,null,null,null,null,null,0,"-",0,0,null,null,null,0,0,0,0,null,null,0,0,1,0,0,0,0]
[null,null,null,null,null,null,0,"-",0,0,null,null,null,0,0,0,0,null,null,0,0,1,0,0,0,0]
[null,null,null,null,null,null,0,"-",0,0,null,null,null,0,0,0,0,null,null,0,0,1,0,0,0,0]
[null,null,null,null,null,null,0,"-",0,0,null,null,null,0,0,0,0,null,null,0,0,1,0,0,0,0]
[null,null,null,null,null,null,0,"-",0,0,null,null,null,0,0,0,0,null,null,0,0,1,0,0,0,0]
[null,null,null,null,null,null,0,"-",0,0,null,null,null,0,0,0,0,null,null,0,0,1,0,0,0,0]
[null,null,null,null,null,null,0,"-",0,0,null,null,null,0,0,0,0,null,null,0,0,1,0,0,0,0]
[null,null,null,null,null,null,0,"-",0,0,null,null,null,0,0,0,0,null,null,0,0,1,0,0,0,0]
[null,null,null,null,null,null,0,"-",0,0,null,null,null,0,0,0,0,null,null,0,0,1,0,0,0,0]
[null,null,null,null,null,null,0,"-",0,0,null,null,null,0,0,0,0,null,null,0,0,1,0,0,0,0]
[null,null,null,null,null,null,0,"-",0,0,null,null,null,0,0,0,0,null,null,0,0,1,0,0,0,0]
[null,null,null,null,null,null,{"$f":"IF(AND(F138<>0,$D$31<>0),F138/$D$31,0)","v":0},"-",0,0,null,null,null,0,0,0,0,null,null,0,0,1,0,0,0,0]
[null,null,null,null,null,null,{"$f":"IF(AND(F139<>0,$D$31<>0),F139/$D$31,0)","v":0},"-",0,0,null,null,null,0,0,0,0,null,null,0,0,1,0,0,0,0]
[null,null,null,null,null,null,{"$f":"IF(AND(F140<>0,$D$31<>0),F140/$D$31,0)","v":0},"-",0,0,null,null,null,0,0,0,0,null,null,0,0,1,0,0,0,0]
[null,null,null,null,null,null,{"$f":"IF(AND(F141<>0,$D$31<>0),F141/$D$31,0)","v":0},"-",0,0,null,null,null,0,0,0,0,null,null,0,0,1,0,0,0,0]
[null,null,null,null,null,null,0,"-",0,0,null,null,null,0,0,0,0,null,null,0,0,1,0,0,0,0]
[null,null,null,null,null,null,0,"-",0,0,null,null,null,0,0,0,0,null,null,0,0,1,0,0,0,0]
[null,2.2000000000000002,"Superstructure: Upper Floors",null,"-",{"$f":"SUM(F145:F164)","v":0},{"$f":"IF(AND(F144<>0,$D$31<>0),F144/$D$31,0)","v":0},{"$f":"SUMPRODUCT((C123:D406=\"Superstructure: Upper Floors\")*G123:G406)","v":0},"-",{"$f":"SUM(J145:J164)","v":0},"-","-","-","-",{"$f":"SUM(O145:O164)","v":0},"-",{"$f":"SUM(Q145:Q164)","v":0},"-","-",{"$f":"IF(W144<>0,W144/($F$197+$O$197),0)","v":0},{"$f":"IF(Y144<>0,Y144/($F$197+$O$197),0)","v":0},1,{"$f":"SUM(W145:W164)","v":0},0,{"$f":"SUM(Y145:Y164)","v":0},0]
[null,2.2000000000000002,"Superstructure: Upper Floors",null,null,null,{"$f":"IF(AND(F145<>0,$D$31<>0),F145/$D$31,0)","v":0},"-",0,{"$f":"I145*F145","v":0},null,null,null,{"$f":"IF(M145<>0,INT(59/M145),0)","v":0},{"$f":"F145*N145","v":0},0,{"$f":"O145*P145","v":0},null,null,0,0,1,{"$f":"T145*(F145+O145)","v":0},0,{"$f":"U145*(F145+O145)","v":0},0]
[null,null,null,null,null,null,{"$f":"IF(AND(F146<>0,$D$31<>0),F146/$D$31,0)","v":0},"-",0,0,null,null,null,{"$f":"IF(M146<>0,INT(59/M146),0)","v":0},{"$f":"F146*N146","v":0},0,{"$f":"O146*P146","v":0},null,null,0,0,1,0,0,0,0]
[null,null,null,null,null,null,{"$f":"IF(AND(F147<>0,$D$31<>0),F147/$D$31,0)","v":0},"-",0,0,null,null,null,0,0,0,0,null,null,0,0,1,0,0,0,0]
[null,null,null,null,null,null,0,"-",0,0,null,null,null,0,0,0,0,null,null,0,0,1,0,0,0,0]
[null,null,null,null,null,null,0,"-",0,0,null,null,null,0,0,0,0,null,null,0,0,1,0,0,0,0]
[null,null,null,null,null,null,0,"-",0,0,null,null,null,0,0,0,0,null,null,0,0,1,0,0,0,0]
[null,null,null,null,null,null,0,"-",0,0,null,null,null,0,0,0,0,null,null,0,0,1,0,0,0,0]
[null,null,null,null,null,null,0,"-",0,0,null,null,null,0,0,0,0,null,null,0,0,1,0,0,0,0]
[null,null,null,null,null,null,0,"-",0,0,null,null,null,0,0,0,0,null,null,0,0,1,0,0,0,0]
[null,null,null,null,null,null,0,"-",0,0,null,null,null,0,0,0,0,null,null,0,0,1,0,0,0,0]
[null,null,null,null,null,null,0,"-",0,0,null,null,null,0,0,0,0,null,null,0,0,1,0,0,0,0]
[null,null,null,null,null,null,0,"-",0,0,null,null,null,0,0,0,0,null,null,0,0,1,0,0,0,0]
[null,null,null,null,null,null,0,"-",0,0,null,null,null,0,0,0,0,null,null,0,0,1,0,0,0,0]
[null,null,null,null,null,null,0,"-",0,0,null,null,null,0,0,0,0,null,null,0,0,1,0,0,0,0]
[null,null,null,null,null,null,{"$f":"IF(AND(F159<>0,$D$31<>0),F159/$D$31,0)","v":0},"-",0,0,null,null,null,0,0,0,0,null,null,0,0,1,0,0,0,0]
[null,null,null,null,null,null,{"$f":"IF(AND(F160<>0,$D$31<>0),F160/$D$31,0)","v":0},"-",0,0,null,null,null,0,0,0,0,null,null,0,0,1,0,0,0,0]
[null,null,null,null,null,null,{"$f":"IF(AND(F161<>0,$D$31<>0),F161/$D$31,0)","v":0},"-",0,0,null,null,null,0,0,0,0,null,null,0,0,1,0,0,0,0]
[null,null,null,null,null,null,{"$f":"IF(AND(F162<>0,$D$31<>0),F162/$D$31,0)","v":0},"-",0,0,null,null,null,0,0,0,0,null,null,0,0,1,0,0,0,0]
[null,null,null,null,null,null,0,"-",0,0,null,null,null,0,0,0,0,null,null,0,0,1,0,0,0,0]
[null,null,null,null,null,null,0,"-",0,{"$f":"I164*F164","v":0},null,null,null,0,0,0,0,null,null,0,0,1,0,0,0,0]
[null,2.2999999999999998,"Superstructure: Roof",null,"-",{"$f":"SUM(F166:F185)","v":0},{"$f":"IF(AND(F165<>0,$D$31<>0),F165/$D$31,0)","v":0},{"$f":"SUMPRODUCT((C38:D401=\"Superstructure: Roof\")*G38:G401)","v":0},"-",{"$f":"SUM(J166:J185)","v":0},"-","-","-","-",{"$f":"SUM(O166:O185)","v":0},"-",{"$f":"SUM(Q166:Q185)","v":0},"-","-",{"$f":"IF(W165<>0,W165/($F$218+$O$218),0)","v":0},{"$f":"IF(Y165<>0,Y165/($F$218+$O$218),0)","v":0},1,{"$f":"SUM(W166:W185)","v":0},0,{"$f":"SUM(Y166:Y185)","v":0},0]
[null,2.2999999999999998,"Superstructure: Roof",null,null,null,{"$f":"IF(AND(F166<>0,$D$31<>0),F166/$D$31,0)","v":0},"-",0,{"$f":"I166*F166","v":0},null,null,null,{"$f":"IF(M166<>0,INT(59/M166),0)","v":0},{"$f":"F166*N166","v":0},0,{"$f":"O166*P166","v":0},null,null,0,0,1,{"$f":"T166*(F166+O166)","v":0},0,{"$f":"U166*(F166+O166)","v":0},0]
[null,null,null,null,null,null,{"$f":"IF(AND(F167<>0,$D$31<>0),F167/$D$31,0)","v":0},"-",0,0,null,null,null,{"$f":"IF(M167<>0,INT(59/M167),0)","v":0},{"$f":"F167*N167","v":0},0,{"$f":"O167*P167","v":0},null,null,0,0,1,0,0,0,0]
[null,null,null,null,null,null,{"$f":"IF(AND(F168<>0,$D$31<>0),F168/$D$31,0)","v":0},"-",0,0,null,null,null,0,0,0,0,null,null,0,0,{"$f":"1-T168-U168","v":1},0,{"$f":"IF(AND(W168<>0,$D$31<>0),W168/$D$31,0)","v":0},0,0]
[null,null,null,null,null,null,0,"-",0,0,null,null,null,0,0,0,0,null,null,0,0,1,0,0,0,0]
[null,null,null,null,null,null,0,"-",0,0,null,null,null,0,0,0,0,null,null,0,0,1,0,0,0,0]
[null,null,null,null,null,null,0,"-",0,0,null,null,null,0,0,0,0,null,null,0,0,1,0,0,0,0]
[null,null,null,null,null,null,0,"-",0,0,null,null,null,0,0,0,0,null,null,0,0,1,0,0,0,0]
[null,null,null,null,null,null,0,"-",0,0,null,null,null,0,0,0,0,null,null,0,0,1,0,0,0,0]
[null,null,null,null,null,null,0,"-",0,0,null,null,null,0,0,0,0,null,null,0,0,1,0,0,0,0]
[null,null,null,null,null,null,0,"-",0,0,null,null,null,0,0,0,0,null,null,0,0,1,0,0,0,0]
[null,null,null,null,null,null,0,"-",0,0,null,null,null,0,0,0,0,null,null,0,0,1,0,0,0,0]
[null,null,null,null,null,null,0,"-",0,0,null,null,null,0,0,0,0,null,null,0,0,1,0,0,0,0]
[null,null,null,null,null,null,0,"-",0,0,null,null,null,0,0,0,0,null,null,0,0,1,0,0,0,0]
[null,null,null,null,null,null,0,"-",0,0,null,null,null,0,0,0,0,null,null,0,0,1,0,0,0,0]
[null,null,null,null,null,null,{"$f":"IF(AND(F180<>0,$D$31<>0),F180/$D$31,0)","v":0},"-",0,0,null,null,null,0,0,0,0,null,null,0,0,1,0,0,0,0]
[null,null,null,null,null,null,{"$f":"IF(AND(F181<>0,$D$31<>0),F181/$D$31,0)","v":0},"-",0,0,null,null,null,0,0,0,0,null,null,0,0,1,0,0,0,0]
[null,null,null,null,null,null,{"$f":"IF(AND(F182<>0,$D$31<>0),F182/$D$31,0)","v":0},"-",0,0,null,null,null,0,0,0,0,null,null,0,0,1,0,0,0,0]
[null,null,null,null,null,null,{"$f":"IF(AND(F183<>0,$D$31<>0),F183/$D$31,0)","v":0},"-",0,0,null,null,null,0,0,0,0,null,null,0,0,1,0,0,0,0]
[null,null,null,null,null,null,0,"-",0,0,null,null,null,0,0,0,0,null,null,0,0,1,0,0,0,0]
[null,null,null,null,null,null,0,"-",0,0,null,null,null,0,0,0,0,null,null,0,0,1,0,0,0,0]
[null,2.4,"Superstructure: Stairs and Ramps",null,"-",{"$f":"SUM(F187:F201)","v":0},{"$f":"IF(AND(F186<>0,$D$31<>0),F186/$D$31,0)","v":0},"-","-",{"$f":"SUM(J187:J201)","v":0},"-","-","-","-",{"$f":"SUM(O187:O201)","v":0},"-",{"$f":"SUM(Q187:Q201)","v":0},"-","-",{"$f":"IF(W186<>0,W186/($F$239+$O$239),0)","v":0},{"$f":"IF(Y186<>0,Y186/($F$239+$O$239),0)","v":0},1,{"$f":"SUM(W187:W201)","v":0},0,{"$f":"SUM(Y187:Y201)","v":0},0]
[null,2.4,"Superstructure: Stairs and Ramps",null,null,null,{"$f":"IF(AND(F187<>0,$D$31<>0),F187/$D$31,0)","v":0},"-",0,{"$f":"I187*F187","v":0},null,null,null,{"$f":"IF(M187<>0,INT(59/M187),0)","v":0},{"$f":"F187*N187","v":0},0,{"$f":"O187*P187","v":0},null,null,0,0,1,0,0,0,0]
[null,null,null,null,null,null,{"$f":"IF(AND(F188<>0,$D$31<>0),F188/$D$31,0)","v":0},"-",0,0,null,null,null,{"$f":"IF(M188<>0,INT(59/M188),0)","v":0},{"$f":"F188*N188","v":0},0,{"$f":"O188*P188","v":0},null,null,0,0,1,0,0,0,0]
[null,null,null,null,null,null,{"$f":"IF(AND(F189<>0,$D$31<>0),F189/$D$31,0)","v":0},"-",0,0,null,null,null,0,0,0,0,null,null,0,0,1,0,0,0,0]
[null,null,null,null,null,null,0,"-",0,0,null,null,null,0,0,0,0,null,null,0,0,1,0,0,0,0]
[null,null,null,null,null,null,0,"-",0,0,null,null,null,0,0,0,0,null,null,0,0,1,0,0,0,0]
[null,null,null,null,null,null,0,"-",0,0,null,null,null,0,0,0,0,null,null,0,0,1,0,0,0,0]
[null,null,null,null,null,null,0,"-",0,0,null,null,null,0,0,0,0,null,null,0,0,1,0,0,0,0]
[null,null,null,null,null,null,0,"-",0,0,null,null,null,0,0,0,0,null,null,0,0,1,0,0,0,0]
[null,null,null,null,null,null,0,"-",0,0,null,null,null,0,0,0,0,null,null,0,0,1,0,0,0,0]
[null,null,null,null,null,null,0,"-",0,0,null,null,null,0,0,0,0,null,null,0,0,1,0,0,0,0]
[null,null,null,null,null,null,0,"-",0,0,null,null,null,0,0,0,0,null,null,0,0,1,0,0,0,0]
[null,null,null,null,null,null,0,"-",0,0,null,null,null,0,0,0,0,null,null,0,0,1,0,0,0,0]
[null,null,null,null,null,null,0,"-",0,0,null,null,null,0,0,0,0,null,null,0,0,1,0,0,0,0]
[null,null,null,null,null,null,0,"-",0,0,null,null,null,0,0,0,0,null,null,0,0,1,0,0,0,0]
[null,null,null,null,null,null,{"$f":"IF(AND(F201<>0,$D$31<>0),F201/$D$31,0)","v":0},"-",0,0,null,null,null,0,0,0,0,null,null,0,0,1,0,0,0,0]
[null,2.5,"Superstructure: External Walls",null,"-",{"$f":"SUM(F203:F222)","v":0},{"$f":"IF(AND(F202<>0,$D$31<>0),F202/$D$31,0)","v":0},{"$f":"SUMPRODUCT((C38:D401=\"Superstructure: External Walls\")*G38:G401)+SUMPRODUCT((C38:D401=\"Superstructure: Windows and External Doors\")*G38:G401)","v":0},"-",{"$f":"SUM(J203:J222)","v":0},"-","-","-","-",{"$f":"SUM(O203:O222)","v":0},"-",{"$f":"SUM(Q203:Q222)","v":0},"-","-",{"$f":"IF(W202<>0,W202/($F$255+$O$255),0)","v":0},{"$f":"IF(Y202<>0,Y202/($F$255+$O$255),0)","v":0},1,{"$f":"SUM(W203:W222)","v":0},0,{"$f":"SUM(Y203:Y222)","v":0},0]
[null,2.5,"Superstructure: External Walls",null,null,null,{"$f":"IF(AND(F203<>0,$D$31<>0),F203/$D$31,0)","v":0},"-",0,{"$f":"I203*F203","v":0},null,null,null,{"$f":"IF(M203<>0,INT(59/M203),0)","v":0},{"$f":"F203*N203","v":0},0,{"$f":"O203*P203","v":0},null,null,0,0,1,{"$f":"T203*(F203+O203)","v":0},0,{"$f":"U203*(F203+O203)","v":0},0]
[null,null,null,null,null,null,{"$f":"IF(AND(F204<>0,$D$31<>0),F204/$D$31,0)","v":0},"-",0,0,null,null,null,{"$f":"IF(M204<>0,INT(59/M204),0)","v":0},{"$f":"F204*N204","v":0},0,{"$f":"O204*P204","v":0},null,null,0,0,1,0,0,0,0]
[null,null,null,null,null,null,{"$f":"IF(AND(F205<>0,$D$31<>0),F205/$D$31,0)","v":0},"-",0,0,null,null,null,0,0,0,0,null,null,0,0,1,0,0,0,0]
[null,null,null,null,null,null,0,"-",0,0,null,null,null,0,0,0,0,null,null,0,0,1,0,0,0,0]
[null,null,null,null,null,null,0,"-",0,0,null,null,null,0,0,0,0,null,null,0,0,1,0,0,0,0]
[null,null,null,null,null,null,0,"-",0,0,null,null,null,0,0,0,0,null,null,0,0,1,0,0,0,0]
[null,null,null,null,null,null,0,"-",0,0,null,null,null,0,0,0,0,null,null,0,0,1,0,0,0,0]
[null,null,null,null,null,null,0,"-",0,0,null,null,null,0,0,0,0,null,null,0,0,1,0,0,0,0]
[null,null,null,null,null,null,0,"-",0,0,null,null,null,0,0,0,0,null,null,0,0,1,0,0,0,0]
[null,null,null,null,null,null,0,"-",0,0,null,null,null,0,0,0,0,null,null,0,0,1,0,0,0,0]
[null,null,null,null,null,null,0,"-",0,0,null,null,null,0,0,0,0,null,null,0,0,1,0,0,0,0]
[null,null,null,null,null,null,0,"-",0,0,null,null,null,0,0,0,0,null,null,0,0,1,0,0,0,0]
[null,null,null,null,null,null,0,"-",0,0,null,null,null,0,0,0,0,null,null,0,0,1,0,0,0,0]
[null,null,null,null,null,null,0,"-",0,0,null,null,null,0,0,0,0,null,null,0,0,1,0,0,0,0]
[null,null,null,null,null,null,{"$f":"IF(AND(F217<>0,$D$31<>0),F217/$D$31,0)","v":0},"-",0,0,null,null,null,0,0,0,0,null,null,0,0,1,0,0,0,0]
[null,null,null,null,null,null,{"$f":"IF(AND(F218<>0,$D$31<>0),F218/$D$31,0)","v":0},"-",0,0,null,null,null,0,0,0,0,null,null,0,0,1,0,0,0,0]
[null,null,null,null,null,null,{"$f":"IF(AND(F219<>0,$D$31<>0),F219/$D$31,0)","v":0},"-",0,0,null,null,null,0,0,0,0,null,null,0,0,1,0,0,0,0]
[null,null,null,null,null,null,{"$f":"IF(AND(F220<>0,$D$31<>0),F220/$D$31,0)","v":0},"-",0,0,null,null,null,0,0,0,0,null,null,0,0,1,0,0,0,0]
[null,null,null,null,null,null,0,"-",0,0,null,null,null,0,0,0,0,null,null,0,0,1,0,0,0,0]
[null,null,null,null,null,null,0,"-",0,0,null,null,null,0,0,0,0,null,null,0,0,1,0,0,0,0]
[null,2.6,"Superstructure: Windows and External Doors",null,"-",{"$f":"SUM(F224:F238)","v":0},{"$f":"IF(AND(F223<>0,$D$31<>0),F223/$D$31,0)","v":0},{"$f":"SUMPRODUCT((C38:D401=\"Superstructure: External Walls\")*G38:G401)+SUMPRODUCT((C38:D401=\"Superstructure: Windows and External Doors\")*G38:G401)","v":0},"-",{"$f":"SUM(J224:J238)","v":0},"-","-","-","-",{"$f":"SUM(O224:O238)","v":0},"-",{"$f":"SUM(Q224:Q238)","v":0},"-","-",{"$f":"IF(W223<>0,W223/($F$276+$O$276),0)","v":0},{"$f":"IF(Y223<>0,Y223/($F$276+$O$276),0)","v":0},1,{"$f":"SUM(W224:W238)","v":0},0,{"$f":"SUM(Y224:Y238)","v":0},0]
[null,2.6,"Superstructure: Windows and External Doors",null,null,null,{"$f":"IF(AND(F224<>0,$D$31<>0),F224/$D$31,0)","v":0},"-",0,{"$f":"I224*F224","v":0},null,null,null,{"$f":"IF(M224<>0,INT(59/M224),0)","v":0},{"$f":"F224*N224","v":0},0,{"$f":"O224*P224","v":0},null,null,0,0,1,{"$f":"T224*(F224+O224)","v":0},0,{"$f":"U224*(F224+O224)","v":0},0]
[null,null,null,null,null,null,{"$f":"IF(AND(F225<>0,$D$31<>0),F225/$D$31,0)","v":0},"-",0,0,null,null,null,{"$f":"IF(M225<>0,INT(59/M225),0)","v":0},{"$f":"F225*N225","v":0},0,{"$f":"O225*P225","v":0},null,null,0,0,1,0,0,0,0]
[null,null,null,null,null,null,{"$f":"IF(AND(F226<>0,$D$31<>0),F226/$D$31,0)","v":0},"-",0,0,null,null,null,0,0,0,0,null,null,0,0,1,0,0,0,0]
[null,null,null,null,null,null,0,"-",0,0,null,null,null,0,0,0,0,null,null,0,0,1,0,0,0,0]
[null,null,null,null,null,null,0,"-",0,0,null,null,null,0,0,0,0,null,null,0,0,1,0,0,0,0]
[null,null,null,null,null,null,0,"-",0,0,null,null,null,0,0,0,0,null,null,0,0,1,0,0,0,0]
[null,null,null,null,null,null,0,"-",0,0,null,null,null,0,0,0,0,null,null,0,0,1,0,0,0,0]
[null,null,null,null,null,null,0,"-",0,0,null,null,null,0,0,0,0,null,null,0,0,1,0,0,0,0]
[null,null,null,null,null,null,0,"-",0,0,null,null,null,0,0,0,0,null,null,0,0,{"$f":"1-T232-U232","v":1},0,{"$f":"IF(AND(W232<>0,$D$31<>0),W232/$D$31,0)","v":0},0,0]
[null,null,null,null,null,null,0,"-",0,0,null,null,null,0,0,0,0,null,null,0,0,1,0,0,0,0]
[null,null,null,null,null,null,0,"-",0,0,null,null,null,0,0,0,0,null,null,0,0,1,0,0,0,0]
[null,null,null,null,null,null,0,"-",0,0,null,null,null,0,0,0,0,null,null,0,0,1,0,0,0,0]
[null,null,null,null,null,null,0,"-",0,0,null,null,null,0,0,0,0,null,null,0,0,1,0,0,0,0]
[null,null,null,null,null,null,0,"-",0,0,null,null,null,0,0,0,0,null,null,0,0,1,0,0,0,0]
[null,null,null,null,null,null,{"$f":"IF(AND(F238<>0,$D$31<>0),F238/$D$31,0)","v":0},"-",0,0,null,null,null,0,0,0,0,null,null,0,0,1,0,0,0,0]
[null,2.7,"Superstructure: Internal Walls and Partitions",null,"-",{"$f":"SUM(F240:F259)","v":0},{"$f":"IF(AND(F239<>0,$D$31<>0),F239/$D$31,0)","v":0},{"$f":"SUMPRODUCT((C38:D401=\"Superstructure: Internal Doors\")*G38:G401)+SUMPRODUCT((C38:D401=\"Superstructure: Internal Walls and Partitions\")*G38:G401)","v":0},"-",{"$f":"SUM(J240:J259)","v":0},"-","-","-","-",{"$f":"SUM(O240:O259)","v":0},"-",{"$f":"SUM(Q240:Q259)","v":0},"-","-",{"$f":"IF(W239<>0,W239/($F$292+$O$292),0)","v":0},{"$f":"IF(Y239<>0,Y239/($F$292+$O$292),0)","v":0},1,{"$f":"SUM(W240:W259)","v":0},0,{"$f":"SUM(Y240:Y259)","v":0},0]
[null,2.7,"Superstructure: Internal Walls and Partitions",null,null,null,{"$f":"IF(AND(F240<>0,$D$31<>0),F240/$D$31,0)","v":0},"-",0,{"$f":"I240*F240","v":0},null,null,null,{"$f":"IF(M240<>0,INT(59/M240),0)","v":0},{"$f":"F240*N240","v":0},0,{"$f":"O240*P240","v":0},null,null,0,0,1,{"$f":"T240*(F240+O240)","v":0},0,{"$f":"U240*(F240+O240)","v":0},0]
[null,null,null,null,null,null,{"$f":"IF(AND(F241<>0,$D$31<>0),F241/$D$31,0)","v":0},"-",0,0,null,null,null,{"$f":"IF(M241<>0,INT(59/M241),0)","v":0},{"$f":"F241*N241","v":0},0,{"$f":"O241*P241","v":0},null,null,0,0,1,0,0,0,0]
[null,null,null,null,null,null,{"$f":"IF(AND(F242<>0,$D$31<>0),F242/$D$31,0)","v":0},"-",0,0,null,null,null,0,0,0,0,null,null,0,0,1,0,0,0,0]
[null,null,null,null,null,null,0,"-",0,0,null,null,null,0,0,0,0,null,null,0,0,1,0,0,0,0]
[null,null,null,null,null,null,0,"-",0,0,null,null,null,0,0,0,0,null,null,0,0,1,0,0,0,0]
[null,null,null,null,null,null,0,"-",0,0,null,null,null,0,0,0,0,null,null,0,0,1,0,0,0,0]
[null,null,null,null,null,null,0,"-",0,0,null,null,null,0,0,0,0,null,null,0,0,1,0,0,0,0]
[null,null,null,null,null,null,0,"-",0,0,null,null,null,0,0,0,0,null,null,0,0,1,0,0,0,0]
[null,null,null,null,null,null,0,"-",0,0,null,null,null,0,0,0,0,null,null,0,0,1,0,0,0,0]
[null,null,null,null,null,null,0,"-",0,0,null,null,null,0,0,0,0,null,null,0,0,1,0,0,0,0]
[null,null,null,null,null,null,0,"-",0,0,null,null,null,0,0,0,0,null,null,0,0,1,0,0,0,0]
[null,null,null,null,null,null,0,"-",0,0,null,null,null,0,0,0,0,null,null,0,0,1,0,0,0,0]
[null,null,null,null,null,null,0,"-",0,0,null,null,null,0,0,0,0,null,null,0,0,1,0,0,0,0]
[null,null,null,null,null,null,0,"-",0,0,null,null,null,0,0,0,0,null,null,0,0,1,0,0,0,0]
[null,null,null,null,null,null,{"$f":"IF(AND(F254<>0,$D$31<>0),F254/$D$31,0)","v":0},"-",0,0,null,null,null,0,0,0,0,null,null,0,0,1,0,0,0,0]
[null,null,null,null,null,null,{"$f":"IF(AND(F255<>0,$D$31<>0),F255/$D$31,0)","v":0},"-",0,0,null,null,null,0,0,0,0,null,null,0,0,1,0,0,0,0]
[null,null,null,null,null,null,{"$f":"IF(AND(F256<>0,$D$31<>0),F256/$D$31,0)","v":0},"-",0,0,null,null,null,0,0,0,0,null,null,0,0,1,0,0,0,0]
[null,null,null,null,null,null,{"$f":"IF(AND(F257<>0,$D$31<>0),F257/$D$31,0)","v":0},"-",0,0,null,null,null,0,0,0,0,null,null,0,0,1,0,0,0,0]
[null,null,null,null,null,null,0,"-",0,0,null,null,null,0,0,0,0,null,null,0,0,1,0,0,0,0]
[null,null,null,null,null,null,0,"-",0,0,null,null,null,0,0,0,0,null,null,0,0,1,0,0,0,0]
[null,2.8,"Superstructure: Internal Doors",null,"-",{"$f":"SUM(F261:F275)","v":0},{"$f":"IF(AND(F260<>0,$D$31<>0),F260/$D$31,0)","v":0},{"$f":"SUMPRODUCT((C38:D401=\"Superstructure: Internal Doors\")*G38:G401)+SUMPRODUCT((C38:D401=\"Superstructure: Internal Walls and Partitions\")*G38:G401)","v":0},"-",{"$f":"SUM(J261:J275)","v":0},"-","-","-","-",{"$f":"SUM(O261:O275)","v":0},"-",{"$f":"SUM(Q261:Q275)","v":0},"-","-",{"$f":"IF(W260<>0,W260/($F$313+$O$313),0)","v":0},{"$f":"IF(Y260<>0,Y260/($F$313+$O$313),0)","v":0},1,{"$f":"SUM(W261:W275)","v":0},0,{"$f":"SUM(Y261:Y275)","v":0},0]
[null,2.8,"Superstructure: Internal Doors",null,null,null,{"$f":"IF(AND(F261<>0,$D$31<>0),F261/$D$31,0)","v":0},"-",0,{"$f":"I261*F261","v":0},null,null,null,{"$f":"IF(M261<>0,INT(59/M261),0)","v":0},{"$f":"F261*N261","v":0},0,{"$f":"O261*P261","v":0},null,null,0,0,1,{"$f":"T261*(F261+O261)","v":0},0,{"$f":"U261*(F261+O261)","v":0},0]
[null,null,null,null,null,null,{"$f":"IF(AND(F262<>0,$D$31<>0),F262/$D$31,0)","v":0},"-",0,0,null,null,null,{"$f":"IF(M262<>0,INT(59/M262),0)","v":0},{"$f":"F262*N262","v":0},0,{"$f":"O262*P262","v":0},null,null,0,0,1,0,0,0,0]
[null,null,null,null,null,null,{"$f":"IF(AND(F263<>0,$D$31<>0),F263/$D$31,0)","v":0},"-",0,0,null,null,null,0,0,0,0,null,null,0,0,1,0,0,0,0]
[null,null,null,null,null,null,0,"-",0,0,null,null,null,0,0,0,0,null,null,0,0,1,0,0,0,0]
[null,null,null,null,null,null,0,"-",0,0,null,null,null,0,0,0,0,null,null,0,0,1,0,0,0,0]
[null,null,null,null,null,null,0,"-",0,0,null,null,null,0,0,0,0,null,null,0,0,1,0,0,0,0]
[null,null,null,null,null,null,0,"-",0,0,null,null,null,0,0,0,0,null,null,0,0,1,0,0,0,0]
[null,null,null,null,null,null,0,"-",0,0,null,null,null,0,0,0,0,null,null,0,0,1,0,0,0,0]
[null,null,null,null,null,null,0,"-",0,0,null,null,null,0,0,0,0,null,null,0,0,1,0,0,0,0]
[null,null,null,null,null,null,0,"-",0,0,null,null,null,0,0,0,0,null,null,0,0,1,0,0,0,0]
[null,null,null,null,null,null,0,"-",0,0,null,null,null,0,0,0,0,null,null,0,0,1,0,0,0,0]
[null,null,null,null,null,null,0,"-",0,0,null,null,null,0,0,0,0,null,null,0,0,1,0,0,0,0]
[null,null,null,null,null,null,0,"-",0,0,null,null,null,0,0,0,0,null,null,0,0,1,0,0,0,0]
[null,null,null,null,null,null,0,"-",0,0,null,null,null,0,0,0,0,null,null,0,0,1,0,0,0,0]
[null,null,null,null,null,null,{"$f":"IF(AND(F275<>0,$D$31<>0),F275/$D$31,0)","v":0},"-",0,0,null,null,null,0,0,0,0,null,null,0,0,1,0,0,0,0]
[null,3,"Finishes",null,"-",{"$f":"SUM(F277:F296)","v":0},{"$f":"IF(AND(F276<>0,$D$31<>0),F276/$D$31,0)","v":0},"-","-",{"$f":"SUM(J277:J296)","v":0},"-","-","-","-",{"$f":"SUM(O277:O296)","v":0},"-",{"$f":"SUM(Q277:Q296)","v":0},"-","-",{"$f":"IF(W276<>0,W276/($F$329+$O$329),0)","v":0},{"$f":"IF(Y276<>0,Y276/($F$329+$O$329),0)","v":0},1,{"$f":"SUM(W277:W296)","v":0},0,{"$f":"SUM(Y277:Y296)","v":0},0]
[null,3,"Finishes",null,null,null,{"$f":"IF(AND(F277<>0,$D$31<>0),F277/$D$31,0)","v":0},"-",0,0,null,null,null,{"$f":"IF(M277<>0,INT(59/M277),0)","v":0},{"$f":"F277*N277","v":0},0,{"$f":"O277*P277","v":0},null,null,0,0,1,0,0,0,0]
[null,null,null,null,null,null,{"$f":"IF(AND(F278<>0,$D$31<>0),F278/$D$31,0)","v":0},"-",0,0,null,null,null,{"$f":"IF(M278<>0,INT(59/M278),0)","v":0},{"$f":"F278*N278","v":0},0,{"$f":"O278*P278","v":0},null,null,0,0,1,0,0,0,0]
[null,null,null,null,null,null,{"$f":"IF(AND(F279<>0,$D$31<>0),F279/$D$31,0)","v":0},"-",0,0,null,null,null,0,0,0,0,null,null,0,0,1,0,0,0,0]
[null,null,null,null,null,null,0,"-",0,0,null,null,null,0,0,0,0,null,null,0,0,1,0,0,0,0]
[null,null,null,null,null,null,0,"-",0,0,null,null,null,0,0,0,0,null,null,0,0,1,0,0,0,0]
[null,null,null,null,null,null,0,"-",0,0,null,null,null,0,0,0,0,null,null,0,0,1,0,0,0,0]
[null,null,null,null,null,null,0,"-",0,0,null,null,null,0,0,0,0,null,null,0,0,1,0,0,0,0]
[null,null,null,null,null,null,0,"-",0,0,null,null,null,0,0,0,0,null,null,0,0,1,0,0,0,0]
[null,null,null,null,null,null,0,"-",0,0,null,null,null,0,0,0,0,null,null,0,0,1,0,0,0,0]
[null,null,null,null,null,null,0,"-",0,0,null,null,null,0,0,0,0,null,null,0,0,1,0,0,0,0]
[null,null,null,null,null,null,0,"-",0,0,null,null,null,0,0,0,0,null,null,0,0,1,0,0,0,0]
[null,null,null,null,null,null,0,"-",0,0,null,null,null,0,0,0,0,null,null,0,0,1,0,0,0,0]
[null,null,null,null,null,null,0,"-",0,0,null,null,null,0,0,0,0,null,null,0,0,1,0,0,0,0]
[null,null,null,null,null,null,0,"-",0,0,null,null,null,0,0,0,0,null,null,0,0,1,0,0,0,0]
[null,null,null,null,null,null,{"$f":"IF(AND(F291<>0,$D$31<>0),F291/$D$31,0)","v":0},"-",0,0,null,null,null,0,0,0,0,null,null,0,0,1,0,0,0,0]
[null,null,null,null,null,null,{"$f":"IF(AND(F292<>0,$D$31<>0),F292/$D$31,0)","v":0},"-",0,0,null,null,null,0,0,0,0,null,null,0,0,1,0,0,0,0]
[null,null,null,null,null,null,{"$f":"IF(AND(F293<>0,$D$31<>0),F293/$D$31,0)","v":0},"-",0,0,null,null,null,0,0,0,0,null,null,0,0,1,0,0,0,0]
[null,null,null,null,null,null,{"$f":"IF(AND(F294<>0,$D$31<>0),F294/$D$31,0)","v":0},"-",0,0,null,null,null,0,0,0,0,null,null,0,0,1,0,0,0,0]
[null,null,null,null,null,null,0,"-",0,0,null,null,null,0,0,0,0,null,null,0,0,1,0,0,0,0]
[null,null,null,null,null,null,0,"-",0,0,null,null,null,0,0,0,0,null,null,0,0,{"$f":"1-T296-U296","v":1},0,{"$f":"IF(AND(W296<>0,$D$31<>0),W296/$D$31,0)","v":0},0,0]
[null,4,"Fittings, furnishings & equipment (FFE)",null,"-",{"$f":"SUM(F298:F317)","v":0},{"$f":"IF(AND(F297<>0,$D$31<>0),F297/$D$31,0)","v":0},"-","-",{"$f":"SUM(J298:J317)","v":0},"-","-","-","-",{"$f":"SUM(O298:O317)","v":0},"-",{"$f":"SUM(Q298:Q317)","v":0},"-","-",{"$f":"IF(W297<>0,W297/($F$350+$O$350),0)","v":0},{"$f":"IF(Y297<>0,Y297/($F$350+$O$350),0)","v":0},1,{"$f":"SUM(W298:W317)","v":0},0,{"$f":"SUM(Y298:Y317)","v":0},0]
[null,4,"Fittings, furnishings & equipment (FFE)",null,null,null,{"$f":"IF(AND(F298<>0,$D$31<>0),F298/$D$31,0)","v":0},"-",0,0,null,null,null,{"$f":"IF(M298<>0,INT(59/M298),0)","v":0},{"$f":"F298*N298","v":0},0,{"$f":"O298*P298","v":0},null,null,0,0,1,0,0,0,0]
[null,null,null,null,null,null,{"$f":"IF(AND(F299<>0,$D$31<>0),F299/$D$31,0)","v":0},"-",0,0,null,null,null,{"$f":"IF(M299<>0,INT(59/M299),0)","v":0},{"$f":"F299*N299","v":0},0,{"$f":"O299*P299","v":0},null,null,0,0,1,0,0,0,0]
[null,null,null,null,null,null,{"$f":"IF(AND(F300<>0,$D$31<>0),F300/$D$31,0)","v":0},"-",0,0,null,null,null,0,0,0,0,null,null,0,0,1,0,0,0,0]
[null,null,null,null,null,null,0,"-",0,0,null,null,null,0,0,0,0,null,null,0,0,1,0,0,0,0]
[null,null,null,null,null,null,0,"-",0,0,null,null,null,0,0,0,0,null,null,0,0,1,0,0,0,0]
[null,null,null,null,null,null,0,"-",0,0,null,null,null,0,0,0,0,null,null,0,0,1,0,0,0,0]
[null,null,null,null,null,null,0,"-",0,0,null,null,null,0,0,0,0,null,null,0,0,1,0,0,0,0]
[null,null,null,null,null,null,0,"-",0,0,null,null,null,0,0,0,0,null,null,0,0,1,0,0,0,0]
[null,null,null,null,null,null,0,"-",0,0,null,null,null,0,0,0,0,null,null,0,0,1,0,0,0,0]
[null,null,null,null,null,null,0,"-",0,0,null,null,null,0,0,0,0,null,null,0,0,1,0,0,0,0]
[null,null,null,null,null,null,0,"-",0,0,null,null,null,0,0,0,0,null,null,0,0,1,0,0,0,0]
[null,null,null,null,null,null,0,"-",0,0,null,null,null,0,0,0,0,null,null,0,0,1,0,0,0,0]
[null,null,null,null,null,null,0,"-",0,0,null,null,null,0,0,0,0,null,null,0,0,1,0,0,0,0]
[null,null,null,null,null,null,0,"-",0,0,null,null,null,0,0,0,0,null,null,0,0,1,0,0,0,0]
[null,null,null,null,null,null,{"$f":"IF(AND(F312<>0,$D$31<>0),F312/$D$31,0)","v":0},"-",0,0,null,null,null,0,0,0,0,null,null,0,0,1,0,0,0,0]
[null,null,null,null,null,null,{"$f":"IF(AND(F313<>0,$D$31<>0),F313/$D$31,0)","v":0},"-",0,0,null,null,null,0,0,0,0,null,null,0,0,1,0,0,0,0]
[null,null,null,null,null,null,{"$f":"IF(AND(F314<>0,$D$31<>0),F314/$D$31,0)","v":0},"-",0,0,null,null,null,0,0,0,0,null,null,0,0,1,0,0,0,0]
[null,null,null,null,null,null,{"$f":"IF(AND(F315<>0,$D$31<>0),F315/$D$31,0)","v":0},"-",0,0,null,null,null,0,0,0,0,null,null,0,0,1,0,0,0,0]
[null,null,null,null,null,null,0,"-",0,0,null,null,null,0,0,0,0,null,null,0,0,1,0,0,0,0]
[null,null,null,null,null,null,0,"-",0,0,null,null,null,0,0,0,0,null,null,0,0,1,0,0,0,0]
[null,5,"Services (MEP)",null,"-",{"$f":"SUM(F319:F338)","v":0},{"$f":"IF(AND(F318<>0,$D$31<>0),F318/$D$31,0)","v":0},"-","-",{"$f":"SUM(J319:J338)","v":0},"-","-","-","-",{"$f":"SUM(O319:O338)","v":0},"-",{"$f":"SUM(Q319:Q338)","v":0},"-","-",{"$f":"IF(W318<>0,W318/($F$371+$O$371),0)","v":0},{"$f":"IF(Y318<>0,Y318/($F$371+$O$371),0)","v":0},1,{"$f":"SUM(W319:W338)","v":0},0,{"$f":"SUM(Y319:Y338)","v":0},0]
[null,5,"Services (MEP)",null,null,null,{"$f":"IF(AND(F319<>0,$D$31<>0),F319/$D$31,0)","v":0},"-",0,0,null,null,null,{"$f":"IF(M319<>0,INT(59/M319),0)","v":0},{"$f":"F319*N319","v":0},0,{"$f":"O319*P319","v":0},null,null,0,0,1,0,0,0,0]
[null,null,null,null,null,null,{"$f":"IF(AND(F320<>0,$D$31<>0),F320/$D$31,0)","v":0},"-",0,0,null,null,null,{"$f":"IF(M320<>0,INT(59/M320),0)","v":0},{"$f":"F320*N320","v":0},0,{"$f":"O320*P320","v":0},null,null,0,0,1,0,0,0,0]
[null,null,null,null,null,null,{"$f":"IF(AND(F321<>0,$D$31<>0),F321/$D$31,0)","v":0},"-",0,0,null,null,null,0,0,0,0,null,null,0,0,1,0,0,0,0]
[null,null,null,null,null,null,0,"-",0,0,null,null,null,0,0,0,0,null,null,0,0,1,0,0,0,0]
[null,null,null,null,null,null,0,"-",0,0,null,null,null,0,0,0,0,null,null,0,0,1,0,0,0,0]
[null,null,null,null,null,null,0,"-",0,0,null,null,null,0,0,0,0,null,null,0,0,1,0,0,0,0]
[null,null,null,null,null,null,0,"-",0,{"$f":"I325*F325","v":0},null,null,null,0,0,0,0,null,null,0,0,1,{"$f":"T325*(F325+O325)","v":0},0,{"$f":"U325*(F325+O325)","v":0},0]
[null,null,null,null,null,null,0,"-",0,0,null,null,null,0,0,0,0,null,null,0,0,1,0,0,0,0]
[null,null,null,null,null,null,0,"-",0,0,null,null,null,0,0,0,0,null,null,0,0,1,0,0,0,0]
[null,null,null,null,null,null,0,"-",0,0,null,null,null,0,0,0,0,null,null,0,0,1,0,0,0,0]
[null,null,null,null,null,null,0,"-",0,0,null,null,null,0,0,0,0,null,null,0,0,1,0,0,0,0]
[null,null,null,null,null,null,0,"-",0,0,null,null,null,0,0,0,0,null,null,0,0,1,0,0,0,0]
[null,null,null,null,null,null,0,"-",0,0,null,null,null,0,0,0,0,null,null,0,0,1,0,0,0,0]
[null,null,null,null,null,null,0,"-",0,0,null,null,null,0,0,0,0,null,null,0,0,1,0,0,0,0]
[null,null,null,null,null,null,{"$f":"IF(AND(F333<>0,$D$31<>0),F333/$D$31,0)","v":0},"-",0,0,null,null,null,0,0,0,0,null,null,0,0,1,0,0,0,0]
[null,null,null,null,null,null,{"$f":"IF(AND(F334<>0,$D$31<>0),F334/$D$31,0)","v":0},"-",0,0,null,null,null,0,0,0,0,null,null,0,0,1,0,0,0,0]
[null,null,null,null,null,null,{"$f":"IF(AND(F335<>0,$D$31<>0),F335/$D$31,0)","v":0},"-",0,0,null,null,null,0,0,0,0,null,null,0,0,1,0,0,0,0]
[null,null,null,null,null,null,{"$f":"IF(AND(F336<>0,$D$31<>0),F336/$D$31,0)","v":0},"-",0,0,null,null,null,0,0,0,0,null,null,0,0,1,0,0,0,0]
[null,null,null,null,null,null,0,"-",0,0,null,null,null,0,0,0,0,null,null,0,0,1,0,0,0,0]
[null,null,null,null,null,null,0,"-",0,0,null,null,null,0,0,0,0,null,null,0,0,1,0,0,0,0]
[null,6,"Prefabricated Buildings and Building Units",null,"-",{"$f":"SUM(F340:F359)","v":0},{"$f":"IF(AND(F339<>0,$D$31<>0),F339/$D$31,0)","v":0},"-","-",{"$f":"SUM(J340:J359)","v":0},"-","-","-","-",{"$f":"SUM(O340:O359)","v":0},"-",{"$f":"SUM(Q340:Q359)","v":0},"-","-",{"$f":"IF(W339<>0,W339/($F$392+$O$392),0)","v":0},{"$f":"IF(Y339<>0,Y339/($F$392+$O$392),0)","v":0},1,{"$f":"SUM(W340:W359)","v":0},0,{"$f":"SUM(Y340:Y359)","v":0},0]
[null,6,"Prefabricated Buildings and Building Units",null,null,null,{"$f":"IF(AND(F340<>0,$D$31<>0),F340/$D$31,0)","v":0},"-",0,0,null,null,null,{"$f":"IF(M340<>0,INT(59/M340),0)","v":0},{"$f":"F340*N340","v":0},0,{"$f":"O340*P340","v":0},null,null,0,0,1,0,0,0,0]
[null,null,null,null,null,null,{"$f":"IF(AND(F341<>0,$D$31<>0),F341/$D$31,0)","v":0},"-",0,0,null,null,null,{"$f":"IF(M341<>0,INT(59/M341),0)","v":0},{"$f":"F341*N341","v":0},0,{"$f":"O341*P341","v":0},null,null,0,0,1,0,0,0,0]
[null,null,null,null,null,null,{"$f":"IF(AND(F342<>0,$D$31<>0),F342/$D$31,0)","v":0},"-",0,0,null,null,null,0,0,0,0,null,null,0,0,1,0,0,0,0]
[null,null,null,null,null,null,0,"-",0,0,null,null,null,0,0,0,0,null,null,0,0,1,0,0,0,0]
[null,null,null,null,null,null,0,"-",0,0,null,null,null,0,0,0,0,null,null,0,0,1,0,0,0,0]
[null,null,null,null,null,null,0,"-",0,0,null,null,null,0,0,0,0,null,null,0,0,1,0,0,0,0]
[null,null,null,null,null,null,0,"-",0,0,null,null,null,0,0,0,0,null,null,0,0,1,0,0,0,0]
[null,null,null,null,null,null,0,"-",0,0,null,null,null,0,0,0,0,null,null,0,0,1,0,0,0,0]
[null,null,null,null,null,null,0,"-",0,0,null,null,null,0,0,0,0,null,null,0,0,1,0,0,0,0]
[null,null,null,null,null,null,0,"-",0,0,null,null,null,0,0,0,0,null,null,0,0,1,0,0,0,0]
[null,null,null,null,null,null,0,"-",0,0,null,null,null,0,0,0,0,null,null,0,0,1,0,0,0,0]
[null,null,null,null,null,null,0,"-",0,0,null,null,null,0,0,0,0,null,null,0,0,1,0,0,0,0]
[null,null,null,null,null,null,0,"-",0,0,null,null,null,0,0,0,0,null,null,0,0,1,0,0,0,0]
[null,null,null,null,null,null,0,"-",0,0,null,null,null,0,0,0,0,null,null,0,0,1,0,0,0,0]
[null,null,null,null,null,null,{"$f":"IF(AND(F354<>0,$D$31<>0),F354/$D$31,0)","v":0},"-",0,0,null,null,null,0,0,0,0,null,null,0,0,1,0,0,0,0]
[null,null,null,null,null,null,{"$f":"IF(AND(F355<>0,$D$31<>0),F355/$D$31,0)","v":0},"-",0,0,null,null,null,0,0,0,0,null,null,0,0,1,0,0,0,0]
[null,null,null,null,null,null,{"$f":"IF(AND(F356<>0,$D$31<>0),F356/$D$31,0)","v":0},"-",0,0,null,null,null,0,0,0,0,null,null,0,0,1,0,0,0,0]
[null,null,null,null,null,null,{"$f":"IF(AND(F357<>0,$D$31<>0),F357/$D$31,0)","v":0},"-",0,0,null,null,null,0,0,0,0,null,null,0,0,1,0,0,0,0]
[null,null,null,null,null,null,0,"-",0,0,null,null,null,0,0,0,0,null,null,0,0,1,0,0,0,0]
[null,null,null,null,null,null,0,"-",0,0,null,null,null,0,0,0,0,null,null,0,0,1,0,0,0,0]
[null,7,"Work to Existing Building",null,"-",{"$f":"SUM(F361:F380)","v":0},{"$f":"IF(AND(F360<>0,$D$31<>0),F360/$D$31,0)","v":0},"-","-",{"$f":"SUM(J361:J380)","v":0},"-","-","-","-",{"$f":"SUM(O361:O380)","v":0},"-",{"$f":"SUM(Q361:Q380)","v":0},"-","-",{"$f":"IF(W360<>0,W360/($F$413+$O$413),0)","v":0},{"$f":"IF(Y360<>0,Y360/($F$413+$O$413),0)","v":0},{"$f":"1-T360-U360","v":1},{"$f":"SUM(W361:W380)","v":0},{"$f":"IF(AND(W360<>0,$D$31<>0),W360/$D$31,0)","v":0},{"$f":"SUM(Y361:Y380)","v":0},0]
[null,7,"Work to Existing Building",null,null,null,{"$f":"IF(AND(F361<>0,$D$31<>0),F361/$D$31,0)","v":0},"-",0,0,null,null,null,{"$f":"IF(M361<>0,INT(59/M361),0)","v":0},{"$f":"F361*N361","v":0},0,{"$f":"O361*P361","v":0},null,null,0,0,1,{"$f":"T361*(F361+O361)","v":0},0,{"$f":"U361*(F361+O361)","v":0},0]
[null,null,null,null,null,null,{"$f":"IF(AND(F362<>0,$D$31<>0),F362/$D$31,0)","v":0},"-",0,0,null,null,null,{"$f":"IF(M362<>0,INT(59/M362),0)","v":0},{"$f":"F362*N362","v":0},0,{"$f":"O362*P362","v":0},null,null,0,0,1,0,0,0,0]
[null,null,null,null,null,null,{"$f":"IF(AND(F363<>0,$D$31<>0),F363/$D$31,0)","v":0},"-",0,0,null,null,null,0,0,0,0,null,null,0,0,1,0,0,0,0]
[null,null,null,null,null,null,0,"-",0,0,null,null,null,0,0,0,0,null,null,0,0,1,0,0,0,0]
[null,null,null,null,null,null,0,"-",0,0,null,null,null,0,0,0,0,null,null,0,0,1,0,0,0,0]
[null,null,null,null,null,null,0,"-",0,0,null,null,null,0,0,0,0,null,null,0,0,1,0,0,0,0]
[null,null,null,null,null,null,0,"-",0,0,null,null,null,0,0,0,0,null,null,0,0,1,0,0,0,0]
[null,null,null,null,null,null,0,"-",0,0,null,null,null,0,0,0,0,null,null,0,0,1,0,0,0,0]
[null,null,null,null,null,null,0,"-",0,0,null,null,null,0,0,0,0,null,null,0,0,1,0,0,0,0]
[null,null,null,null,null,null,0,"-",0,0,null,null,null,0,0,0,0,null,null,0,0,1,0,0,0,0]
[null,null,null,null,null,null,0,"-",0,0,null,null,null,0,0,0,0,null,null,0,0,1,0,0,0,0]
[null,null,null,null,null,null,0,"-",0,0,null,null,null,0,0,0,0,null,null,0,0,1,0,0,0,0]
[null,null,null,null,null,null,0,"-",0,0,null,null,null,0,0,0,0,null,null,0,0,1,0,0,0,0]
[null,null,null,null,null,null,0,"-",0,0,null,null,null,0,0,0,0,null,null,0,0,1,0,0,0,0]
[null,null,null,null,null,null,{"$f":"IF(AND(F375<>0,$D$31<>0),F375/$D$31,0)","v":0},"-",0,0,null,null,null,0,0,0,0,null,null,0,0,1,0,0,0,0]
[null,null,null,null,null,null,{"$f":"IF(AND(F376<>0,$D$31<>0),F376/$D$31,0)","v":0},"-",0,0,null,null,null,0,0,0,0,null,null,0,0,1,0,0,0,0]
[null,null,null,null,null,null,{"$f":"IF(AND(F377<>0,$D$31<>0),F377/$D$31,0)","v":0},"-",0,0,null,null,null,0,0,0,0,null,null,0,0,1,0,0,0,0]
[null,null,null,null,null,null,{"$f":"IF(AND(F378<>0,$D$31<>0),F378/$D$31,0)","v":0},"-",0,0,null,null,null,0,0,0,0,null,null,0,0,1,0,0,0,0]
[null,null,null,null,null,null,0,"-",0,0,null,null,null,0,0,0,0,null,null,0,0,1,0,0,0,0]
[null,null,null,null,null,null,0,"-",0,0,null,null,null,0,0,0,0,null,null,0,0,1,0,0,0,0]
[null,8,"External works",null,"-",{"$f":"SUM(F382:F401)","v":0},{"$f":"IF(AND(F381<>0,$D$31<>0),F381/$D$31,0)","v":0},"-","-",{"$f":"SUM(J382:J401)","v":0},"-","-","-","-",{"$f":"SUM(O382:O401)","v":0},"-",{"$f":"SUM(Q382:Q401)","v":0},"-","-",{"$f":"IF(W381<>0,W381/($F$434+$O$434),0)","v":0},{"$f":"IF(Y381<>0,Y381/($F$434+$O$434),0)","v":0},1,{"$f":"SUM(W382:W401)","v":0},0,{"$f":"SUM(Y382:Y401)","v":0},0]
[null,8,"External works",null,null,null,{"$f":"IF(AND(F382<>0,$D$31<>0),F382/$D$31,0)","v":0},"-",0,0,null,null,null,{"$f":"IF(M382<>0,INT(59/M382),0)","v":0},{"$f":"F382*N382","v":0},0,{"$f":"O382*P382","v":0},null,null,0,0,1,0,0,0,0]
[null,null,null,null,null,null,{"$f":"IF(AND(F383<>0,$D$31<>0),F383/$D$31,0)","v":0},"-",0,0,null,null,null,{"$f":"IF(M383<>0,INT(59/M383),0)","v":0},{"$f":"F383*N383","v":0},0,{"$f":"O383*P383","v":0},null,null,0,0,1,0,0,0,0]
[null,null,null,null,null,null,{"$f":"IF(AND(F384<>0,$D$31<>0),F384/$D$31,0)","v":0},"-",0,0,null,null,null,0,0,0,0,null,null,0,0,1,0,0,0,0]
[null,null,null,null,null,null,{"$f":"IF(AND(F385<>0,$D$31<>0),F385/$D$31,0)","v":0},"-",0,0,null,null,null,0,0,0,0,null,null,0,0,1,0,0,0,0]
[null,null,null,null,null,null,0,"-",0,0,null,null,null,0,0,0,0,null,null,0,0,1,0,0,0,0]
[null,null,null,null,null,null,0,"-",0,0,null,null,null,0,0,0,0,null,null,0,0,1,0,0,0,0]
[null,null,null,null,null,null,0,"-",0,0,null,null,null,0,0,0,0,null,null,0,0,1,0,0,0,0]
[null,null,null,null,null,null,0,"-",0,{"$f":"I389*F389","v":0},null,null,null,0,0,0,0,null,null,0,0,1,0,0,0,0]
[null,null,null,null,null,null,0,"-",0,0,null,null,null,0,0,0,0,null,null,0,0,1,0,0,0,0]
[null,null,null,null,null,null,0,"-",0,0,null,null,null,0,0,0,0,null,null,0,0,1,0,0,0,0]
[null,null,null,null,null,null,0,"-",0,0,null,null,null,0,0,0,0,null,null,0,0,1,0,0,0,0]
[null,null,null,null,null,null,0,"-",0,0,null,null,null,0,0,0,0,null,null,0,0,1,0,0,0,0]
[null,null,null,null,null,null,0,"-",0,0,null,null,null,0,0,0,0,null,null,0,0,1,0,0,0,0]
[null,null,null,null,null,null,0,"-",0,0,null,null,null,0,0,0,0,null,null,0,0,1,0,0,0,0]
[null,null,null,null,null,null,0,"-",0,0,null,null,null,0,0,0,0,null,null,0,0,1,0,0,0,0]
[null,null,null,null,null,null,0,"-",0,0,null,null,null,0,0,0,0,null,null,0,0,1,0,0,0,0]
[null,null,null,null,null,null,0,"-",0,0,null,null,null,0,0,0,0,null,null,0,0,1,0,0,0,0]
[null,null,null,null,null,null,0,"-",0,0,null,null,null,0,0,0,0,null,null,0,0,1,0,0,0,0]
[null,null,null,null,null,null,0,"-",0,{"$f":"I400*F400","v":0},null,null,null,0,0,0,0,null,null,0,0,1,0,0,0,0]
[null,null,null,null,null,null,0,"-",0,{"$f":"I401*F401","v":0},null,null,null,0,{"$f":"F401*N401","v":0},0,{"$f":"O401*P401","v":0},null,null,0,0,1,{"$f":"T401*(F401+O401)","v":0},0,0,{"$f":"IF(AND(Y401<>0,$D$31<>0),Y401/$D$31,0)","v":0}]
[null,null,"Overall",null,null,{"$f":"SUM(F38,F54,F70,F86,F102,F123,F144,F165,F186,F202,F223,F239,F260,F276,F297,F318,F339,F360,F381)","v":0},0,null,null,{"$f":"SUM(J38,J54,J70,J86,J102,J123,J144,J165,J186,J202,J223,J239,J260,J276,J297,J318,J339,J360,J381)","v":0},null,null,null,null,{"$f":"SUM(O38,O54,O70,O86,O102,O123,O144,O165,O186,O202,O223,O239,O260,O276,O297,O318,O339,O360,O381)","v":0},null,{"$f":"SUM(Q38,Q54,Q70,Q86,Q102,Q123,Q144,Q165,Q186,Q202,Q223,Q239,Q260,Q276,Q297,Q318,Q339,Q360,Q381)","v":0},null,null,{"$f":"IF(AND($F$455<>0,$O$455<>0),SUM(W38,W54,W70,W86,W102,W123,W144,W165,W186,W202,W223,W239,W260,W276,W297,W318,W339,W360,W381)/($F$455+$O$455),0)","v":0},{"$f":"IF(AND($F$455<>0,$O$455<>0),SUM(Y38,Y54,Y70,Y86,Y102,Y123,Y144,Y165,Y186,Y202,Y223,Y239,Y260,Y276,Y297,Y318,Y339,Y360,Y381)/($F$455+$O$455),0)","v":0},{"$f":"1-T402-U402","v":1},{"$f":"SUM(W38,W54,W70,W86,W102,W123,W144,W165,W186,W202,W223,W239,W260,W276,W297,W318,W339,W360,W381)","v":0},{"$f":"SUM(X38,X54,X70,X86,X102,X123,X144,X165,X186,X202,X223,X239,X260,X276,X297,X318,X339,X360,X381)","v":0},{"$f":"SUM(Y38,Y54,Y70,Y86,Y102,Y123,Y144,Y165,Y186,Y202,Y223,Y239,Y260,Y276,Y297,Y318,Y339,Y360,Y381)","v":0},{"$f":"SUM(Z38,Z54,Z70,Z86,Z102,Z123,Z144,Z165,Z186,Z202,Z223,Z239,Z260,Z276,Z297,Z318,Z339,Z360,Z381)","v":0}]
[]
[]
[]
[]
[null,"Recycling and Waste Reporting table"]
[null,"The light green-coloured cells should be completed to achieve 'pioneering' status."]
[null,null,null,null,"TOTAL ESTIMATES OF WASTE",null,null,"WASTE MANAGEMENT ROUTES",null,null,null,null,null,"SUMMARY"]
[null,null,null,null,null,null,null,"REUSE ",null,"RECYCLE",null,"OTHER DISPOSAL"]
[null,null,"Type of Waste","Source of Information","Overall Waste \n(tonnes)","Overall Waste\n(tonnes/m2 GIA)","Performance Indicator (Planning Stage Estimate)","Reuse Onsite (%)","Reuse Offsite (%)","Recycle Onsite(%)","Recycle Offsite (%)","To Landfill (%)","To Other Management (%)","Total Reuse (%)","Total Recycle (%)","Total Reuse and Recycle (%)","Total Waste Reported (%)"]
[null,null,null,null,"PRODUCT AND CONSTRUCTION STAGE (MODULE A)"]
[null,1,"Demolition Waste",null,null,{"$f":"IF($D$31>0,IF(E413>0,E413/$D$31,0),0)","v":0},{"$f":"IF(AND('Detailed Application Stage'!F466<>0,'Post-Construction Stage'!F413<>0),IF('Detailed Application Stage'!F466='Post-Construction Stage'!F413,\"Equal to planning stage estimate\",IF('Detailed Application Stage'!F466<'Post-Construction Stage'!F413,\"Greater than planning stage estimate\",\"Less than planning stage estimate\")),\"\")","v":""},null,null,null,null,null,null,{"$f":"SUM(H413:I413)","v":0},{"$f":"SUM(J413:K413)","v":0},{"$f":"SUM(N413:O413)","v":0},{"$f":"SUM(H413:M413)","v":0}]
[null,2.1,"Excavation Waste",null,null,{"$f":"IF($D$31>0,IF(E414>0,E414/$D$31,0),0)","v":0},{"$f":"IF(AND('Detailed Application Stage'!F467<>0,'Post-Construction Stage'!F414<>0),IF('Detailed Application Stage'!F467='Post-Construction Stage'!F414,\"Equal to planning stage estimate\",IF('Detailed Application Stage'!F467<'Post-Construction Stage'!F414,\"Greater than planning stage estimate\",\"Less than planning stage estimate\")),\"\")","v":""},null,null,null,null,null,null,{"$f":"SUM(H414:I414)","v":0},{"$f":"SUM(J414:K414)","v":0},{"$f":"SUM(N414:O414)","v":0},{"$f":"SUM(H414:M414)","v":0}]
[null,2.8,"Construction Waste",null,null,{"$f":"IF($D$31>0,IF(E415>0,E415/$D$31,0),0)","v":0},{"$f":"IF(AND('Detailed Application Stage'!F468<>0,'Post-Construction Stage'!F415<>0),IF('Detailed Application Stage'!F468='Post-Construction Stage'!F415,\"Equal to planning stage estimate\",IF('Detailed Application Stage'!F468<'Post-Construction Stage'!F415,\"Greater than planning stage estimate\",\"Less than planning stage estimate\")),\"\")","v":""},null,null,null,null,null,null,{"$f":"SUM(H415:I415)","v":0},{"$f":"SUM(J415:K415)","v":0},{"$f":"SUM(N415:O415)","v":0},{"$f":"SUM(H415:M415)","v":0}]
[null,null,null,null,"USE STAGE (MODULE B)"]
[null,3,"Demolition / Strip-out Waste",null,{"$f":"IF(ISNUMBER(O402),O402/1000,0)","v":0},{"$f":"IF($D$31>0,IF(E417>0,E417/$D$31,0),0)","v":0},{"$f":"IF(AND('Detailed Application Stage'!F470<>0,'Post-Construction Stage'!F417<>0),IF('Detailed Application Stage'!F470='Post-Construction Stage'!F417,\"Equal to planning stage estimate\",IF('Detailed Application Stage'!F470<'Post-Construction Stage'!F417,\"Greater than planning stage estimate\",\"Less than planning stage estimate\")),\"\")","v":""},null,null,null,null,null,null,{"$f":"SUM(H417:I417)","v":0},{"$f":"SUM(J417:K417)","v":0},{"$f":"SUM(N417:O417)","v":0},{"$f":"SUM(H417:M417)","v":0}]
[null,4,"Construction Waste",null,{"$f":"IF(ISNUMBER(Q402),Q402/1000,0)","v":0},{"$f":"IF($D$31>0,IF(E418>0,E418/$D$31,0),0)","v":0},{"$f":"IF(AND('Detailed Application Stage'!F471<>0,'Post-Construction Stage'!F418<>0),IF('Detailed Application Stage'!F471='Post-Construction Stage'!F418,\"Equal to planning stage estimate\",IF('Detailed Application Stage'!F471<'Post-Construction Stage'!F418,\"Greater than planning stage estimate\",\"Less than planning stage estimate\")),\"\")","v":""},null,null,null,null,null,null,{"$f":"SUM(H418:I418)","v":0},{"$f":"SUM(J418:K418)","v":0},{"$f":"SUM(N418:O418)","v":0},{"$f":"SUM(H418:M418)","v":0}]
[null,null,null,null,"Overall Waste (tonnes/annum)","Overall Waste (tonnes/annum\n/m2)","Performance Indicator (Planning Stage Estimate)","Reuse Onsite (%)","Reuse Offsite (%)","Recycle Offsite(%)","Recycle Offsite (%)","To Landfill (%)","To Other Management (%)","Total Reuse (%)","Total Recycle (%)","Total Reuse and Recycle (%)","Total Waste Reported (%)"]
[null,5,"Municipal Waste",null,null,{"$f":"IF($D$31>0,IF(E420>0,E420/$D$31,0),0)","v":0},{"$f":"IF(AND('Detailed Application Stage'!F473<>0,'Post-Construction Stage'!F420<>0),IF('Detailed Application Stage'!F473='Post-Construction Stage'!F420,\"Equal to planning stage estimate\",IF('Detailed Application Stage'!F473<'Post-Construction Stage'!F420,\"Greater than planning stage estimate\",\"Less than planning stage estimate\")),\"\")","v":""},null,null,null,null,null,null,{"$f":"SUM(H420:I420)","v":0},{"$f":"SUM(J420:K420)","v":0},{"$f":"SUM(N420:O420)","v":0},{"$f":"SUM(H420:M420)","v":0}]
[null,6,"Industrial Waste (if applicable)",null,null,{"$f":"IF($D$31>0,IF(E421>0,E421/$D$31,0),0)","v":0},{"$f":"IF(AND('Detailed Application Stage'!F474<>0,'Post-Construction Stage'!F421<>0),IF('Detailed Application Stage'!F474='Post-Construction Stage'!F421,\"Equal to planning stage estimate\",IF('Detailed Application Stage'!F474<'Post-Construction Stage'!F421,\"Greater than planning stage estimate\",\"Less than planning stage estimate\")),\"\")","v":""},null,null,null,null,null,null,{"$f":"SUM(H421:I421)","v":0},{"$f":"SUM(J421:K421)","v":0},{"$f":"SUM(N421:O421)","v":0},{"$f":"SUM(H421:M421)","v":0}]
[null,null,null,null,"MODULE A - MODULE C"]
[null,null,null,null,"Overall Materials \n(tonnes)","Overall Materials (Modules A-C) (tonnes\n/m2)","Performance Indicator (Planning Stage Estimate)","Reuse Onsite (%)","Reuse Offsite (%)","Recycle Offsite(%)","Recycle Offsite (%)","To Landfill (%)","To Other Management (%)","Total Reuse (%)","Total Recycle (%)","Total Reuse and Recycle (%)","Total Waste Reported (%)"]
[null,7,"Total Materials",null,{"$f":"IF(AND(ISNUMBER(F402),ISNUMBER(J402),ISNUMBER(O402),ISNUMBER(Q402)),((Q402+O402+F402+J402)/1000),0)","v":0},{"$f":"IF($D$31>0,IF(E424>0,E424/$D$31,0),0)","v":0},{"$f":"IF(AND('Detailed Application Stage'!F477<>0,'Post-Construction Stage'!F424<>0),IF('Detailed Application Stage'!F477='Post-Construction Stage'!F424,\"Equal to planning stage estimate\",IF('Detailed Application Stage'!F477<'Post-Construction Stage'!F424,\"Greater than planning stage estimate\",\"Less than planning stage estimate\")),\"\")","v":""},null,null,null,null,null,null,{"$f":"SUM(H424:I424)","v":0},{"$f":"SUM(J424:K424)","v":0},{"$f":"SUM(N424:O424)","v":0},{"$f":"SUM(H424:M424)","v":0}]
[]
[]
[null,"Circular Economy Targets "]
[null,"Circular economy targets for existing and new development",null,"Policy Requirement","Target at Application Stage (%)","Rate Achieved (%)","Policy Met?","Actions Undertaken / Explanation (How has this been achieved? What are the reasons for any differences between targets/performance?)"]
[null,"Demolition waste materials (non-hazardous)",null,"Minimum of 95% diverted from landfill for reuse, recycling or recovery.",{"$f":"IF(ISNUMBER('Detailed Application Stage'!E482),'Detailed Application Stage'!E482,\"\")","v":0.95},null,{"$f":"IF(ISNUMBER(F429),IF(F429=95%,\"Yes\",IF(F429>95%,\"Exceeds Policy\",\"No\")),\"\")","v":""}]
[null,"Excavation waste materials",null,"Minimum of 95% diverted from landfill for beneficial reuse.",{"$f":"IF(ISNUMBER('Detailed Application Stage'!E483),'Detailed Application Stage'!E483,\"\")","v":0.95},null,{"$f":"IF(ISNUMBER(F430),IF(F430=95%,\"Yes\",IF(F430>95%,\"Exceeds Policy\",\"No\")),\"\")","v":""}]
[null,"Construction waste materials",null,"Minimum of 95% diverted from landfill for reuse, recycling or recovery.",{"$f":"IF(ISNUMBER('Detailed Application Stage'!E484),'Detailed Application Stage'!E484,\"\")","v":0.95},null,{"$f":"IF(ISNUMBER(F431),IF(F431=95%,\"Yes\",IF(F431>95%,\"Exceeds Policy\",\"No\")),\"\")","v":""}]
[null,"Municipal waste",null,"Minimum 65% recycling rate by 2030.",{"$f":"IF(ISNUMBER('Detailed Application Stage'!E485),'Detailed Application Stage'!E485,\"\")","v":0.65},null,{"$f":"IF(ISNUMBER(F432),IF(F432=65%,\"Yes\",IF(F432>65%,\"Exceeds Policy\",\"No\")),\"\")","v":""}]
[null,"Recycled content",null,"Minimum 20% of the building material elements to be comprised of recycled or reused content.",{"$f":"IF(ISNUMBER('Detailed Application Stage'!E486),'Detailed Application Stage'!E486,\"\")","v":0.2},null,{"$f":"IF(ISNUMBER(F433),IF(F433=20%,\"Yes\",IF(F433>20%,\"Exceeds Policy\",\"No\")),\"\")","v":""}]
[]
[]
[null,"Key Achievements and Gap Assessment:"]
[null,"Summary of key actions undertaken to achieve circular economy outcomes, including achievements and reasons for any differences between targets/performance"]
[null,"Key Achievements",null,"Measure / Target Proposed at Application Stage (if applicable)",null,"Actions Undertaken / Explanation (How has this been achieved? What are the reasons for any differences between targets/performance?)"]
[null,"[This list does not need to be exhaustive but should identify the actions with the biggest impacts.]"]
[]
[]
[]
[]
[]
[]
[]
[]
[]
[]
[]
[]
[]
[]
[]
[null,"Lessons Learnt:"]
[null,"Lessons learnt from the process of undertaking a CE Statement that will inform future projects"]
[null,"Description",null,"Explanation / Solution / Future Approach"]
[null,null,null,"[i.e. Design options or materials that could be used, design principles that could be applied.]"]

{"sheet":"Version Control","index":5,"n_rows":20,"n_cols":2,"rows_kept":20,"cut":false,"hidden":false,"merged":[[0,0,0,1],[2,0,2,1]]}
["Greater London Authority - Circular Economy Statement template "]
[]
["Version Control"]
["Current Issue",1.1000000000000001]
["Date","2023-06-01"]
["Author","Greater London Authority"]
[]
["Update Version",1.1000000000000001]
["Update Location","Description of changes made to GLA Circular Economy Statement Template"]
["Outline Application Stage /  Detailed Application Stage (Cell B70)","Update to wording to reference the Circular Economy Principles by Building Layer table."]
["Outline Application Stage /  Detailed Application Stage (Cell B88)\nPost-Construction Stage (B35)","Added wording to clarify the approach should the number of entries exceed the number of rows provided."]
["Outline Application Stage /  Detailed Application Stage / Post-Construction Stage (Bill of Mateirals, Column I and P)","Where it is anticipated this figure will come directly from OneClick, eTool LCA or other similar software, the Construction Waste Factor in Columns I and P is now input at a percentage for clarity and consistency."]
["Outline Application Stage / Detailed Application Stage (Bill of Materials, Columns K and L)","Cell colour has been amended to show that these are pioneering considerations."]
["Outline Application Stage /  Detailed Application Stage / Post-Construction Stage (Bill of Materials, Column N)","Calculation has been adjusted so that components with an Expected Lifespan of 60-years are not counted as being replaced over the assumed 60-year lifecycle period."]
["Outline Application Stage /  Detailed Application Stage / Post-Construction Stage (Bill of Materials, Column O)","Calculation has been updated to show correct multiplication of Material Quantity by Number of Replacements."]
["Outline Application Stage /  Detailed Application Stage / Post-Construction Stage (Bill of Materials, Column Q)","Calculation has been updated to show correct multiplication of Repair and Replacement quantities of materials by Construction Waste Factor."]
["Detailed Application Stage (Cells E470, E471 and E477) / Post-Construction Stage (Cell E417, E418 and E424)","Calculations in cells updated in line with the calculations in the Outline Application Stage tab."]
["Outline Application Stage / Detailed Application Stage (Cell Q455) / Post-Construction Stage (Cell Q402)","Calculation has been updated to show correct total for Construction Waste (Module B)."]
["Outline Application Stage / Detailed Application Stage (Cell W455, X455, Y455 and Z455) / Post-Construction Stage (Cell W402, X402, Y402 and Z402)","Calculation has been updated to show correct total for Benefits Beyond the System Boundary (Module D)."]
["Pre-App Stage / Outline Application Stage / Detailed Application Stage / Post-Construction Stage","Accessibility updates across all tabs wherever possible to provide alt text, address low contrast text/backgrounds and merged cells."]

{"sheet":"Drop- down list","index":6,"n_rows":20,"n_cols":6,"rows_kept":20,"cut":false,"hidden":true,"merged":[]}
["Number of Use Types","Yes/No","Layers","Building element category reference","Building element category","Other"]
[1,"Yes","Site",0.1,"Demolition: Toxic/Hazardous/Contaminated Material Treatment","It is accepted that the Reserved Matters Reporting will be conditioned"]
[2,"No","Substructure",0.2,"Major Demolition Works","It is accepted that the Post Construction Reporting will be conditioned"]
[3,"Yes, in whole","Super- Structure",0.3,"Temporary Support to Adjacent Structures"]
[4,"Yes, in part","Shell/ Skin",0.4,"Specialist Ground Works"]
[5,"No","Services",1,"Substructure"]
[6,null,"Space",2.1,"Superstructure: Frame"]
[7,null,"Stuff",2.2000000000000002,"Superstructure: Upper Floors"]
[8,null,"Construction Stuff",2.2999999999999998,"Superstructure: Roof"]
[9,null,null,2.4,"Superstructure: Stairs and Ramps"]
[10,null,"Yes",2.5,"Superstructure: External Walls"]
[11,null,"No",2.6,"Superstructure: Windows and External Doors"]
[12,null,null,2.7,"Superstructure: Internal Walls and Partitions"]
[13,null,null,2.8,"Superstructure: Internal Doors"]
[14,null,null,3,"Finishes"]
[15,null,null,4,"Fittings, furnishings & equipment (FFE)"]
[null,null,null,5,"Services (MEP)"]
[null,null,null,6,"Prefabricated Buildings and Building Units"]
[null,null,null,7,"Work to Existing Building"]
[null,null,null,8,"External works"]